Workbook

Sheet Calculation
G3: With Holiday Adjustment? | H3: YES | I3: standard: YES
D5: IMSM Margin Calculator Example V 3.1.0
D6: valid from: 2023-08-16
A10: Date | B10: Exposure | C10: T0Exposure | D10: ="Exposure > " & minIMSM & " EUR" -> Exposure > 0 EUR | E10: ="T0Exposure > " & minIMSM & " EUR" -> T0Exposure > 0 EUR | F10: Mean | G10: Standard Deviation (SD) | H10: Number of datapoints | I10: SD with Securityfactor (SDS) | J10: Mean + alpha * SDS | K10: beta * Max (T-30 to T) | L10: Scaling Factor (Holiday Adjustment) | M10: IMSM Requirement
A11: =IF($A$12="","",OFFSET(Calendar!$A$1,VLOOKUP(Calculation!$A$12,Calendar!$A$2:$C$1306,2,FALSE)+1,0)) -> 2022-03-24 | E11: =IF(C11>minIMSM,C11,"") ->  | F11: =IF($A11="","",IFERROR((AVERAGE(E12,INDIRECT("D" & ROW(A13) & ":D" & ROW(A13) + window_size-2))),0)) -> 883471.3692 | G11: 563305.9667 | H11: 214 | I11: 603452.4961 | J11: =IF($A11="","",F11+alpha*I11) -> 2030031.112 | K11: =IF($A11="","",beta*MAX(E12,INDIRECT("B" & ROW(A13) & ":B" & ROW(A13) + window_size_max-2))) -> 4444297.6 | L11: =IF($A12="","",IF($H$3="YES",VLOOKUP(OFFSET(A12,N11,0),Calendar!$A$2:$C$10000,3,FALSE),1)) -> 1 | M11: =IF(A12="","",IF(VLOOKUP(A11,Calendar!A:E,5,FALSE)=0,"",CEILING(L11*CEILING(MAX(OFFSET(K11,N11,0),OFFSET(J11,N11,0)),roundto),roundto)+add_margin)) -> 4500000 | N11: =IF(INDIRECT("Calendar!E"&MATCH($A11,Calendar!A:A,0)-1),0,IF(INDIRECT("Calendar!E"&MATCH($A11,Calendar!A:A,0)-2),1,2)) -> 0
A12: 2022-03-23 | B12: 323440 | C12: 240947 | D12: =IF(B12>minIMSM,B12,"") -> 323440 | E12: 240947 | F12: =IF($A12="","",IFERROR((AVERAGE(E13,INDIRECT("D" & ROW(A14) & ":D" & ROW(A14) + window_size-2))),0)) -> 882945.8084 | G12: 564454.8823 | H12: 214 | I12: 604683.2944 | J12: 2031844.068 | K12: 4444297.6 | L12: =IF($A13="","",IF($H$3="YES",VLOOKUP(OFFSET(A13,N12,0),Calendar!$A$2:$C$10000,3,FALSE),1)) -> 1 | M12: =IF(A13="","",IF(VLOOKUP(A12,Calendar!A:E,5,FALSE)=0,"",CEILING(L12*CEILING(MAX(OFFSET(K12,N12,0),OFFSET(J12,N12,0)),roundto),roundto)+add_margin)) -> 4500000 | N12: =IF(INDIRECT("Calendar!E"&MATCH($A12,Calendar!A:A,0)-1),0,IF(INDIRECT("Calendar!E"&MATCH($A12,Calendar!A:A,0)-2),1,2)) -> 0
A13: 2022-03-22 | B13: 566967 | C13: 326020 | D13: 566967 | E13: 326020 | F13: 886098.1308 | G13: 567824.8617 | H13: 214 | I13: 608293.4505 | J13: 2041855.687 | K13: 4444297.6 | L13: =IF($A14="","",IF($H$3="YES",VLOOKUP(OFFSET(A14,N13,0),Calendar!$A$2:$C$10000,3,FALSE),1)) -> 1 | M13: =IF(A14="","",IF(VLOOKUP(A13,Calendar!A:E,5,FALSE)=0,"",CEILING(L13*CEILING(MAX(OFFSET(K13,N13,0),OFFSET(J13,N13,0)),roundto),roundto)+add_margin)) -> 4500000 | N13: =IF(INDIRECT("Calendar!E"&MATCH($A13,Calendar!A:A,0)-1),0,IF(INDIRECT("Calendar!E"&MATCH($A13,Calendar!A:A,0)-2),1,2)) -> 0
A14: 2022-03-21 | B14: 340789 | C14: 56745 | D14: 340789 | E14: 56745 | F14: 887080.9814 | G14: 567655.7774 | H14: 215 | I14: 607965.1591 | J14: 2042214.784 | K14: 4444297.6 | L14: =IF($A15="","",IF($H$3="YES",VLOOKUP(OFFSET(A15,N14,0),Calendar!$A$2:$C$10000,3,FALSE),1)) -> 1 | M14: =IF(A15="","",IF(VLOOKUP(A14,Calendar!A:E,5,FALSE)=0,"",CEILING(L14*CEILING(MAX(OFFSET(K14,N14,0),OFFSET(J14,N14,0)),roundto),roundto)+add_margin)) -> 4500000 | N14: =IF(INDIRECT("Calendar!E"&MATCH($A14,Calendar!A:A,0)-1),0,IF(INDIRECT("Calendar!E"&MATCH($A14,Calendar!A:A,0)-2),1,2)) -> 0
A15: 2022-03-18 | B15: -3109 | C15: 40545 | E15: 40545 | F15: 888625.0744 | G15: 563442.8035 | H15: 215 | I15: 603453.0209 | J15: 2035185.814 | K15: 4444297.6 | L15: =IF($A16="","",IF($H$3="YES",VLOOKUP(OFFSET(A16,N15,0),Calendar!$A$2:$C$10000,3,FALSE),1)) -> 1 | M15: =IF(A16="","",IF(VLOOKUP(A15,Calendar!A:E,5,FALSE)=0,"",CEILING(L15*CEILING(MAX(OFFSET(K15,N15,0),OFFSET(J15,N15,0)),roundto),roundto)+add_margin)) -> 4500000 | N15: =IF(INDIRECT("Calendar!E"&MATCH($A15,Calendar!A:A,0)-1),0,IF(INDIRECT("Calendar!E"&MATCH($A15,Calendar!A:A,0)-2),1,2)) -> 0
A16: 2022-03-17 | B16: 1015000 | C16: 1029335 | D16: 1015000 | E16: 1029335 | F16: 881563.493 | G16: 570761.7244 | H16: 215 | I16: 611291.6603 | J16: 2043017.648 | K16: 4444297.6 | L16: =IF($A17="","",IF($H$3="YES",VLOOKUP(OFFSET(A17,N16,0),Calendar!$A$2:$C$10000,3,FALSE),1)) -> 1 | M16: =IF(A17="","",IF(VLOOKUP(A16,Calendar!A:E,5,FALSE)=0,"",CEILING(L16*CEILING(MAX(OFFSET(K16,N16,0),OFFSET(J16,N16,0)),roundto),roundto)+add_margin)) -> 4500000 | N16: =IF(INDIRECT("Calendar!E"&MATCH($A16,Calendar!A:A,0)-1),0,IF(INDIRECT("Calendar!E"&MATCH($A16,Calendar!A:A,0)-2),1,2)) -> 0
A17: 2022-03-16 | B17: 1121777 | C17: 252812 | D17: 1121777 | E17: 252812 | F17: 881088.9721 | G17: 567297.9148 | H17: 215 | I17: 607581.8846 | J17: 2035494.553 | K17: 4444297.6 | L17: =IF($A18="","",IF($H$3="YES",VLOOKUP(OFFSET(A18,N17,0),Calendar!$A$2:$C$10000,3,FALSE),1)) -> 1 | M17: =IF(A18="","",IF(VLOOKUP(A17,Calendar!A:E,5,FALSE)=0,"",CEILING(L17*CEILING(MAX(OFFSET(K17,N17,0),OFFSET(J17,N17,0)),roundto),roundto)+add_margin)) -> 4500000 | N17: =IF(INDIRECT("Calendar!E"&MATCH($A17,Calendar!A:A,0)-1),0,IF(INDIRECT("Calendar!E"&MATCH($A17,Calendar!A:A,0)-2),1,2)) -> 0
A18: 2022-03-15 | B18: 2167612 | C18: 2048958 | D18: 2167612 | E18: 2048958 | F18: 865846.0744 | G18: 520192.5122 | H18: 215 | I18: 557131.5154 | J18: 1924395.954 | K18: 2520105.6 | L18: =IF($A19="","",IF($H$3="YES",VLOOKUP(OFFSET(A19,N18,0),Calendar!$A$2:$C$10000,3,FALSE),1)) -> 1 | M18: =IF(A19="","",IF(VLOOKUP(A18,Calendar!A:E,5,FALSE)=0,"",CEILING(L18*CEILING(MAX(OFFSET(K18,N18,0),OFFSET(J18,N18,0)),roundto),roundto)+add_margin)) -> 2580000 | N18: =IF(INDIRECT("Calendar!E"&MATCH($A18,Calendar!A:A,0)-1),0,IF(INDIRECT("Calendar!E"&MATCH($A18,Calendar!A:A,0)-2),1,2)) -> 0
A19: 2022-03-14 | B19: 2777686 | C19: 861622 | D19: 2777686 | E19: 861622 | F19: 861613.3628 | G19: 524586.0406 | H19: 215 | I19: 561837.0293 | J19: 1929103.719 | K19: 2783016 | L19: =IF($A20="","",IF($H$3="YES",VLOOKUP(OFFSET(A20,N19,0),Calendar!$A$2:$C$10000,3,FALSE),1)) -> 1 | M19: =IF(A20="","",IF(VLOOKUP(A19,Calendar!A:E,5,FALSE)=0,"",CEILING(L19*CEILING(MAX(OFFSET(K19,N19,0),OFFSET(J19,N19,0)),roundto),roundto)+add_margin)) -> 2840000 | N19: =IF(INDIRECT("Calendar!E"&MATCH($A19,Calendar!A:A,0)-1),0,IF(INDIRECT("Calendar!E"&MATCH($A19,Calendar!A:A,0)-2),1,2)) -> 0
A20: 2022-03-11 | B20: 1149197 | C20: 421528 | D20: 1149197 | E20: 421528 | F20: 861285.7256 | G20: 523582.2045 | H20: 215 | I20: 560761.9105 | J20: 1926733.356 | K20: 2783016 | L20: =IF($A21="","",IF($H$3="YES",VLOOKUP(OFFSET(A21,N20,0),Calendar!$A$2:$C$10000,3,FALSE),1)) -> 1 | M20: =IF(A21="","",IF(VLOOKUP(A20,Calendar!A:E,5,FALSE)=0,"",CEILING(L20*CEILING(MAX(OFFSET(K20,N20,0),OFFSET(J20,N20,0)),roundto),roundto)+add_margin)) -> 2840000 | N20: =IF(INDIRECT("Calendar!E"&MATCH($A20,Calendar!A:A,0)-1),0,IF(INDIRECT("Calendar!E"&MATCH($A20,Calendar!A:A,0)-2),1,2)) -> 0
A21: 2022-03-10 | B21: 1257405 | C21: 935896 | D21: 1257405 | E21: 935896 | F21: 856982.7674 | G21: 525662.725 | H21: 215 | I21: 562990.1693 | J21: 1926664.089 | K21: 2783016 | L21: =IF($A22="","",IF($H$3="YES",VLOOKUP(OFFSET(A22,N21,0),Calendar!$A$2:$C$10000,3,FALSE),1)) -> 1 | M21: =IF(A22="","",IF(VLOOKUP(A21,Calendar!A:E,5,FALSE)=0,"",CEILING(L21*CEILING(MAX(OFFSET(K21,N21,0),OFFSET(J21,N21,0)),roundto),roundto)+add_margin)) -> 2840000 | N21: =IF(INDIRECT("Calendar!E"&MATCH($A21,Calendar!A:A,0)-1),0,IF(INDIRECT("Calendar!E"&MATCH($A21,Calendar!A:A,0)-2),1,2)) -> 0
A22: 2022-03-09 | B22: 1248066 | C22: 628424 | D22: 1248066 | E22: 628424 | F22: 852287.0279 | G22: 529210.4343 | H22: 215 | I22: 566789.8023 | J22: 1929187.652 | K22: 2783016 | L22: =IF($A23="","",IF($H$3="YES",VLOOKUP(OFFSET(A23,N22,0),Calendar!$A$2:$C$10000,3,FALSE),1)) -> 1 | M22: =IF(A23="","",IF(VLOOKUP(A22,Calendar!A:E,5,FALSE)=0,"",CEILING(L22*CEILING(MAX(OFFSET(K22,N22,0),OFFSET(J22,N22,0)),roundto),roundto)+add_margin)) -> 2840000 | N22: =IF(INDIRECT("Calendar!E"&MATCH($A22,Calendar!A:A,0)-1),0,IF(INDIRECT("Calendar!E"&MATCH($A22,Calendar!A:A,0)-2),1,2)) -> 0
A23: 2022-03-08 | B23: 1102410 | C23: 548039 | D23: =IF(B23>minIMSM,B23,"") -> 1102410 | E23: 548039 | F23: 848978.5628 | G23: 537321.8409 | H23: 215 | I23: 575477.202 | J23: 1942385.247 | K23: 2783016 | L23: =IF($A24="","",IF($H$3="YES",VLOOKUP(OFFSET(A24,N23,0),Calendar!$A$2:$C$10000,3,FALSE),1)) -> 1 | M23: =IF(A24="","",IF(VLOOKUP(A23,Calendar!A:E,5,FALSE)=0,"",CEILING(L23*CEILING(MAX(OFFSET(K23,N23,0),OFFSET(J23,N23,0)),roundto),roundto)+add_margin)) -> 2840000 | N23: =IF(INDIRECT("Calendar!E"&MATCH($A23,Calendar!A:A,0)-1),0,IF(INDIRECT("Calendar!E"&MATCH($A23,Calendar!A:A,0)-2),1,2)) -> 0
A24: 2022-03-07 | B24: 453305 | C24: 19400 | D24: 453305 | E24: 19400 | F24: 851415.9349 | G24: 531557.5187 | H24: 215 | I24: 569303.5539 | J24: 1933092.687 | K24: 2783016 | L24: =IF($A25="","",IF($H$3="YES",VLOOKUP(OFFSET(A25,N24,0),Calendar!$A$2:$C$10000,3,FALSE),1)) -> 1 | M24: =IF(A25="","",IF(VLOOKUP(A24,Calendar!A:E,5,FALSE)=0,"",CEILING(L24*CEILING(MAX(OFFSET(K24,N24,0),OFFSET(J24,N24,0)),roundto),roundto)+add_margin)) -> 2840000 | N24: =IF(INDIRECT("Calendar!E"&MATCH($A24,Calendar!A:A,0)-1),0,IF(INDIRECT("Calendar!E"&MATCH($A24,Calendar!A:A,0)-2),1,2)) -> 0
A25: 2022-03-04 | B25: 293583 | C25: 388371 | D25: 293583 | E25: 388371 | F25: 850887.4093 | G25: 533607.5257 | H25: 215 | I25: 571499.1324 | J25: 1936735.761 | K25: 2783016 | L25: =IF($A26="","",IF($H$3="YES",VLOOKUP(OFFSET(A26,N25,0),Calendar!$A$2:$C$10000,3,FALSE),1)) -> 1 | M25: =IF(A26="","",IF(VLOOKUP(A25,Calendar!A:E,5,FALSE)=0,"",CEILING(L25*CEILING(MAX(OFFSET(K25,N25,0),OFFSET(J25,N25,0)),roundto),roundto)+add_margin)) -> 2840000 | N25: =IF(INDIRECT("Calendar!E"&MATCH($A25,Calendar!A:A,0)-1),0,IF(INDIRECT("Calendar!E"&MATCH($A25,Calendar!A:A,0)-2),1,2)) -> 0
A26: 2022-03-03 | B26: 651970 | C26: 432616 | D26: 651970 | E26: 432616 | F26: 850236.9349 | G26: 535345.088 | H26: 215 | I26: 573360.0794 | J26: 1939621.086 | K26: 2783016 | L26: =IF($A27="","",IF($H$3="YES",VLOOKUP(OFFSET(A27,N26,0),Calendar!$A$2:$C$10000,3,FALSE),1)) -> 1 | M26: =IF(A27="","",IF(VLOOKUP(A26,Calendar!A:E,5,FALSE)=0,"",CEILING(L26*CEILING(MAX(OFFSET(K26,N26,0),OFFSET(J26,N26,0)),roundto),roundto)+add_margin)) -> 2840000 | N26: =IF(INDIRECT("Calendar!E"&MATCH($A26,Calendar!A:A,0)-1),0,IF(INDIRECT("Calendar!E"&MATCH($A26,Calendar!A:A,0)-2),1,2)) -> 0
A27: 2022-03-02 | B27: 862497 | C27: 588877 | D27: 862497 | E27: 588877 | F27: 845683.0186 | G27: 537015.6102 | H27: 215 | I27: 575149.2258 | J27: 1938466.548 | K27: 2783016 | L27: =IF($A28="","",IF($H$3="YES",VLOOKUP(OFFSET(A28,N27,0),Calendar!$A$2:$C$10000,3,FALSE),1)) -> 1 | M27: =IF(A28="","",IF(VLOOKUP(A27,Calendar!A:E,5,FALSE)=0,"",CEILING(L27*CEILING(MAX(OFFSET(K27,N27,0),OFFSET(J27,N27,0)),roundto),roundto)+add_margin)) -> 2840000 | N27: =IF(INDIRECT("Calendar!E"&MATCH($A27,Calendar!A:A,0)-1),0,IF(INDIRECT("Calendar!E"&MATCH($A27,Calendar!A:A,0)-2),1,2)) -> 0
A28: 2022-03-01 | B28: 1253310 | C28: 741357 | D28: 1253310 | E28: 741357 | F28: 843432.7256 | G28: 540121.508 | H28: 215 | I28: 578475.6742 | J28: 1942536.507 | K28: 2783016 | L28: =IF($A29="","",IF($H$3="YES",VLOOKUP(OFFSET(A29,N28,0),Calendar!$A$2:$C$10000,3,FALSE),1)) -> 1 | M28: =IF(A29="","",IF(VLOOKUP(A28,Calendar!A:E,5,FALSE)=0,"",CEILING(L28*CEILING(MAX(OFFSET(K28,N28,0),OFFSET(J28,N28,0)),roundto),roundto)+add_margin)) -> 2840000 | N28: =IF(INDIRECT("Calendar!E"&MATCH($A28,Calendar!A:A,0)-1),0,IF(INDIRECT("Calendar!E"&MATCH($A28,Calendar!A:A,0)-2),1,2)) -> 0
A29: 2022-02-28 | B29: 1123881 | C29: 533563 | D29: 1123881 | E29: 533563 | F29: 845044.5488 | G29: 542871.4911 | H29: 215 | I29: 581420.9343 | J29: 1949744.324 | K29: 2783016 | L29: =IF($A30="","",IF($H$3="YES",VLOOKUP(OFFSET(A30,N29,0),Calendar!$A$2:$C$10000,3,FALSE),1)) -> 1 | M29: =IF(A30="","",IF(VLOOKUP(A29,Calendar!A:E,5,FALSE)=0,"",CEILING(L29*CEILING(MAX(OFFSET(K29,N29,0),OFFSET(J29,N29,0)),roundto),roundto)+add_margin)) -> 2840000 | N29: =IF(INDIRECT("Calendar!E"&MATCH($A29,Calendar!A:A,0)-1),0,IF(INDIRECT("Calendar!E"&MATCH($A29,Calendar!A:A,0)-2),1,2)) -> 0
A30: 2022-02-25 | B30: 695014 | C30: 474965 | D30: 695014 | E30: 474965 | F30: 843933.8884 | G30: 545118.2309 | H30: 215 | I30: 583827.2157 | J30: 1953205.598 | K30: 2783016 | L30: =IF($A31="","",IF($H$3="YES",VLOOKUP(OFFSET(A31,N30,0),Calendar!$A$2:$C$10000,3,FALSE),1)) -> 1 | M30: =IF(A31="","",IF(VLOOKUP(A30,Calendar!A:E,5,FALSE)=0,"",CEILING(L30*CEILING(MAX(OFFSET(K30,N30,0),OFFSET(J30,N30,0)),roundto),roundto)+add_margin)) -> 2840000 | N30: =IF(INDIRECT("Calendar!E"&MATCH($A30,Calendar!A:A,0)-1),0,IF(INDIRECT("Calendar!E"&MATCH($A30,Calendar!A:A,0)-2),1,2)) -> 0
A31: 2022-02-24 | B31: 884049 | C31: 587569 | D31: 884049 | E31: 587569 | F31: 843160.6326 | G31: 546527.6173 | H31: 215 | I31: 585336.6829 | J31: 1955300.33 | K31: 2783016 | L31: =IF($A32="","",IF($H$3="YES",VLOOKUP(OFFSET(A32,N31,0),Calendar!$A$2:$C$10000,3,FALSE),1)) -> 1 | M31: =IF(A32="","",IF(VLOOKUP(A31,Calendar!A:E,5,FALSE)=0,"",CEILING(L31*CEILING(MAX(OFFSET(K31,N31,0),OFFSET(J31,N31,0)),roundto),roundto)+add_margin)) -> 2840000 | N31: =IF(INDIRECT("Calendar!E"&MATCH($A31,Calendar!A:A,0)-1),0,IF(INDIRECT("Calendar!E"&MATCH($A31,Calendar!A:A,0)-2),1,2)) -> 0
A32: 2022-02-23 | B32: 1144105 | C32: 715273 | D32: 1144105 | E32: 715273 | F32: 840939.9674 | G32: 544389.0454 | H32: 215 | I32: 583046.2505 | J32: 1948727.843 | K32: 2783016 | L32: =IF($A33="","",IF($H$3="YES",VLOOKUP(OFFSET(A33,N32,0),Calendar!$A$2:$C$10000,3,FALSE),1)) -> 1 | M32: =IF(A33="","",IF(VLOOKUP(A32,Calendar!A:E,5,FALSE)=0,"",CEILING(L32*CEILING(MAX(OFFSET(K32,N32,0),OFFSET(J32,N32,0)),roundto),roundto)+add_margin)) -> 2840000 | N32: =IF(INDIRECT("Calendar!E"&MATCH($A32,Calendar!A:A,0)-1),0,IF(INDIRECT("Calendar!E"&MATCH($A32,Calendar!A:A,0)-2),1,2)) -> 0
A33: 2022-02-22 | B33: 1575066 | C33: 1063504 | D33: 1575066 | E33: 1063504 | F33: 837869.6744 | G33: 548696.3793 | H33: 215 | I33: 587659.4493 | J33: 1954422.628 | K33: 3581795.2 | L33: =IF($A34="","",IF($H$3="YES",VLOOKUP(OFFSET(A34,N33,0),Calendar!$A$2:$C$10000,3,FALSE),1)) -> 1 | M33: =IF(A34="","",IF(VLOOKUP(A33,Calendar!A:E,5,FALSE)=0,"",CEILING(L33*CEILING(MAX(OFFSET(K33,N33,0),OFFSET(J33,N33,0)),roundto),roundto)+add_margin)) -> 3640000 | N33: =IF(INDIRECT("Calendar!E"&MATCH($A33,Calendar!A:A,0)-1),0,IF(INDIRECT("Calendar!E"&MATCH($A33,Calendar!A:A,0)-2),1,2)) -> 0
A34: 2022-02-21 | B34: 1217077 | C34: 310029 | D34: 1217077 | E34: 310029 | F34: 840061.5953 | G34: 549364.1045 | H34: 215 | I34: 588374.5899 | J34: 1957973.316 | K34: 3581795.2 | L34: =IF($A35="","",IF($H$3="YES",VLOOKUP(OFFSET(A35,N34,0),Calendar!$A$2:$C$10000,3,FALSE),1)) -> 1 | M34: =IF(A35="","",IF(VLOOKUP(A34,Calendar!A:E,5,FALSE)=0,"",CEILING(L34*CEILING(MAX(OFFSET(K34,N34,0),OFFSET(J34,N34,0)),roundto),roundto)+add_margin)) -> 3640000 | N34: =IF(INDIRECT("Calendar!E"&MATCH($A34,Calendar!A:A,0)-1),0,IF(INDIRECT("Calendar!E"&MATCH($A34,Calendar!A:A,0)-2),1,2)) -> 0
A35: 2022-02-18 | B35: 410225 | C35: 301574 | D35: 410225 | E35: 301574 | F35: 839145.6186 | G35: 550507.187 | H35: 215 | I35: 589598.8429 | J35: 1959383.42 | K35: 3581795.2 | L35: =IF($A36="","",IF($H$3="YES",VLOOKUP(OFFSET(A36,N35,0),Calendar!$A$2:$C$10000,3,FALSE),1)) -> 1 | M35: =IF(A36="","",IF(VLOOKUP(A35,Calendar!A:E,5,FALSE)=0,"",CEILING(L35*CEILING(MAX(OFFSET(K35,N35,0),OFFSET(J35,N35,0)),roundto),roundto)+add_margin)) -> 3640000 | N35: =IF(INDIRECT("Calendar!E"&MATCH($A35,Calendar!A:A,0)-1),0,IF(INDIRECT("Calendar!E"&MATCH($A35,Calendar!A:A,0)-2),1,2)) -> 0
A36: 2022-02-17 | B36: 626020 | C36: 483621 | D36: 626020 | E36: 483621 | F36: 836444.3535 | G36: 554846.7977 | H36: 215 | I36: 594246.6105 | J36: 1965512.913 | K36: 3581795.2 | L36: =IF($A37="","",IF($H$3="YES",VLOOKUP(OFFSET(A37,N36,0),Calendar!$A$2:$C$10000,3,FALSE),1)) -> 1 | M36: =IF(A37="","",IF(VLOOKUP(A36,Calendar!A:E,5,FALSE)=0,"",CEILING(L36*CEILING(MAX(OFFSET(K36,N36,0),OFFSET(J36,N36,0)),roundto),roundto)+add_margin)) -> 3640000 | N36: =IF(INDIRECT("Calendar!E"&MATCH($A36,Calendar!A:A,0)-1),0,IF(INDIRECT("Calendar!E"&MATCH($A36,Calendar!A:A,0)-2),1,2)) -> 0
A37: 2022-02-16 | B37: 580668 | C37: 333994 | D37: 580668 | E37: 333994 | F37: 835488.0279 | G37: 555965.0442 | H37: 215 | I37: 595444.264 | J37: 1966832.129 | K37: 3581795.2 | L37: =IF($A38="","",IF($H$3="YES",VLOOKUP(OFFSET(A38,N37,0),Calendar!$A$2:$C$10000,3,FALSE),1)) -> 1 | M37: =IF(A38="","",IF(VLOOKUP(A37,Calendar!A:E,5,FALSE)=0,"",CEILING(L37*CEILING(MAX(OFFSET(K37,N37,0),OFFSET(J37,N37,0)),roundto),roundto)+add_margin)) -> 3640000 | N37: =IF(INDIRECT("Calendar!E"&MATCH($A37,Calendar!A:A,0)-1),0,IF(INDIRECT("Calendar!E"&MATCH($A37,Calendar!A:A,0)-2),1,2)) -> 0
A38: 2022-02-15 | B38: 743322 | C38: 628866 | D38: 743322 | E38: 628866 | F38: 832089.6977 | G38: 562266.9374 | H38: 215 | I38: 602193.6562 | J38: 1976257.644 | K38: 3581795.2 | L38: =IF($A39="","",IF($H$3="YES",VLOOKUP(OFFSET(A39,N38,0),Calendar!$A$2:$C$10000,3,FALSE),1)) -> 1 | M38: =IF(A39="","",IF(VLOOKUP(A38,Calendar!A:E,5,FALSE)=0,"",CEILING(L38*CEILING(MAX(OFFSET(K38,N38,0),OFFSET(J38,N38,0)),roundto),roundto)+add_margin)) -> 3640000 | N38: =IF(INDIRECT("Calendar!E"&MATCH($A38,Calendar!A:A,0)-1),0,IF(INDIRECT("Calendar!E"&MATCH($A38,Calendar!A:A,0)-2),1,2)) -> 0
A39: 2022-02-14 | B39: 656513 | C39: 254069 | D39: 656513 | E39: 254069 | F39: 831369.4791 | G39: 563624.5824 | H39: 215 | I39: 603647.7079 | J39: 1978300.124 | K39: 3581795.2 | L39: =IF($A40="","",IF($H$3="YES",VLOOKUP(OFFSET(A40,N39,0),Calendar!$A$2:$C$10000,3,FALSE),1)) -> 1 | M39: =IF(A40="","",IF(VLOOKUP(A39,Calendar!A:E,5,FALSE)=0,"",CEILING(L39*CEILING(MAX(OFFSET(K39,N39,0),OFFSET(J39,N39,0)),roundto),roundto)+add_margin)) -> 3640000 | N39: =IF(INDIRECT("Calendar!E"&MATCH($A39,Calendar!A:A,0)-1),0,IF(INDIRECT("Calendar!E"&MATCH($A39,Calendar!A:A,0)-2),1,2)) -> 0
A40: 2022-02-11 | B40: 248557 | C40: 144410 | D40: 248557 | E40: 144410 | F40: 831170.2558 | G40: 563926.2337 | H40: 215 | I40: 603970.7796 | J40: 1978714.737 | K40: 3581795.2 | L40: =IF($A41="","",IF($H$3="YES",VLOOKUP(OFFSET(A41,N40,0),Calendar!$A$2:$C$10000,3,FALSE),1)) -> 1 | M40: =IF(A41="","",IF(VLOOKUP(A40,Calendar!A:E,5,FALSE)=0,"",CEILING(L40*CEILING(MAX(OFFSET(K40,N40,0),OFFSET(J40,N40,0)),roundto),roundto)+add_margin)) -> 3640000 | N40: =IF(INDIRECT("Calendar!E"&MATCH($A40,Calendar!A:A,0)-1),0,IF(INDIRECT("Calendar!E"&MATCH($A40,Calendar!A:A,0)-2),1,2)) -> 0
A41: 2022-02-10 | B41: 165393 | C41: 44105 | D41: 165393 | E41: 44105 | F41: 832233.3488 | G41: 560874.9652 | H41: 215 | I41: 600702.8397 | J41: 1973568.744 | K41: 3581795.2 | L41: =IF($A42="","",IF($H$3="YES",VLOOKUP(OFFSET(A42,N41,0),Calendar!$A$2:$C$10000,3,FALSE),1)) -> 1 | M41: =IF(A42="","",IF(VLOOKUP(A41,Calendar!A:E,5,FALSE)=0,"",CEILING(L41*CEILING(MAX(OFFSET(K41,N41,0),OFFSET(J41,N41,0)),roundto),roundto)+add_margin)) -> 3640000 | N41: =IF(INDIRECT("Calendar!E"&MATCH($A41,Calendar!A:A,0)-1),0,IF(INDIRECT("Calendar!E"&MATCH($A41,Calendar!A:A,0)-2),1,2)) -> 0
A42: 2022-02-09 | B42: 123163 | C42: 106375 | D42: 123163 | E42: 106375 | F42: 833384.6047 | G42: 558372.6727 | H42: 215 | I42: 598022.8588 | J42: 1969628.036 | K42: 3581795.2 | L42: =IF($A43="","",IF($H$3="YES",VLOOKUP(OFFSET(A43,N42,0),Calendar!$A$2:$C$10000,3,FALSE),1)) -> 1 | M42: =IF(A43="","",IF(VLOOKUP(A42,Calendar!A:E,5,FALSE)=0,"",CEILING(L42*CEILING(MAX(OFFSET(K42,N42,0),OFFSET(J42,N42,0)),roundto),roundto)+add_margin)) -> 3640000 | N42: =IF(INDIRECT("Calendar!E"&MATCH($A42,Calendar!A:A,0)-1),0,IF(INDIRECT("Calendar!E"&MATCH($A42,Calendar!A:A,0)-2),1,2)) -> 0
A43: 2022-02-08 | B43: 713075 | C43: 711429 | D43: 713075 | E43: 711429 | F43: 833963.1302 | G43: 563441.9821 | H43: 215 | I43: 603452.1412 | J43: 1980522.198 | K43: 3581795.2 | L43: =IF($A44="","",IF($H$3="YES",VLOOKUP(OFFSET(A44,N43,0),Calendar!$A$2:$C$10000,3,FALSE),1)) -> 1 | M43: =IF(A44="","",IF(VLOOKUP(A43,Calendar!A:E,5,FALSE)=0,"",CEILING(L43*CEILING(MAX(OFFSET(K43,N43,0),OFFSET(J43,N43,0)),roundto),roundto)+add_margin)) -> 3640000 | N43: =IF(INDIRECT("Calendar!E"&MATCH($A43,Calendar!A:A,0)-1),0,IF(INDIRECT("Calendar!E"&MATCH($A43,Calendar!A:A,0)-2),1,2)) -> 0
A44: 2022-02-07 | B44: 972766 | C44: 357968 | D44: 972766 | E44: 357968 | F44: 838211.9628 | G44: 564598.3957 | H44: 215 | I44: 604690.672 | J44: 1987124.24 | K44: 3581795.2 | L44: =IF($A45="","",IF($H$3="YES",VLOOKUP(OFFSET(A45,N44,0),Calendar!$A$2:$C$10000,3,FALSE),1)) -> 1 | M44: =IF(A45="","",IF(VLOOKUP(A44,Calendar!A:E,5,FALSE)=0,"",CEILING(L44*CEILING(MAX(OFFSET(K44,N44,0),OFFSET(J44,N44,0)),roundto),roundto)+add_margin)) -> 3640000 | N44: =IF(INDIRECT("Calendar!E"&MATCH($A44,Calendar!A:A,0)-1),0,IF(INDIRECT("Calendar!E"&MATCH($A44,Calendar!A:A,0)-2),1,2)) -> 0
A45: 2022-02-04 | B45: 428502 | C45: 309315 | D45: 428502 | E45: 309315 | F45: 837879.0093 | G45: 566351.7966 | H45: 215 | I45: 606568.5823 | J45: 1990359.316 | K45: 3581795.2 | L45: =IF($A46="","",IF($H$3="YES",VLOOKUP(OFFSET(A46,N45,0),Calendar!$A$2:$C$10000,3,FALSE),1)) -> 1 | M45: =IF(A46="","",IF(VLOOKUP(A45,Calendar!A:E,5,FALSE)=0,"",CEILING(L45*CEILING(MAX(OFFSET(K45,N45,0),OFFSET(J45,N45,0)),roundto),roundto)+add_margin)) -> 3640000 | N45: =IF(INDIRECT("Calendar!E"&MATCH($A45,Calendar!A:A,0)-1),0,IF(INDIRECT("Calendar!E"&MATCH($A45,Calendar!A:A,0)-2),1,2)) -> 0
A46: 2022-02-03 | B46: 615845 | C46: 391934 | D46: 615845 | E46: 391934 | F46: 837739.893 | G46: 568886.0582 | H46: 215 | I46: 609282.8025 | J46: 1995377.218 | K46: 3581795.2 | L46: =IF($A47="","",IF($H$3="YES",VLOOKUP(OFFSET(A47,N46,0),Calendar!$A$2:$C$10000,3,FALSE),1)) -> 1 | M46: =IF(A47="","",IF(VLOOKUP(A46,Calendar!A:E,5,FALSE)=0,"",CEILING(L46*CEILING(MAX(OFFSET(K46,N46,0),OFFSET(J46,N46,0)),roundto),roundto)+add_margin)) -> 3640000 | N46: =IF(INDIRECT("Calendar!E"&MATCH($A46,Calendar!A:A,0)-1),0,IF(INDIRECT("Calendar!E"&MATCH($A46,Calendar!A:A,0)-2),1,2)) -> 0
A47: 2022-02-02 | B47: 695085 | C47: 411384 | D47: 695085 | E47: 411384 | F47: 836292.1209 | G47: 568796.4731 | H47: 215 | I47: 609186.8559 | J47: 1993747.147 | K47: 3581795.2 | L47: =IF($A48="","",IF($H$3="YES",VLOOKUP(OFFSET(A48,N47,0),Calendar!$A$2:$C$10000,3,FALSE),1)) -> 1 | M47: =IF(A48="","",IF(VLOOKUP(A47,Calendar!A:E,5,FALSE)=0,"",CEILING(L47*CEILING(MAX(OFFSET(K47,N47,0),OFFSET(J47,N47,0)),roundto),roundto)+add_margin)) -> 3640000 | N47: =IF(INDIRECT("Calendar!E"&MATCH($A47,Calendar!A:A,0)-1),0,IF(INDIRECT("Calendar!E"&MATCH($A47,Calendar!A:A,0)-2),1,2)) -> 0
A48: 2022-02-01 | B48: 1300802 | C48: 1041538 | D48: 1300802 | E48: 1041538 | F48: 832405.8558 | G48: 564003.2607 | H48: 215 | I48: 604053.2763 | J48: 1980107.081 | K48: 3581795.2 | L48: =IF($A49="","",IF($H$3="YES",VLOOKUP(OFFSET(A49,N48,0),Calendar!$A$2:$C$10000,3,FALSE),1)) -> 1 | M48: =IF(A49="","",IF(VLOOKUP(A48,Calendar!A:E,5,FALSE)=0,"",CEILING(L48*CEILING(MAX(OFFSET(K48,N48,0),OFFSET(J48,N48,0)),roundto),roundto)+add_margin)) -> 3640000 | N48: =IF(INDIRECT("Calendar!E"&MATCH($A48,Calendar!A:A,0)-1),0,IF(INDIRECT("Calendar!E"&MATCH($A48,Calendar!A:A,0)-2),1,2)) -> 0
A49: 2022-01-31 | B49: 1739385 | C49: 825822 | D49: 1739385 | E49: 825822 | F49: 835561.1488 | G49: 563682.649 | H49: 215 | I49: 603709.8979 | J49: 1982609.955 | K49: 3581795.2 | L49: =IF($A50="","",IF($H$3="YES",VLOOKUP(OFFSET(A50,N49,0),Calendar!$A$2:$C$10000,3,FALSE),1)) -> 1 | M49: =IF(A50="","",IF(VLOOKUP(A49,Calendar!A:E,5,FALSE)=0,"",CEILING(L49*CEILING(MAX(OFFSET(K49,N49,0),OFFSET(J49,N49,0)),roundto),roundto)+add_margin)) -> 3640000 | N49: =IF(INDIRECT("Calendar!E"&MATCH($A49,Calendar!A:A,0)-1),0,IF(INDIRECT("Calendar!E"&MATCH($A49,Calendar!A:A,0)-2),1,2)) -> 0
A50: 2022-01-28 | B50: 1495665 | C50: 996898 | D50: 1495665 | E50: 996898 | F50: 832489.8977 | G50: 569634.7437 | H50: 215 | I50: 610084.6523 | J50: 1991650.737 | K50: 3581795.2 | L50: =IF($A51="","",IF($H$3="YES",VLOOKUP(OFFSET(A51,N50,0),Calendar!$A$2:$C$10000,3,FALSE),1)) -> 1 | M50: =IF(A51="","",IF(VLOOKUP(A50,Calendar!A:E,5,FALSE)=0,"",CEILING(L50*CEILING(MAX(OFFSET(K50,N50,0),OFFSET(J50,N50,0)),roundto),roundto)+add_margin)) -> 3640000 | N50: =IF(INDIRECT("Calendar!E"&MATCH($A50,Calendar!A:A,0)-1),0,IF(INDIRECT("Calendar!E"&MATCH($A50,Calendar!A:A,0)-2),1,2)) -> 0
A51: 2022-01-27 | B51: 920419 | C51: 299301 | D51: 920419 | E51: 299301 | F51: 834671.9349 | G51: 569350.1955 | H51: 215 | I51: 609779.8983 | J51: 1993253.742 | K51: 3581795.2 | L51: =IF($A52="","",IF($H$3="YES",VLOOKUP(OFFSET(A52,N51,0),Calendar!$A$2:$C$10000,3,FALSE),1)) -> 1 | M51: =IF(A52="","",IF(VLOOKUP(A51,Calendar!A:E,5,FALSE)=0,"",CEILING(L51*CEILING(MAX(OFFSET(K51,N51,0),OFFSET(J51,N51,0)),roundto),roundto)+add_margin)) -> 3640000 | N51: =IF(INDIRECT("Calendar!E"&MATCH($A51,Calendar!A:A,0)-1),0,IF(INDIRECT("Calendar!E"&MATCH($A51,Calendar!A:A,0)-2),1,2)) -> 0
A52: 2022-01-26 | B52: 506366 | C52: 489028 | D52: 506366 | E52: 489028 | F52: 834080.8558 | G52: 568353.9544 | H52: 215 | I52: 608712.9138 | J52: 1990635.392 | K52: 3581795.2 | L52: =IF($A53="","",IF($H$3="YES",VLOOKUP(OFFSET(A53,N52,0),Calendar!$A$2:$C$10000,3,FALSE),1)) -> 1 | M52: =IF(A53="","",IF(VLOOKUP(A52,Calendar!A:E,5,FALSE)=0,"",CEILING(L52*CEILING(MAX(OFFSET(K52,N52,0),OFFSET(J52,N52,0)),roundto),roundto)+add_margin)) -> 3640000 | N52: =IF(INDIRECT("Calendar!E"&MATCH($A52,Calendar!A:A,0)-1),0,IF(INDIRECT("Calendar!E"&MATCH($A52,Calendar!A:A,0)-2),1,2)) -> 0
A53: 2022-01-25 | B53: 1508966 | C53: 1245077 | D53: 1508966 | E53: 1245077 | F53: 829224.186 | G53: 572457.0956 | H53: 215 | I53: 613107.4201 | J53: 1994128.284 | K53: 3581795.2 | L53: =IF($A54="","",IF($H$3="YES",VLOOKUP(OFFSET(A54,N53,0),Calendar!$A$2:$C$10000,3,FALSE),1)) -> 1 | M53: =IF(A54="","",IF(VLOOKUP(A53,Calendar!A:E,5,FALSE)=0,"",CEILING(L53*CEILING(MAX(OFFSET(K53,N53,0),OFFSET(J53,N53,0)),roundto),roundto)+add_margin)) -> 3640000 | N53: =IF(INDIRECT("Calendar!E"&MATCH($A53,Calendar!A:A,0)-1),0,IF(INDIRECT("Calendar!E"&MATCH($A53,Calendar!A:A,0)-2),1,2)) -> 0
A54: 2022-01-24 | B54: 1090451 | C54: 314357 | D54: 1090451 | E54: 314357 | F54: 832571.8 | G54: 573669.4254 | H54: 215 | I54: 614405.8378 | J54: 1999942.892 | K54: 3581795.2 | L54: =IF($A55="","",IF($H$3="YES",VLOOKUP(OFFSET(A55,N54,0),Calendar!$A$2:$C$10000,3,FALSE),1)) -> 1 | M54: =IF(A55="","",IF(VLOOKUP(A54,Calendar!A:E,5,FALSE)=0,"",CEILING(L54*CEILING(MAX(OFFSET(K54,N54,0),OFFSET(J54,N54,0)),roundto),roundto)+add_margin)) -> 3640000 | N54: =IF(INDIRECT("Calendar!E"&MATCH($A54,Calendar!A:A,0)-1),0,IF(INDIRECT("Calendar!E"&MATCH($A54,Calendar!A:A,0)-2),1,2)) -> 0
A55: 2022-01-21 | B55: 298362 | C55: 171660 | D55: 298362 | E55: 171660 | F55: 833119.893 | G55: 572958.8615 | H55: 215 | I55: 613644.8166 | J55: 1999045.045 | K55: 3581795.2 | L55: =IF($A56="","",IF($H$3="YES",VLOOKUP(OFFSET(A56,N55,0),Calendar!$A$2:$C$10000,3,FALSE),1)) -> 1 | M55: =IF(A56="","",IF(VLOOKUP(A55,Calendar!A:E,5,FALSE)=0,"",CEILING(L55*CEILING(MAX(OFFSET(K55,N55,0),OFFSET(J55,N55,0)),roundto),roundto)+add_margin)) -> 3640000 | N55: =IF(INDIRECT("Calendar!E"&MATCH($A55,Calendar!A:A,0)-1),0,IF(INDIRECT("Calendar!E"&MATCH($A55,Calendar!A:A,0)-2),1,2)) -> 0
A56: 2022-01-20 | B56: 493521 | C56: 412646 | D56: 493521 | E56: 412646 | F56: 832790.0744 | G56: 573903.5348 | H56: 215 | I56: 614656.5714 | J56: 2000637.56 | K56: 3581795.2 | L56: =IF($A57="","",IF($H$3="YES",VLOOKUP(OFFSET(A57,N56,0),Calendar!$A$2:$C$10000,3,FALSE),1)) -> 1 | M56: =IF(A57="","",IF(VLOOKUP(A56,Calendar!A:E,5,FALSE)=0,"",CEILING(L56*CEILING(MAX(OFFSET(K56,N56,0),OFFSET(J56,N56,0)),roundto),roundto)+add_margin)) -> 3640000 | N56: =IF(INDIRECT("Calendar!E"&MATCH($A56,Calendar!A:A,0)-1),0,IF(INDIRECT("Calendar!E"&MATCH($A56,Calendar!A:A,0)-2),1,2)) -> 0
A57: 2022-01-19 | B57: 1025796 | C57: 760015 | D57: 1025796 | E57: 760015 | F57: 829113.1814 | G57: 578212.234 | H57: 215 | I57: 619271.2324 | J57: 2005728.523 | K57: 3581795.2 | L57: =IF($A58="","",IF($H$3="YES",VLOOKUP(OFFSET(A58,N57,0),Calendar!$A$2:$C$10000,3,FALSE),1)) -> 1 | M57: =IF(A58="","",IF(VLOOKUP(A57,Calendar!A:E,5,FALSE)=0,"",CEILING(L57*CEILING(MAX(OFFSET(K57,N57,0),OFFSET(J57,N57,0)),roundto),roundto)+add_margin)) -> 3640000 | N57: =IF(INDIRECT("Calendar!E"&MATCH($A57,Calendar!A:A,0)-1),0,IF(INDIRECT("Calendar!E"&MATCH($A57,Calendar!A:A,0)-2),1,2)) -> 0
A58: 2022-01-18 | B58: 1064666 | C58: 487404 | D58: 1064666 | E58: 487404 | F58: 827349.6326 | G58: 582064.5394 | H58: 215 | I58: 623397.091 | J58: 2011804.105 | K58: 3936224 | L58: =IF($A59="","",IF($H$3="YES",VLOOKUP(OFFSET(A59,N58,0),Calendar!$A$2:$C$10000,3,FALSE),1)) -> 1 | M58: =IF(A59="","",IF(VLOOKUP(A58,Calendar!A:E,5,FALSE)=0,"",CEILING(L58*CEILING(MAX(OFFSET(K58,N58,0),OFFSET(J58,N58,0)),roundto),roundto)+add_margin)) -> 3990000 | N58: =IF(INDIRECT("Calendar!E"&MATCH($A58,Calendar!A:A,0)-1),0,IF(INDIRECT("Calendar!E"&MATCH($A58,Calendar!A:A,0)-2),1,2)) -> 0
A59: 2022-01-17 | B59: 776991 | C59: 423471 | D59: 776991 | E59: 423471 | F59: 832236.0651 | G59: 583171.4916 | H59: 215 | I59: 624582.6482 | J59: 2018943.097 | K59: 3953004.8 | L59: =IF($A60="","",IF($H$3="YES",VLOOKUP(OFFSET(A60,N59,0),Calendar!$A$2:$C$10000,3,FALSE),1)) -> 1 | M59: =IF(A60="","",IF(VLOOKUP(A59,Calendar!A:E,5,FALSE)=0,"",CEILING(L59*CEILING(MAX(OFFSET(K59,N59,0),OFFSET(J59,N59,0)),roundto),roundto)+add_margin)) -> 4010000 | N59: =IF(INDIRECT("Calendar!E"&MATCH($A59,Calendar!A:A,0)-1),0,IF(INDIRECT("Calendar!E"&MATCH($A59,Calendar!A:A,0)-2),1,2)) -> 0
A60: 2022-01-14 | B60: 734205 | C60: 654561 | D60: 734205 | E60: 654561 | F60: 832747.0605 | G60: 586569.0612 | H60: 215 | I60: 628221.48 | J60: 2026367.873 | K60: 3953004.8 | L60: =IF($A61="","",IF($H$3="YES",VLOOKUP(OFFSET(A61,N60,0),Calendar!$A$2:$C$10000,3,FALSE),1)) -> 1 | M60: =IF(A61="","",IF(VLOOKUP(A60,Calendar!A:E,5,FALSE)=0,"",CEILING(L60*CEILING(MAX(OFFSET(K60,N60,0),OFFSET(J60,N60,0)),roundto),roundto)+add_margin)) -> 4010000 | N60: =IF(INDIRECT("Calendar!E"&MATCH($A60,Calendar!A:A,0)-1),0,IF(INDIRECT("Calendar!E"&MATCH($A60,Calendar!A:A,0)-2),1,2)) -> 0
A61: 2022-01-13 | B61: 902164 | C61: 540256 | D61: 902164 | E61: 540256 | F61: 834509.2744 | G61: 587285.1306 | H61: 215 | I61: 628988.3977 | J61: 2029587.23 | K61: 3953004.8 | L61: =IF($A62="","",IF($H$3="YES",VLOOKUP(OFFSET(A62,N61,0),Calendar!$A$2:$C$10000,3,FALSE),1)) -> 1 | M61: =IF(A62="","",IF(VLOOKUP(A61,Calendar!A:E,5,FALSE)=0,"",CEILING(L61*CEILING(MAX(OFFSET(K61,N61,0),OFFSET(J61,N61,0)),roundto),roundto)+add_margin)) -> 4010000 | N61: =IF(INDIRECT("Calendar!E"&MATCH($A61,Calendar!A:A,0)-1),0,IF(INDIRECT("Calendar!E"&MATCH($A61,Calendar!A:A,0)-2),1,2)) -> 0
A62: 2022-01-12 | B62: 1333530 | C62: 1202454 | D62: 1333530 | E62: 1202454 | F62: 830294.6744 | G62: 576492.9007 | H62: 215 | I62: 617429.8088 | J62: 2003411.311 | K62: 3953004.8 | L62: =IF($A63="","",IF($H$3="YES",VLOOKUP(OFFSET(A63,N62,0),Calendar!$A$2:$C$10000,3,FALSE),1)) -> 1 | M62: =IF(A63="","",IF(VLOOKUP(A62,Calendar!A:E,5,FALSE)=0,"",CEILING(L62*CEILING(MAX(OFFSET(K62,N62,0),OFFSET(J62,N62,0)),roundto),roundto)+add_margin)) -> 4010000 | N62: =IF(INDIRECT("Calendar!E"&MATCH($A62,Calendar!A:A,0)-1),0,IF(INDIRECT("Calendar!E"&MATCH($A62,Calendar!A:A,0)-2),1,2)) -> 0
A63: 2022-01-11 | B63: 2238622 | C63: 1611184 | D63: 2238622 | E63: 1611184 | F63: 822744.7721 | G63: 570476.8015 | H63: 215 | I63: 610986.5049 | J63: 1983619.131 | K63: 3953004.8 | L63: =IF($A64="","",IF($H$3="YES",VLOOKUP(OFFSET(A64,N63,0),Calendar!$A$2:$C$10000,3,FALSE),1)) -> 1 | M63: =IF(A64="","",IF(VLOOKUP(A63,Calendar!A:E,5,FALSE)=0,"",CEILING(L63*CEILING(MAX(OFFSET(K63,N63,0),OFFSET(J63,N63,0)),roundto),roundto)+add_margin)) -> 4010000 | N63: =IF(INDIRECT("Calendar!E"&MATCH($A63,Calendar!A:A,0)-1),0,IF(INDIRECT("Calendar!E"&MATCH($A63,Calendar!A:A,0)-2),1,2)) -> 0
A64: 2022-01-10 | B64: 1637678 | C64: 373375 | D64: 1637678 | E64: 373375 | F64: 827611.7488 | G64: 572927.2661 | H64: 215 | I64: 613610.9776 | J64: 1993472.606 | K64: 3953004.8 | L64: =IF($A65="","",IF($H$3="YES",VLOOKUP(OFFSET(A65,N64,0),Calendar!$A$2:$C$10000,3,FALSE),1)) -> 1 | M64: =IF(A65="","",IF(VLOOKUP(A64,Calendar!A:E,5,FALSE)=0,"",CEILING(L64*CEILING(MAX(OFFSET(K64,N64,0),OFFSET(J64,N64,0)),roundto),roundto)+add_margin)) -> 4010000 | N64: =IF(INDIRECT("Calendar!E"&MATCH($A64,Calendar!A:A,0)-1),0,IF(INDIRECT("Calendar!E"&MATCH($A64,Calendar!A:A,0)-2),1,2)) -> 0
A65: 2022-01-07 | B65: 489865 | C65: 286974 | D65: 489865 | E65: 286974 | F65: 831349.214 | G65: 573363.8569 | H65: 215 | I65: 614078.5708 | J65: 1998098.498 | K65: 3953004.8 | L65: =IF($A66="","",IF($H$3="YES",VLOOKUP(OFFSET(A66,N65,0),Calendar!$A$2:$C$10000,3,FALSE),1)) -> 1 | M65: =IF(A66="","",IF(VLOOKUP(A65,Calendar!A:E,5,FALSE)=0,"",CEILING(L65*CEILING(MAX(OFFSET(K65,N65,0),OFFSET(J65,N65,0)),roundto),roundto)+add_margin)) -> 4010000 | N65: =IF(INDIRECT("Calendar!E"&MATCH($A65,Calendar!A:A,0)-1),0,IF(INDIRECT("Calendar!E"&MATCH($A65,Calendar!A:A,0)-2),1,2)) -> 0
A66: 2022-01-06 | B66: 245244 | C66: 162842 | D66: 245244 | E66: 162842 | F66: 837038.493 | G66: 570839.7978 | H66: 215 | I66: 611375.2776 | J66: 1998651.521 | K66: 3953004.8 | L66: =IF($A67="","",IF($H$3="YES",VLOOKUP(OFFSET(A67,N66,0),Calendar!$A$2:$C$10000,3,FALSE),1)) -> 1 | M66: =IF(A67="","",IF(VLOOKUP(A66,Calendar!A:E,5,FALSE)=0,"",CEILING(L66*CEILING(MAX(OFFSET(K66,N66,0),OFFSET(J66,N66,0)),roundto),roundto)+add_margin)) -> 4010000 | N66: =IF(INDIRECT("Calendar!E"&MATCH($A66,Calendar!A:A,0)-1),0,IF(INDIRECT("Calendar!E"&MATCH($A66,Calendar!A:A,0)-2),1,2)) -> 0
A67: 2022-01-05 | B67: 576536 | C67: 612163 | D67: 576536 | E67: 612163 | F67: 838182.893 | G67: 573112.807 | H67: 215 | I67: 613809.6938 | J67: 2004421.311 | K67: 3953004.8 | L67: =IF($A68="","",IF($H$3="YES",VLOOKUP(OFFSET(A68,N67,0),Calendar!$A$2:$C$10000,3,FALSE),1)) -> 1 | M67: =IF(A68="","",IF(VLOOKUP(A67,Calendar!A:E,5,FALSE)=0,"",CEILING(L67*CEILING(MAX(OFFSET(K67,N67,0),OFFSET(J67,N67,0)),roundto),roundto)+add_margin)) -> 4010000 | N67: =IF(INDIRECT("Calendar!E"&MATCH($A67,Calendar!A:A,0)-1),0,IF(INDIRECT("Calendar!E"&MATCH($A67,Calendar!A:A,0)-2),1,2)) -> 0
A68: 2022-01-04 | B68: 920563 | C68: 976776 | D68: 920563 | E68: 976776 | F68: 834978.6093 | G68: 577336.2427 | H68: 215 | I68: 618333.0367 | J68: 2009811.379 | K68: 3953004.8 | L68: =IF($A69="","",IF($H$3="YES",VLOOKUP(OFFSET(A69,N68,0),Calendar!$A$2:$C$10000,3,FALSE),1)) -> 1 | M68: =IF(A69="","",IF(VLOOKUP(A68,Calendar!A:E,5,FALSE)=0,"",CEILING(L68*CEILING(MAX(OFFSET(K68,N68,0),OFFSET(J68,N68,0)),roundto),roundto)+add_margin)) -> 4010000 | N68: =IF(INDIRECT("Calendar!E"&MATCH($A68,Calendar!A:A,0)-1),0,IF(INDIRECT("Calendar!E"&MATCH($A68,Calendar!A:A,0)-2),1,2)) -> 0
A69: 2022-01-03 | B69: 1106078 | C69: 430946 | D69: 1106078 | E69: 430946 | F69: 835497.3488 | G69: 578623.5716 | H69: 215 | I69: 619711.7792 | J69: 2012949.729 | K69: 3953004.8 | L69: =IF($A70="","",IF($H$3="YES",VLOOKUP(OFFSET(A70,N69,0),Calendar!$A$2:$C$10000,3,FALSE),1)) -> 1 | M69: =IF(A70="","",IF(VLOOKUP(A69,Calendar!A:E,5,FALSE)=0,"",CEILING(L69*CEILING(MAX(OFFSET(K69,N69,0),OFFSET(J69,N69,0)),roundto),roundto)+add_margin)) -> 4010000 | N69: =IF(INDIRECT("Calendar!E"&MATCH($A69,Calendar!A:A,0)-1),0,IF(INDIRECT("Calendar!E"&MATCH($A69,Calendar!A:A,0)-2),1,2)) -> 0
A70: 2021-12-31 | B70: 502617 | C70: 504279 | D70: 502617 | E70: 504279 | F70: 836134.9346 | G70: 581411.8012 | H70: 214 | I70: 622848.7243 | J70: 2019547.511 | K70: 3953004.8 | L70: =IF($A71="","",IF($H$3="YES",VLOOKUP(OFFSET(A71,N70,0),Calendar!$A$2:$C$10000,3,FALSE),1)) -> 1 | M70: =IF(A71="","",IF(VLOOKUP(A70,Calendar!A:E,5,FALSE)=0,"",CEILING(L70*CEILING(MAX(OFFSET(K70,N70,0),OFFSET(J70,N70,0)),roundto),roundto)+add_margin)) -> 4010000 | N70: =IF(INDIRECT("Calendar!E"&MATCH($A70,Calendar!A:A,0)-1),0,IF(INDIRECT("Calendar!E"&MATCH($A70,Calendar!A:A,0)-2),1,2)) -> 0
A71: 2021-12-30 | B71: 749778 | C71: 555003 | D71: 749778 | E71: 555003 | F71: 834015.7991 | G71: 585494.234 | H71: 214 | I71: 627222.11 | J71: 2025737.808 | K71: 3953004.8 | L71: =IF($A72="","",IF($H$3="YES",VLOOKUP(OFFSET(A72,N71,0),Calendar!$A$2:$C$10000,3,FALSE),1)) -> 1 | M71: =IF(A72="","",IF(VLOOKUP(A71,Calendar!A:E,5,FALSE)=0,"",CEILING(L71*CEILING(MAX(OFFSET(K71,N71,0),OFFSET(J71,N71,0)),roundto),roundto)+add_margin)) -> 4010000 | N71: =IF(INDIRECT("Calendar!E"&MATCH($A71,Calendar!A:A,0)-1),0,IF(INDIRECT("Calendar!E"&MATCH($A71,Calendar!A:A,0)-2),1,2)) -> 0
A72: 2021-12-29 | B72: 530542 | C72: 379485 | D72: 530542 | E72: 379485 | F72: 833140.3738 | G72: 587667.7979 | H72: 214 | I72: 629550.5826 | J72: 2029286.481 | K72: 3953004.8 | L72: =IF($A73="","",IF($H$3="YES",VLOOKUP(OFFSET(A73,N72,0),Calendar!$A$2:$C$10000,3,FALSE),1)) -> 1 | M72: =IF(A73="","",IF(VLOOKUP(A72,Calendar!A:E,5,FALSE)=0,"",CEILING(L72*CEILING(MAX(OFFSET(K72,N72,0),OFFSET(J72,N72,0)),roundto),roundto)+add_margin)) -> 4010000 | N72: =IF(INDIRECT("Calendar!E"&MATCH($A72,Calendar!A:A,0)-1),0,IF(INDIRECT("Calendar!E"&MATCH($A72,Calendar!A:A,0)-2),1,2)) -> 0
A73: 2021-12-28 | B73: 1303974 | C73: 1356436 | D73: 1303974 | E73: 1356436 | F73: 823276.5748 | G73: 583844.8634 | H73: 214 | I73: 625455.1896 | J73: 2011641.435 | K73: 3953004.8 | L73: =IF($A74="","",IF($H$3="YES",VLOOKUP(OFFSET(A74,N73,0),Calendar!$A$2:$C$10000,3,FALSE),1)) -> 1 | M73: =IF(A74="","",IF(VLOOKUP(A73,Calendar!A:E,5,FALSE)=0,"",CEILING(L73*CEILING(MAX(OFFSET(K73,N73,0),OFFSET(J73,N73,0)),roundto),roundto)+add_margin)) -> 4010000 | N73: =IF(INDIRECT("Calendar!E"&MATCH($A73,Calendar!A:A,0)-1),0,IF(INDIRECT("Calendar!E"&MATCH($A73,Calendar!A:A,0)-2),1,2)) -> 0
A74: 2021-12-27 | B74: 1668819 | C74: 639812 | D74: 1668819 | E74: 639812 | F74: 821574.4813 | G74: 587323.9991 | H74: 214 | I74: 629182.2816 | J74: 2017020.816 | K74: 3953004.8 | L74: =IF($A75="","",IF($H$3="YES",VLOOKUP(OFFSET(A75,N74,0),Calendar!$A$2:$C$10000,3,FALSE),1)) -> 1 | M74: =IF(A75="","",IF(VLOOKUP(A74,Calendar!A:E,5,FALSE)=0,"",CEILING(L74*CEILING(MAX(OFFSET(K74,N74,0),OFFSET(J74,N74,0)),roundto),roundto)+add_margin)) -> 4010000 | N74: =IF(INDIRECT("Calendar!E"&MATCH($A74,Calendar!A:A,0)-1),0,IF(INDIRECT("Calendar!E"&MATCH($A74,Calendar!A:A,0)-2),1,2)) -> 0
A75: 2021-12-24 | B75: 859618 | C75: 611591 | D75: 859618 | E75: =IF(C75>minIMSM,C75,"") -> 611591 | F75: =IF($A75="","",IFERROR((AVERAGE(E76,INDIRECT("D" & ROW(A77) & ":D" & ROW(A77) + window_size-2))),0)) -> 818307.6308 | G75: 590956.2483 | H75: 214 | I75: 633073.3993 | J75: =IF($A75="","",F75+alpha*I75) -> 2021147.09 | K75: =IF($A75="","",beta*MAX(E76,INDIRECT("B" & ROW(A77) & ":B" & ROW(A77) + window_size_max-2))) -> 3953004.8 | L75: =IF($A76="","",IF($H$3="YES",VLOOKUP(OFFSET(A76,N75,0),Calendar!$A$2:$C$10000,3,FALSE),1)) -> 1 | M75: =IF(A76="","",IF(VLOOKUP(A75,Calendar!A:E,5,FALSE)=0,"",CEILING(L75*CEILING(MAX(OFFSET(K75,N75,0),OFFSET(J75,N75,0)),roundto),roundto)+add_margin)) -> 4010000 | N75: =IF(INDIRECT("Calendar!E"&MATCH($A75,Calendar!A:A,0)-1),0,IF(INDIRECT("Calendar!E"&MATCH($A75,Calendar!A:A,0)-2),1,2)) -> 0
A76: 2021-12-23 | B76: 956969 | C76: 740737 | D76: =IF(B76>minIMSM,B76,"") -> 956969 | E76: 740737 | F76: 814969.229 | G76: 593338.5277 | H76: 214 | I76: 635625.4625 | J76: 2022657.608 | K76: 3953004.8 | L76: =IF($A77="","",IF($H$3="YES",VLOOKUP(OFFSET(A77,N76,0),Calendar!$A$2:$C$10000,3,FALSE),1)) -> 1 | M76: =IF(A77="","",IF(VLOOKUP(A76,Calendar!A:E,5,FALSE)=0,"",CEILING(L76*CEILING(MAX(OFFSET(K76,N76,0),OFFSET(J76,N76,0)),roundto),roundto)+add_margin)) -> 4010000 | N76: =IF(INDIRECT("Calendar!E"&MATCH($A76,Calendar!A:A,0)-1),0,IF(INDIRECT("Calendar!E"&MATCH($A76,Calendar!A:A,0)-2),1,2)) -> 0
A77: 2021-12-22 | B77: 1200186 | C77: 768569 | D77: 1200186 | E77: 768569 | F77: 812805.0234 | G77: 593810.7747 | H77: 214 | I77: 636131.3663 | J77: 2021454.619 | K77: 3953004.8 | L77: =IF($A78="","",IF($H$3="YES",VLOOKUP(OFFSET(A78,N77,0),Calendar!$A$2:$C$10000,3,FALSE),1)) -> 1 | M77: =IF(A78="","",IF(VLOOKUP(A77,Calendar!A:E,5,FALSE)=0,"",CEILING(L77*CEILING(MAX(OFFSET(K77,N77,0),OFFSET(J77,N77,0)),roundto),roundto)+add_margin)) -> 4010000 | N77: =IF(INDIRECT("Calendar!E"&MATCH($A77,Calendar!A:A,0)-1),0,IF(INDIRECT("Calendar!E"&MATCH($A77,Calendar!A:A,0)-2),1,2)) -> 0
A78: 2021-12-21 | B78: 1552882 | C78: 1292183 | D78: 1552882 | E78: 1292183 | F78: 805066.0093 | G78: 595643.8671 | H78: 214 | I78: 638095.1023 | J78: 2017446.704 | K78: 3953004.8 | L78: =IF($A79="","",IF($H$3="YES",VLOOKUP(OFFSET(A79,N78,0),Calendar!$A$2:$C$10000,3,FALSE),1)) -> 1 | M78: =IF(A79="","",IF(VLOOKUP(A78,Calendar!A:E,5,FALSE)=0,"",CEILING(L78*CEILING(MAX(OFFSET(K78,N78,0),OFFSET(J78,N78,0)),roundto),roundto)+add_margin)) -> 4010000 | N78: =IF(INDIRECT("Calendar!E"&MATCH($A78,Calendar!A:A,0)-1),0,IF(INDIRECT("Calendar!E"&MATCH($A78,Calendar!A:A,0)-2),1,2)) -> 0
A79: 2021-12-20 | B79: 1326920 | C79: 347774 | D79: 1326920 | E79: 347774 | F79: 805007.0467 | G79: 596912.2259 | H79: 214 | I79: 639453.8563 | J79: 2019969.374 | K79: 3953004.8 | L79: =IF($A80="","",IF($H$3="YES",VLOOKUP(OFFSET(A80,N79,0),Calendar!$A$2:$C$10000,3,FALSE),1)) -> 1 | M79: =IF(A80="","",IF(VLOOKUP(A79,Calendar!A:E,5,FALSE)=0,"",CEILING(L79*CEILING(MAX(OFFSET(K79,N79,0),OFFSET(J79,N79,0)),roundto),roundto)+add_margin)) -> 4010000 | N79: =IF(INDIRECT("Calendar!E"&MATCH($A79,Calendar!A:A,0)-1),0,IF(INDIRECT("Calendar!E"&MATCH($A79,Calendar!A:A,0)-2),1,2)) -> 0
A80: 2021-12-17 | B80: 796063 | C80: 703653 | D80: 796063 | E80: 703653 | F80: 803453.3709 | G80: 597202.094 | H80: 213 | I80: 639851.4525 | J80: 2019171.131 | K80: 3953004.8 | L80: =IF($A81="","",IF($H$3="YES",VLOOKUP(OFFSET(A81,N80,0),Calendar!$A$2:$C$10000,3,FALSE),1)) -> 1 | M80: =IF(A81="","",IF(VLOOKUP(A80,Calendar!A:E,5,FALSE)=0,"",CEILING(L80*CEILING(MAX(OFFSET(K80,N80,0),OFFSET(J80,N80,0)),roundto),roundto)+add_margin)) -> 4010000 | N80: =IF(INDIRECT("Calendar!E"&MATCH($A80,Calendar!A:A,0)-1),0,IF(INDIRECT("Calendar!E"&MATCH($A80,Calendar!A:A,0)-2),1,2)) -> 0
A81: 2021-12-16 | B81: 1427988 | C81: 995701 | D81: 1427988 | E81: 995701 | F81: 799637.5775 | G81: 601174.1242 | H81: 213 | I81: 644107.1463 | J81: 2023441.155 | K81: 3953004.8 | L81: =IF($A82="","",IF($H$3="YES",VLOOKUP(OFFSET(A82,N81,0),Calendar!$A$2:$C$10000,3,FALSE),1)) -> 1 | M81: =IF(A82="","",IF(VLOOKUP(A81,Calendar!A:E,5,FALSE)=0,"",CEILING(L81*CEILING(MAX(OFFSET(K81,N81,0),OFFSET(J81,N81,0)),roundto),roundto)+add_margin)) -> 4010000 | N81: =IF(INDIRECT("Calendar!E"&MATCH($A81,Calendar!A:A,0)-1),0,IF(INDIRECT("Calendar!E"&MATCH($A81,Calendar!A:A,0)-2),1,2)) -> 0
A82: 2021-12-15 | B82: 928174 | C82: 538325 | D82: 928174 | E82: 538325 | F82: 799086.6009 | G82: 600311.6759 | H82: 213 | I82: 643183.1061 | J82: 2021134.503 | K82: 3953004.8 | L82: =IF($A83="","",IF($H$3="YES",VLOOKUP(OFFSET(A83,N82,0),Calendar!$A$2:$C$10000,3,FALSE),1)) -> 1 | M82: =IF(A83="","",IF(VLOOKUP(A82,Calendar!A:E,5,FALSE)=0,"",CEILING(L82*CEILING(MAX(OFFSET(K82,N82,0),OFFSET(J82,N82,0)),roundto),roundto)+add_margin)) -> 4010000 | N82: =IF(INDIRECT("Calendar!E"&MATCH($A82,Calendar!A:A,0)-1),0,IF(INDIRECT("Calendar!E"&MATCH($A82,Calendar!A:A,0)-2),1,2)) -> 0
A83: 2021-12-14 | B83: 1902723 | C83: 1724674 | D83: 1902723 | E83: 1724674 | F83: 790995.9906 | G83: 584233.4991 | H83: 213 | I83: 625956.7017 | J83: 1980313.724 | K83: 3953004.8 | L83: =IF($A84="","",IF($H$3="YES",VLOOKUP(OFFSET(A84,N83,0),Calendar!$A$2:$C$10000,3,FALSE),1)) -> 1 | M83: =IF(A84="","",IF(VLOOKUP(A83,Calendar!A:E,5,FALSE)=0,"",CEILING(L83*CEILING(MAX(OFFSET(K83,N83,0),OFFSET(J83,N83,0)),roundto),roundto)+add_margin)) -> 4010000 | N83: =IF(INDIRECT("Calendar!E"&MATCH($A83,Calendar!A:A,0)-1),0,IF(INDIRECT("Calendar!E"&MATCH($A83,Calendar!A:A,0)-2),1,2)) -> 0
A84: 2021-12-13 | B84: 1955406 | C84: 642623 | D84: 1955406 | E84: 642623 | F84: 787730.1925 | G84: 589617.0563 | H84: 213 | I84: 631724.7271 | J84: 1988007.174 | K84: 3953004.8 | L84: =IF($A85="","",IF($H$3="YES",VLOOKUP(OFFSET(A85,N84,0),Calendar!$A$2:$C$10000,3,FALSE),1)) -> 1 | M84: =IF(A85="","",IF(VLOOKUP(A84,Calendar!A:E,5,FALSE)=0,"",CEILING(L84*CEILING(MAX(OFFSET(K84,N84,0),OFFSET(J84,N84,0)),roundto),roundto)+add_margin)) -> 4010000 | N84: =IF(INDIRECT("Calendar!E"&MATCH($A84,Calendar!A:A,0)-1),0,IF(INDIRECT("Calendar!E"&MATCH($A84,Calendar!A:A,0)-2),1,2)) -> 0
A85: 2021-12-10 | B85: 804904 | C85: 345668 | D85: 804904 | E85: 345668 | F85: 786609 | G85: 591518.3694 | H85: 213 | I85: 633761.823 | J85: 1990756.464 | K85: 3953004.8 | L85: =IF($A86="","",IF($H$3="YES",VLOOKUP(OFFSET(A86,N85,0),Calendar!$A$2:$C$10000,3,FALSE),1)) -> 1 | M85: =IF(A86="","",IF(VLOOKUP(A85,Calendar!A:E,5,FALSE)=0,"",CEILING(L85*CEILING(MAX(OFFSET(K85,N85,0),OFFSET(J85,N85,0)),roundto),roundto)+add_margin)) -> 4010000 | N85: =IF(INDIRECT("Calendar!E"&MATCH($A85,Calendar!A:A,0)-1),0,IF(INDIRECT("Calendar!E"&MATCH($A85,Calendar!A:A,0)-2),1,2)) -> 0
A86: 2021-12-09 | B86: 699213 | C86: 617360 | D86: 699213 | E86: 617360 | F86: 785375.0189 | G86: 594857.9265 | H86: 212 | I86: 637373.4883 | J86: 1996384.647 | K86: 3953004.8 | L86: =IF($A87="","",IF($H$3="YES",VLOOKUP(OFFSET(A87,N86,0),Calendar!$A$2:$C$10000,3,FALSE),1)) -> 1 | M86: =IF(A87="","",IF(VLOOKUP(A86,Calendar!A:E,5,FALSE)=0,"",CEILING(L86*CEILING(MAX(OFFSET(K86,N86,0),OFFSET(J86,N86,0)),roundto),roundto)+add_margin)) -> 4010000 | N86: =IF(INDIRECT("Calendar!E"&MATCH($A86,Calendar!A:A,0)-1),0,IF(INDIRECT("Calendar!E"&MATCH($A86,Calendar!A:A,0)-2),1,2)) -> 0
A87: 2021-12-08 | B87: 1001213 | C87: 570360 | D87: 1001213 | E87: 570360 | F87: 784471.4834 | G87: 586528.9282 | H87: 211 | I87: 628443.0689 | J87: 1978513.314 | K87: 3953004.8 | L87: =IF($A88="","",IF($H$3="YES",VLOOKUP(OFFSET(A88,N87,0),Calendar!$A$2:$C$10000,3,FALSE),1)) -> 1 | M87: =IF(A88="","",IF(VLOOKUP(A87,Calendar!A:E,5,FALSE)=0,"",CEILING(L87*CEILING(MAX(OFFSET(K87,N87,0),OFFSET(J87,N87,0)),roundto),roundto)+add_margin)) -> 4010000 | N87: =IF(INDIRECT("Calendar!E"&MATCH($A87,Calendar!A:A,0)-1),0,IF(INDIRECT("Calendar!E"&MATCH($A87,Calendar!A:A,0)-2),1,2)) -> 0
A88: 2021-12-07 | B88: 2460140 | C88: 2054479 | D88: 2460140 | E88: 2054479 | F88: 767670.91 | G88: 547713.4694 | H88: 211 | I88: 586853.8056 | J88: 1882693.141 | K88: 3861900.8 | L88: =IF($A89="","",IF($H$3="YES",VLOOKUP(OFFSET(A89,N88,0),Calendar!$A$2:$C$10000,3,FALSE),1)) -> 1 | M88: =IF(A89="","",IF(VLOOKUP(A88,Calendar!A:E,5,FALSE)=0,"",CEILING(L88*CEILING(MAX(OFFSET(K88,N88,0),OFFSET(J88,N88,0)),roundto),roundto)+add_margin)) -> 3920000 | N88: =IF(INDIRECT("Calendar!E"&MATCH($A88,Calendar!A:A,0)-1),0,IF(INDIRECT("Calendar!E"&MATCH($A88,Calendar!A:A,0)-2),1,2)) -> 0
A89: 2021-12-06 | B89: 2470628 | C89: 761079 | D89: 2470628 | E89: 761079 | F89: 762002.0047 | G89: 550173.4755 | H89: 211 | I89: 589489.607 | J89: 1882032.258 | K89: 3861900.8 | L89: =IF($A90="","",IF($H$3="YES",VLOOKUP(OFFSET(A90,N89,0),Calendar!$A$2:$C$10000,3,FALSE),1)) -> 1 | M89: =IF(A90="","",IF(VLOOKUP(A89,Calendar!A:E,5,FALSE)=0,"",CEILING(L89*CEILING(MAX(OFFSET(K89,N89,0),OFFSET(J89,N89,0)),roundto),roundto)+add_margin)) -> 3920000 | N89: =IF(INDIRECT("Calendar!E"&MATCH($A89,Calendar!A:A,0)-1),0,IF(INDIRECT("Calendar!E"&MATCH($A89,Calendar!A:A,0)-2),1,2)) -> 0
A90: 2021-12-03 | B90: 1216464 | C90: 546597 | D90: =IF(B90>minIMSM,B90,"") -> 1216464 | E90: 546597 | F90: 760813.4429 | G90: 549670.2023 | H90: 210 | I90: 588965.6955 | J90: 1879848.264 | K90: 3861900.8 | L90: =IF($A91="","",IF($H$3="YES",VLOOKUP(OFFSET(A91,N90,0),Calendar!$A$2:$C$10000,3,FALSE),1)) -> 1 | M90: =IF(A91="","",IF(VLOOKUP(A90,Calendar!A:E,5,FALSE)=0,"",CEILING(L90*CEILING(MAX(OFFSET(K90,N90,0),OFFSET(J90,N90,0)),roundto),roundto)+add_margin)) -> 3920000 | N90: =IF(INDIRECT("Calendar!E"&MATCH($A90,Calendar!A:A,0)-1),0,IF(INDIRECT("Calendar!E"&MATCH($A90,Calendar!A:A,0)-2),1,2)) -> 0
A91: 2021-12-02 | B91: 1345630 | C91: 880627 | D91: 1345630 | E91: 880627 | F91: 754949.019 | G91: 546043.0994 | H91: 210 | I91: 585079.2938 | J91: 1866599.677 | K91: 3861900.8 | L91: =IF($A92="","",IF($H$3="YES",VLOOKUP(OFFSET(A92,N91,0),Calendar!$A$2:$C$10000,3,FALSE),1)) -> 1 | M91: =IF(A92="","",IF(VLOOKUP(A91,Calendar!A:E,5,FALSE)=0,"",CEILING(L91*CEILING(MAX(OFFSET(K91,N91,0),OFFSET(J91,N91,0)),roundto),roundto)+add_margin)) -> 3920000 | N91: =IF(INDIRECT("Calendar!E"&MATCH($A91,Calendar!A:A,0)-1),0,IF(INDIRECT("Calendar!E"&MATCH($A91,Calendar!A:A,0)-2),1,2)) -> 0
A92: 2021-12-01 | B92: 1603548 | C92: 834068 | D92: 1603548 | E92: 834068 | F92: 752042.3923 | G92: 534055.7338 | H92: 209 | I92: 572307.2253 | J92: 1839426.12 | K92: 3569328 | L92: =IF($A93="","",IF($H$3="YES",VLOOKUP(OFFSET(A93,N92,0),Calendar!$A$2:$C$10000,3,FALSE),1)) -> 1 | M92: =IF(A93="","",IF(VLOOKUP(A92,Calendar!A:E,5,FALSE)=0,"",CEILING(L92*CEILING(MAX(OFFSET(K92,N92,0),OFFSET(J92,N92,0)),roundto),roundto)+add_margin)) -> 3620000 | N92: =IF(INDIRECT("Calendar!E"&MATCH($A92,Calendar!A:A,0)-1),0,IF(INDIRECT("Calendar!E"&MATCH($A92,Calendar!A:A,0)-2),1,2)) -> 0
A93: 2021-11-30 | B93: 2413688 | C93: 1885322 | D93: 2413688 | E93: 1885322 | F93: 737364.351 | G93: 502948.8826 | H93: 208 | I93: 539099.3344 | J93: 1761653.086 | K93: 3999868.8 | L93: =IF($A94="","",IF($H$3="YES",VLOOKUP(OFFSET(A94,N93,0),Calendar!$A$2:$C$10000,3,FALSE),1)) -> 1 | M93: =IF(A94="","",IF(VLOOKUP(A93,Calendar!A:E,5,FALSE)=0,"",CEILING(L93*CEILING(MAX(OFFSET(K93,N93,0),OFFSET(J93,N93,0)),roundto),roundto)+add_margin)) -> 4050000 | N93: =IF(INDIRECT("Calendar!E"&MATCH($A93,Calendar!A:A,0)-1),0,IF(INDIRECT("Calendar!E"&MATCH($A93,Calendar!A:A,0)-2),1,2)) -> 0
A94: 2021-11-29 | B94: 2224344 | C94: 304591 | D94: 2224344 | E94: 304591 | F94: 738256.8357 | G94: 503519.3607 | H94: 207 | I94: 539664.5145 | J94: 1763619.413 | K94: 3999868.8 | L94: =IF($A95="","",IF($H$3="YES",VLOOKUP(OFFSET(A95,N94,0),Calendar!$A$2:$C$10000,3,FALSE),1)) -> 1 | M94: =IF(A95="","",IF(VLOOKUP(A94,Calendar!A:E,5,FALSE)=0,"",CEILING(L94*CEILING(MAX(OFFSET(K94,N94,0),OFFSET(J94,N94,0)),roundto),roundto)+add_margin)) -> 4050000 | N94: =IF(INDIRECT("Calendar!E"&MATCH($A94,Calendar!A:A,0)-1),0,IF(INDIRECT("Calendar!E"&MATCH($A94,Calendar!A:A,0)-2),1,2)) -> 0
A95: 2021-11-26 | B95: 872389 | C95: 624360 | D95: 872389 | E95: 624360 | F95: 736363.9417 | G95: 502505.1992 | H95: 206 | I95: 538666.9914 | J95: 1759831.225 | K95: 3999868.8 | L95: =IF($A96="","",IF($H$3="YES",VLOOKUP(OFFSET(A96,N95,0),Calendar!$A$2:$C$10000,3,FALSE),1)) -> 1 | M95: =IF(A96="","",IF(VLOOKUP(A95,Calendar!A:E,5,FALSE)=0,"",CEILING(L95*CEILING(MAX(OFFSET(K95,N95,0),OFFSET(J95,N95,0)),roundto),roundto)+add_margin)) -> 4050000 | N95: =IF(INDIRECT("Calendar!E"&MATCH($A95,Calendar!A:A,0)-1),0,IF(INDIRECT("Calendar!E"&MATCH($A95,Calendar!A:A,0)-2),1,2)) -> 0
A96: 2021-11-25 | B96: 1341073 | C96: 837240 | D96: 1341073 | E96: 837240 | F96: 732342.1756 | G96: 507884.3331 | H96: 205 | I96: 544488.1556 | J96: 1766869.671 | K96: 3999868.8 | L96: =IF($A97="","",IF($H$3="YES",VLOOKUP(OFFSET(A97,N96,0),Calendar!$A$2:$C$10000,3,FALSE),1)) -> 1 | M96: =IF(A97="","",IF(VLOOKUP(A96,Calendar!A:E,5,FALSE)=0,"",CEILING(L96*CEILING(MAX(OFFSET(K96,N96,0),OFFSET(J96,N96,0)),roundto),roundto)+add_margin)) -> 4050000 | N96: =IF(INDIRECT("Calendar!E"&MATCH($A96,Calendar!A:A,0)-1),0,IF(INDIRECT("Calendar!E"&MATCH($A96,Calendar!A:A,0)-2),1,2)) -> 0
A97: 2021-11-24 | B97: 968244 | C97: 244658 | D97: 968244 | E97: 244658 | F97: 734603.6373 | G97: 507091.1651 | H97: 204 | I97: 543655.5919 | J97: 1767549.262 | K97: 3999868.8 | L97: =IF($A98="","",IF($H$3="YES",VLOOKUP(OFFSET(A98,N97,0),Calendar!$A$2:$C$10000,3,FALSE),1)) -> 1 | M97: =IF(A98="","",IF(VLOOKUP(A97,Calendar!A:E,5,FALSE)=0,"",CEILING(L97*CEILING(MAX(OFFSET(K97,N97,0),OFFSET(J97,N97,0)),roundto),roundto)+add_margin)) -> 4050000 | N97: =IF(INDIRECT("Calendar!E"&MATCH($A97,Calendar!A:A,0)-1),0,IF(INDIRECT("Calendar!E"&MATCH($A97,Calendar!A:A,0)-2),1,2)) -> 0
A98: 2021-11-23 | B98: 1968512 | C98: 1942166 | D98: 1968512 | E98: 1942166 | F98: 719799.2167 | G98: 468663.1127 | H98: 203 | I98: 502423.9782 | J98: 1674404.775 | K98: 3999868.8 | L98: =IF($A99="","",IF($H$3="YES",VLOOKUP(OFFSET(A99,N98,0),Calendar!$A$2:$C$10000,3,FALSE),1)) -> 1 | M98: =IF(A99="","",IF(VLOOKUP(A98,Calendar!A:E,5,FALSE)=0,"",CEILING(L98*CEILING(MAX(OFFSET(K98,N98,0),OFFSET(J98,N98,0)),roundto),roundto)+add_margin)) -> 4050000 | N98: =IF(INDIRECT("Calendar!E"&MATCH($A98,Calendar!A:A,0)-1),0,IF(INDIRECT("Calendar!E"&MATCH($A98,Calendar!A:A,0)-2),1,2)) -> 0
A99: 2021-11-22 | B99: 2230830 | C99: 433095 | D99: 2230830 | E99: 433095 | F99: 720057.6584 | G99: 469711.9025 | H99: 202 | I99: 503679.635 | J99: 1677048.965 | K99: 3999868.8 | L99: =IF($A100="","",IF($H$3="YES",VLOOKUP(OFFSET(A100,N99,0),Calendar!$A$2:$C$10000,3,FALSE),1)) -> 1 | M99: =IF(A100="","",IF(VLOOKUP(A99,Calendar!A:E,5,FALSE)=0,"",CEILING(L99*CEILING(MAX(OFFSET(K99,N99,0),OFFSET(J99,N99,0)),roundto),roundto)+add_margin)) -> 4050000 | N99: =IF(INDIRECT("Calendar!E"&MATCH($A99,Calendar!A:A,0)-1),0,IF(INDIRECT("Calendar!E"&MATCH($A99,Calendar!A:A,0)-2),1,2)) -> 0
A100: 2021-11-19 | B100: 946304 | C100: 711805 | D100: 946304 | E100: 711805 | F100: 717031.4527 | G100: 468332.629 | H100: 201 | I100: 502182.0788 | J100: 1671177.402 | K100: 3999868.8 | L100: =IF($A101="","",IF($H$3="YES",VLOOKUP(OFFSET(A101,N100,0),Calendar!$A$2:$C$10000,3,FALSE),1)) -> 1 | M100: =IF(A101="","",IF(VLOOKUP(A100,Calendar!A:E,5,FALSE)=0,"",CEILING(L100*CEILING(MAX(OFFSET(K100,N100,0),OFFSET(J100,N100,0)),roundto),roundto)+add_margin)) -> 4050000 | N100: =IF(INDIRECT("Calendar!E"&MATCH($A100,Calendar!A:A,0)-1),0,IF(INDIRECT("Calendar!E"&MATCH($A100,Calendar!A:A,0)-2),1,2)) -> 0
A101: 2021-11-18 | B101: 1317770 | C101: 701250 | D101: 1317770 | E101: 701250 | F101: 715143.585 | G101: 472276.9152 | H101: 200 | I101: 506526.9023 | J101: 1677544.699 | K101: 3999868.8 | L101: =IF($A102="","",IF($H$3="YES",VLOOKUP(OFFSET(A102,N101,0),Calendar!$A$2:$C$10000,3,FALSE),1)) -> 1 | M101: =IF(A102="","",IF(VLOOKUP(A101,Calendar!A:E,5,FALSE)=0,"",CEILING(L101*CEILING(MAX(OFFSET(K101,N101,0),OFFSET(J101,N101,0)),roundto),roundto)+add_margin)) -> 4050000 | N101: =IF(INDIRECT("Calendar!E"&MATCH($A101,Calendar!A:A,0)-1),0,IF(INDIRECT("Calendar!E"&MATCH($A101,Calendar!A:A,0)-2),1,2)) -> 0
A102: 2021-11-17 | B102: 803357 | C102: 410002 | D102: 803357 | E102: 410002 | F102: 715923.608 | G102: 472389.5496 | H102: 199 | I102: 506689.5928 | J102: 1678633.834 | K102: 3999868.8 | L102: =IF($A103="","",IF($H$3="YES",VLOOKUP(OFFSET(A103,N102,0),Calendar!$A$2:$C$10000,3,FALSE),1)) -> 1 | M102: =IF(A103="","",IF(VLOOKUP(A102,Calendar!A:E,5,FALSE)=0,"",CEILING(L102*CEILING(MAX(OFFSET(K102,N102,0),OFFSET(J102,N102,0)),roundto),roundto)+add_margin)) -> 4050000 | N102: =IF(INDIRECT("Calendar!E"&MATCH($A102,Calendar!A:A,0)-1),0,IF(INDIRECT("Calendar!E"&MATCH($A102,Calendar!A:A,0)-2),1,2)) -> 0
A103: 2021-11-16 | B103: 1177722 | C103: 1027805 | D103: 1177722 | E103: 1027805 | F103: 711757.0051 | G103: 477109.4958 | H103: 198 | I103: 511721.0355 | J103: 1684026.972 | K103: 3999868.8 | L103: =IF($A104="","",IF($H$3="YES",VLOOKUP(OFFSET(A104,N103,0),Calendar!$A$2:$C$10000,3,FALSE),1)) -> 1 | M103: =IF(A104="","",IF(VLOOKUP(A103,Calendar!A:E,5,FALSE)=0,"",CEILING(L103*CEILING(MAX(OFFSET(K103,N103,0),OFFSET(J103,N103,0)),roundto),roundto)+add_margin)) -> 4050000 | N103: =IF(INDIRECT("Calendar!E"&MATCH($A103,Calendar!A:A,0)-1),0,IF(INDIRECT("Calendar!E"&MATCH($A103,Calendar!A:A,0)-2),1,2)) -> 0
A104: 2021-11-15 | B104: 729622 | C104: -211009 | D104: 729622 | F104: 708300.255 | G104: 477891.8567 | H104: 200 | I104: 512549.0449 | J104: 1682143.44 | K104: 3999868.8 | L104: =IF($A105="","",IF($H$3="YES",VLOOKUP(OFFSET(A105,N104,0),Calendar!$A$2:$C$10000,3,FALSE),1)) -> 1 | M104: =IF(A105="","",IF(VLOOKUP(A104,Calendar!A:E,5,FALSE)=0,"",CEILING(L104*CEILING(MAX(OFFSET(K104,N104,0),OFFSET(J104,N104,0)),roundto),roundto)+add_margin)) -> 4050000 | N104: =IF(INDIRECT("Calendar!E"&MATCH($A104,Calendar!A:A,0)-1),0,IF(INDIRECT("Calendar!E"&MATCH($A104,Calendar!A:A,0)-2),1,2)) -> 0
A105: 2021-11-12 | B105: -37355 | C105: 166244 | E105: 166244 | F105: 710345.26 | G105: 477236.9733 | H105: 200 | I105: 511846.6687 | J105: 1682853.93 | K105: 3999868.8 | L105: =IF($A106="","",IF($H$3="YES",VLOOKUP(OFFSET(A106,N105,0),Calendar!$A$2:$C$10000,3,FALSE),1)) -> 1 | M105: =IF(A106="","",IF(VLOOKUP(A105,Calendar!A:E,5,FALSE)=0,"",CEILING(L105*CEILING(MAX(OFFSET(K105,N105,0),OFFSET(J105,N105,0)),roundto),roundto)+add_margin)) -> 4050000 | N105: =IF(INDIRECT("Calendar!E"&MATCH($A105,Calendar!A:A,0)-1),0,IF(INDIRECT("Calendar!E"&MATCH($A105,Calendar!A:A,0)-2),1,2)) -> 0
A106: 2021-11-11 | B106: 526693 | C106: 406053 | D106: 526693 | E106: 406053 | F106: 708906.015 | G106: 479966.6551 | H106: 200 | I106: 514774.3098 | J106: 1686977.204 | K106: 3999868.8 | L106: =IF($A107="","",IF($H$3="YES",VLOOKUP(OFFSET(A107,N106,0),Calendar!$A$2:$C$10000,3,FALSE),1)) -> 1 | M106: =IF(A107="","",IF(VLOOKUP(A106,Calendar!A:E,5,FALSE)=0,"",CEILING(L106*CEILING(MAX(OFFSET(K106,N106,0),OFFSET(J106,N106,0)),roundto),roundto)+add_margin)) -> 4050000 | N106: =IF(INDIRECT("Calendar!E"&MATCH($A106,Calendar!A:A,0)-1),0,IF(INDIRECT("Calendar!E"&MATCH($A106,Calendar!A:A,0)-2),1,2)) -> 0
A107: 2021-11-10 | B107: 742408 | C107: 389214 | D107: 742408 | E107: 389214 | F107: 706266.895 | G107: 476296.2797 | H107: 200 | I107: 510837.7551 | J107: 1676858.63 | K107: 3999868.8 | L107: =IF($A108="","",IF($H$3="YES",VLOOKUP(OFFSET(A108,N107,0),Calendar!$A$2:$C$10000,3,FALSE),1)) -> 1 | M107: =IF(A108="","",IF(VLOOKUP(A107,Calendar!A:E,5,FALSE)=0,"",CEILING(L107*CEILING(MAX(OFFSET(K107,N107,0),OFFSET(J107,N107,0)),roundto),roundto)+add_margin)) -> 4050000 | N107: =IF(INDIRECT("Calendar!E"&MATCH($A107,Calendar!A:A,0)-1),0,IF(INDIRECT("Calendar!E"&MATCH($A107,Calendar!A:A,0)-2),1,2)) -> 0
A108: 2021-11-09 | B108: 1504967 | C108: 1133773 | D108: 1504967 | E108: 1133773 | F108: 705032.61 | G108: 478174.3221 | H108: 200 | I108: 512851.995 | J108: 1679451.4 | K108: 3999868.8 | L108: =IF($A109="","",IF($H$3="YES",VLOOKUP(OFFSET(A109,N108,0),Calendar!$A$2:$C$10000,3,FALSE),1)) -> 1 | M108: =IF(A109="","",IF(VLOOKUP(A108,Calendar!A:E,5,FALSE)=0,"",CEILING(L108*CEILING(MAX(OFFSET(K108,N108,0),OFFSET(J108,N108,0)),roundto),roundto)+add_margin)) -> 4050000 | N108: =IF(INDIRECT("Calendar!E"&MATCH($A108,Calendar!A:A,0)-1),0,IF(INDIRECT("Calendar!E"&MATCH($A108,Calendar!A:A,0)-2),1,2)) -> 0
A109: 2021-11-08 | B109: 1277345 | C109: 207172 | D109: 1277345 | E109: 207172 | F109: 713675.32 | G109: 479747.2769 | H109: 200 | I109: 514539.022 | J109: 1691299.462 | K109: 3999868.8 | L109: =IF($A110="","",IF($H$3="YES",VLOOKUP(OFFSET(A110,N109,0),Calendar!$A$2:$C$10000,3,FALSE),1)) -> 1 | M109: =IF(A110="","",IF(VLOOKUP(A109,Calendar!A:E,5,FALSE)=0,"",CEILING(L109*CEILING(MAX(OFFSET(K109,N109,0),OFFSET(J109,N109,0)),roundto),roundto)+add_margin)) -> 4050000 | N109: =IF(INDIRECT("Calendar!E"&MATCH($A109,Calendar!A:A,0)-1),0,IF(INDIRECT("Calendar!E"&MATCH($A109,Calendar!A:A,0)-2),1,2)) -> 0
A110: 2021-11-05 | B110: 864398 | C110: 716258 | D110: 864398 | E110: 716258 | F110: 711714.7688 | G110: 484867.9865 | H110: 199 | I110: 520074.0847 | J110: 1699855.53 | K110: 3999868.8 | L110: =IF($A111="","",IF($H$3="YES",VLOOKUP(OFFSET(A111,N110,0),Calendar!$A$2:$C$10000,3,FALSE),1)) -> 1 | M110: =IF(A111="","",IF(VLOOKUP(A110,Calendar!A:E,5,FALSE)=0,"",CEILING(L110*CEILING(MAX(OFFSET(K110,N110,0),OFFSET(J110,N110,0)),roundto),roundto)+add_margin)) -> 4050000 | N110: =IF(INDIRECT("Calendar!E"&MATCH($A110,Calendar!A:A,0)-1),0,IF(INDIRECT("Calendar!E"&MATCH($A110,Calendar!A:A,0)-2),1,2)) -> 0
A111: 2021-11-04 | B111: 428758 | C111: -265008 | D111: 428758 | F111: 712893.54 | G111: 483883.7686 | H111: 200 | I111: 518975.4962 | J111: 1698946.983 | K111: 3999868.8 | L111: =IF($A112="","",IF($H$3="YES",VLOOKUP(OFFSET(A112,N111,0),Calendar!$A$2:$C$10000,3,FALSE),1)) -> 1 | M111: =IF(A112="","",IF(VLOOKUP(A111,Calendar!A:E,5,FALSE)=0,"",CEILING(L111*CEILING(MAX(OFFSET(K111,N111,0),OFFSET(J111,N111,0)),roundto),roundto)+add_margin)) -> 4050000 | N111: =IF(INDIRECT("Calendar!E"&MATCH($A111,Calendar!A:A,0)-1),0,IF(INDIRECT("Calendar!E"&MATCH($A111,Calendar!A:A,0)-2),1,2)) -> 0
A112: 2021-11-03 | B112: 459716 | C112: 577096 | D112: 459716 | E112: 577096 | F112: 710132.95 | G112: 477589.3504 | H112: 200 | I112: 512224.6005 | J112: 1683359.691 | K112: 3999868.8 | L112: =IF($A113="","",IF($H$3="YES",VLOOKUP(OFFSET(A113,N112,0),Calendar!$A$2:$C$10000,3,FALSE),1)) -> 1 | M112: =IF(A113="","",IF(VLOOKUP(A112,Calendar!A:E,5,FALSE)=0,"",CEILING(L112*CEILING(MAX(OFFSET(K112,N112,0),OFFSET(J112,N112,0)),roundto),roundto)+add_margin)) -> 4050000 | N112: =IF(INDIRECT("Calendar!E"&MATCH($A112,Calendar!A:A,0)-1),0,IF(INDIRECT("Calendar!E"&MATCH($A112,Calendar!A:A,0)-2),1,2)) -> 0
A113: 2021-11-02 | B113: 1663896 | C113: 1131865 | D113: 1663896 | E113: 1131865 | F113: 703069.32 | G113: 467944.6148 | H113: 200 | I113: 501880.4192 | J113: 1656642.117 | K113: 3999868.8 | L113: =IF($A114="","",IF($H$3="YES",VLOOKUP(OFFSET(A114,N113,0),Calendar!$A$2:$C$10000,3,FALSE),1)) -> 1 | M113: =IF(A114="","",IF(VLOOKUP(A113,Calendar!A:E,5,FALSE)=0,"",CEILING(L113*CEILING(MAX(OFFSET(K113,N113,0),OFFSET(J113,N113,0)),roundto),roundto)+add_margin)) -> 4050000 | N113: =IF(INDIRECT("Calendar!E"&MATCH($A113,Calendar!A:A,0)-1),0,IF(INDIRECT("Calendar!E"&MATCH($A113,Calendar!A:A,0)-2),1,2)) -> 0
A114: 2021-11-01 | B114: 1638245 | C114: 548429 | D114: 1638245 | E114: 548429 | F114: 704100.72 | G114: 469353.0956 | H114: 200 | I114: 503391.0444 | J114: 1660543.704 | K114: 3999868.8 | L114: =IF($A115="","",IF($H$3="YES",VLOOKUP(OFFSET(A115,N114,0),Calendar!$A$2:$C$10000,3,FALSE),1)) -> 1 | M114: =IF(A115="","",IF(VLOOKUP(A114,Calendar!A:E,5,FALSE)=0,"",CEILING(L114*CEILING(MAX(OFFSET(K114,N114,0),OFFSET(J114,N114,0)),roundto),roundto)+add_margin)) -> 4050000 | N114: =IF(INDIRECT("Calendar!E"&MATCH($A114,Calendar!A:A,0)-1),0,IF(INDIRECT("Calendar!E"&MATCH($A114,Calendar!A:A,0)-2),1,2)) -> 0
A115: 2021-10-29 | B115: 952739 | C115: 692556 | D115: 952739 | E115: 692556 | F115: 698443.98 | G115: 469706.136 | H115: 200 | I115: 503769.6877 | J115: 1655606.387 | K115: 3999868.8 | L115: =IF($A116="","",IF($H$3="YES",VLOOKUP(OFFSET(A116,N115,0),Calendar!$A$2:$C$10000,3,FALSE),1)) -> 1 | M115: =IF(A116="","",IF(VLOOKUP(A115,Calendar!A:E,5,FALSE)=0,"",CEILING(L115*CEILING(MAX(OFFSET(K115,N115,0),OFFSET(J115,N115,0)),roundto),roundto)+add_margin)) -> 4050000 | N115: =IF(INDIRECT("Calendar!E"&MATCH($A115,Calendar!A:A,0)-1),0,IF(INDIRECT("Calendar!E"&MATCH($A115,Calendar!A:A,0)-2),1,2)) -> 0
A116: 2021-10-28 | B116: 1187990 | C116: 588159 | D116: 1187990 | E116: 588159 | F116: 693687.73 | G116: 471908.8415 | H116: 200 | I116: 506132.1356 | J116: 1655338.788 | K116: 3999868.8 | L116: =IF($A117="","",IF($H$3="YES",VLOOKUP(OFFSET(A117,N116,0),Calendar!$A$2:$C$10000,3,FALSE),1)) -> 1 | M116: =IF(A117="","",IF(VLOOKUP(A116,Calendar!A:E,5,FALSE)=0,"",CEILING(L116*CEILING(MAX(OFFSET(K116,N116,0),OFFSET(J116,N116,0)),roundto),roundto)+add_margin)) -> 4050000 | N116: =IF(INDIRECT("Calendar!E"&MATCH($A116,Calendar!A:A,0)-1),0,IF(INDIRECT("Calendar!E"&MATCH($A116,Calendar!A:A,0)-2),1,2)) -> 0
A117: 2021-10-27 | B117: 1005080 | C117: 511472 | D117: 1005080 | E117: 511472 | F117: 689373.12 | G117: 464546.2299 | H117: 200 | I117: 498235.5801 | J117: 1636020.722 | K117: 3999868.8 | L117: =IF($A118="","",IF($H$3="YES",VLOOKUP(OFFSET(A118,N117,0),Calendar!$A$2:$C$10000,3,FALSE),1)) -> 1 | M117: =IF(A118="","",IF(VLOOKUP(A117,Calendar!A:E,5,FALSE)=0,"",CEILING(L117*CEILING(MAX(OFFSET(K117,N117,0),OFFSET(J117,N117,0)),roundto),roundto)+add_margin)) -> 4050000 | N117: =IF(INDIRECT("Calendar!E"&MATCH($A117,Calendar!A:A,0)-1),0,IF(INDIRECT("Calendar!E"&MATCH($A117,Calendar!A:A,0)-2),1,2)) -> 0
A118: 2021-10-26 | B118: 1878893 | C118: 1455454 | D118: 1878893 | E118: 1455454 | F118: 678079.915 | G118: 453659.8749 | H118: 200 | I118: 486559.7359 | J118: 1602543.413 | K118: 3999868.8 | L118: =IF($A119="","",IF($H$3="YES",VLOOKUP(OFFSET(A119,N118,0),Calendar!$A$2:$C$10000,3,FALSE),1)) -> 1 | M118: =IF(A119="","",IF(VLOOKUP(A118,Calendar!A:E,5,FALSE)=0,"",CEILING(L118*CEILING(MAX(OFFSET(K118,N118,0),OFFSET(J118,N118,0)),roundto),roundto)+add_margin)) -> 4050000 | N118: =IF(INDIRECT("Calendar!E"&MATCH($A118,Calendar!A:A,0)-1),0,IF(INDIRECT("Calendar!E"&MATCH($A118,Calendar!A:A,0)-2),1,2)) -> 0
A119: 2021-10-25 | B119: 1553338 | C119: 159177 | D119: 1553338 | E119: 159177 | F119: 678165.375 | G119: 452702.6409 | H119: 200 | I119: 485533.0824 | J119: 1600678.231 | K119: 3999868.8 | L119: =IF($A120="","",IF($H$3="YES",VLOOKUP(OFFSET(A120,N119,0),Calendar!$A$2:$C$10000,3,FALSE),1)) -> 1 | M119: =IF(A120="","",IF(VLOOKUP(A119,Calendar!A:E,5,FALSE)=0,"",CEILING(L119*CEILING(MAX(OFFSET(K119,N119,0),OFFSET(J119,N119,0)),roundto),roundto)+add_margin)) -> 4050000 | N119: =IF(INDIRECT("Calendar!E"&MATCH($A119,Calendar!A:A,0)-1),0,IF(INDIRECT("Calendar!E"&MATCH($A119,Calendar!A:A,0)-2),1,2)) -> 0
A120: 2021-10-22 | B120: 749530 | C120: 627048 | D120: 749530 | E120: 627048 | F120: 675728.206 | G120: 449776.6959 | H120: 199 | I120: 482434.8275 | J120: 1592354.378 | K120: 3999868.8 | L120: =IF($A121="","",IF($H$3="YES",VLOOKUP(OFFSET(A121,N120,0),Calendar!$A$2:$C$10000,3,FALSE),1)) -> 1 | M120: =IF(A121="","",IF(VLOOKUP(A120,Calendar!A:E,5,FALSE)=0,"",CEILING(L120*CEILING(MAX(OFFSET(K120,N120,0),OFFSET(J120,N120,0)),roundto),roundto)+add_margin)) -> 4050000 | N120: =IF(INDIRECT("Calendar!E"&MATCH($A120,Calendar!A:A,0)-1),0,IF(INDIRECT("Calendar!E"&MATCH($A120,Calendar!A:A,0)-2),1,2)) -> 0
A121: 2021-10-21 | B121: 1352378 | C121: 816264 | D121: 1352378 | E121: 816264 | F121: 668781.2915 | G121: 444865.5615 | H121: 199 | I121: 477167.0974 | J121: 1575398.776 | K121: 3999868.8 | L121: =IF($A122="","",IF($H$3="YES",VLOOKUP(OFFSET(A122,N121,0),Calendar!$A$2:$C$10000,3,FALSE),1)) -> 1 | M121: =IF(A122="","",IF(VLOOKUP(A121,Calendar!A:E,5,FALSE)=0,"",CEILING(L121*CEILING(MAX(OFFSET(K121,N121,0),OFFSET(J121,N121,0)),roundto),roundto)+add_margin)) -> 4050000 | N121: =IF(INDIRECT("Calendar!E"&MATCH($A121,Calendar!A:A,0)-1),0,IF(INDIRECT("Calendar!E"&MATCH($A121,Calendar!A:A,0)-2),1,2)) -> 0
A122: 2021-10-20 | B122: 1438224 | C122: 737263 | D122: 1438224 | E122: 737263 | F122: 663156.7035 | G122: 421296.2732 | H122: 199 | I122: 451886.4511 | J122: 1521740.961 | K122: 3006888 | L122: =IF($A123="","",IF($H$3="YES",VLOOKUP(OFFSET(A123,N122,0),Calendar!$A$2:$C$10000,3,FALSE),1)) -> 1 | M122: =IF(A123="","",IF(VLOOKUP(A122,Calendar!A:E,5,FALSE)=0,"",CEILING(L122*CEILING(MAX(OFFSET(K122,N122,0),OFFSET(J122,N122,0)),roundto),roundto)+add_margin)) -> 3060000 | N122: =IF(INDIRECT("Calendar!E"&MATCH($A122,Calendar!A:A,0)-1),0,IF(INDIRECT("Calendar!E"&MATCH($A122,Calendar!A:A,0)-2),1,2)) -> 0
A123: 2021-10-19 | B123: 2499918 | C123: 1851718 | D123: 2499918 | E123: 1851718 | F123: 647188.201 | G123: 384867.6053 | H123: 199 | I123: 412812.7101 | J123: 1431532.35 | K123: 1634692.8 | L123: =IF($A124="","",IF($H$3="YES",VLOOKUP(OFFSET(A124,N123,0),Calendar!$A$2:$C$10000,3,FALSE),1)) -> 1 | M123: =IF(A124="","",IF(VLOOKUP(A123,Calendar!A:E,5,FALSE)=0,"",CEILING(L123*CEILING(MAX(OFFSET(K123,N123,0),OFFSET(J123,N123,0)),roundto),roundto)+add_margin)) -> 1690000 | N123: =IF(INDIRECT("Calendar!E"&MATCH($A123,Calendar!A:A,0)-1),0,IF(INDIRECT("Calendar!E"&MATCH($A123,Calendar!A:A,0)-2),1,2)) -> 0
A124: 2021-10-18 | B124: 1879305 | C124: 140506 | D124: 1879305 | E124: 140506 | F124: 647724.804 | G124: 383605.0711 | H124: 199 | I124: 411458.5037 | J124: 1429495.961 | K124: 1634692.8 | L124: =IF($A125="","",IF($H$3="YES",VLOOKUP(OFFSET(A125,N124,0),Calendar!$A$2:$C$10000,3,FALSE),1)) -> 1 | M124: =IF(A125="","",IF(VLOOKUP(A124,Calendar!A:E,5,FALSE)=0,"",CEILING(L124*CEILING(MAX(OFFSET(K124,N124,0),OFFSET(J124,N124,0)),roundto),roundto)+add_margin)) -> 1690000 | N124: =IF(INDIRECT("Calendar!E"&MATCH($A124,Calendar!A:A,0)-1),0,IF(INDIRECT("Calendar!E"&MATCH($A124,Calendar!A:A,0)-2),1,2)) -> 0
A125: 2021-10-15 | B125: 541524 | C125: 437428 | D125: 541524 | E125: 437428 | F125: 646664.0101 | G125: 387503.9942 | H125: 198 | I125: 415615.172 | J125: 1436332.837 | K125: 1634692.8 | L125: =IF($A126="","",IF($H$3="YES",VLOOKUP(OFFSET(A126,N125,0),Calendar!$A$2:$C$10000,3,FALSE),1)) -> 1 | M125: =IF(A126="","",IF(VLOOKUP(A125,Calendar!A:E,5,FALSE)=0,"",CEILING(L125*CEILING(MAX(OFFSET(K125,N125,0),OFFSET(J125,N125,0)),roundto),roundto)+add_margin)) -> 1690000 | N125: =IF(INDIRECT("Calendar!E"&MATCH($A125,Calendar!A:A,0)-1),0,IF(INDIRECT("Calendar!E"&MATCH($A125,Calendar!A:A,0)-2),1,2)) -> 0
A126: 2021-10-14 | B126: 669356 | C126: 249022 | D126: 669356 | E126: 249022 | F126: 647637.3401 | G126: 386987.3009 | H126: 197 | I126: 415130.3277 | J126: 1436384.963 | K126: 1634692.8 | L126: =IF($A127="","",IF($H$3="YES",VLOOKUP(OFFSET(A127,N126,0),Calendar!$A$2:$C$10000,3,FALSE),1)) -> 1 | M126: =IF(A127="","",IF(VLOOKUP(A126,Calendar!A:E,5,FALSE)=0,"",CEILING(L126*CEILING(MAX(OFFSET(K126,N126,0),OFFSET(J126,N126,0)),roundto),roundto)+add_margin)) -> 1690000 | N126: =IF(INDIRECT("Calendar!E"&MATCH($A126,Calendar!A:A,0)-1),0,IF(INDIRECT("Calendar!E"&MATCH($A126,Calendar!A:A,0)-2),1,2)) -> 0
A127: 2021-10-13 | B127: 819458 | C127: 613562 | D127: 819458 | E127: 613562 | F127: 642205.9543 | G127: 387582.8574 | H127: 197 | I127: 415769.1952 | J127: 1432167.425 | K127: 1239851.2 | L127: =IF($A128="","",IF($H$3="YES",VLOOKUP(OFFSET(A128,N127,0),Calendar!$A$2:$C$10000,3,FALSE),1)) -> 1 | M127: =IF(A128="","",IF(VLOOKUP(A127,Calendar!A:E,5,FALSE)=0,"",CEILING(L127*CEILING(MAX(OFFSET(K127,N127,0),OFFSET(J127,N127,0)),roundto),roundto)+add_margin)) -> 1490000 | N127: =IF(INDIRECT("Calendar!E"&MATCH($A127,Calendar!A:A,0)-1),0,IF(INDIRECT("Calendar!E"&MATCH($A127,Calendar!A:A,0)-2),1,2)) -> 0
A128: 2021-10-12 | B128: 1021683 | C128: 514230 | D128: 1021683 | E128: 514230 | F128: 640485.5736 | G128: 393968.9468 | H128: 197 | I128: 422619.7026 | J128: 1443463.009 | K128: 1239851.2 | L128: =IF($A129="","",IF($H$3="YES",VLOOKUP(OFFSET(A129,N128,0),Calendar!$A$2:$C$10000,3,FALSE),1)) -> 1 | M128: =IF(A129="","",IF(VLOOKUP(A128,Calendar!A:E,5,FALSE)=0,"",CEILING(L128*CEILING(MAX(OFFSET(K128,N128,0),OFFSET(J128,N128,0)),roundto),roundto)+add_margin)) -> 1500000 | N128: =IF(INDIRECT("Calendar!E"&MATCH($A128,Calendar!A:A,0)-1),0,IF(INDIRECT("Calendar!E"&MATCH($A128,Calendar!A:A,0)-2),1,2)) -> 0
A129: 2021-10-11 | B129: 488945 | C129: 55084 | D129: 488945 | E129: 55084 | F129: 643492.2437 | G129: 389293.476 | H129: 197 | I129: 417604.2157 | J129: 1436940.254 | K129: 1239851.2 | L129: =IF($A130="","",IF($H$3="YES",VLOOKUP(OFFSET(A130,N129,0),Calendar!$A$2:$C$10000,3,FALSE),1)) -> 1 | M129: =IF(A130="","",IF(VLOOKUP(A129,Calendar!A:E,5,FALSE)=0,"",CEILING(L129*CEILING(MAX(OFFSET(K129,N129,0),OFFSET(J129,N129,0)),roundto),roundto)+add_margin)) -> 1490000 | N129: =IF(INDIRECT("Calendar!E"&MATCH($A129,Calendar!A:A,0)-1),0,IF(INDIRECT("Calendar!E"&MATCH($A129,Calendar!A:A,0)-2),1,2)) -> 0
A130: 2021-10-08 | B130: 40017 | C130: 141620 | D130: 40017 | E130: 141620 | F130: 645656.4337 | G130: 388924.5871 | H130: 196 | I130: 417291.5315 | J130: 1438510.344 | K130: 1239851.2 | L130: =IF($A131="","",IF($H$3="YES",VLOOKUP(OFFSET(A131,N130,0),Calendar!$A$2:$C$10000,3,FALSE),1)) -> 1 | M130: =IF(A131="","",IF(VLOOKUP(A130,Calendar!A:E,5,FALSE)=0,"",CEILING(L130*CEILING(MAX(OFFSET(K130,N130,0),OFFSET(J130,N130,0)),roundto),roundto)+add_margin)) -> 1490000 | N130: =IF(INDIRECT("Calendar!E"&MATCH($A130,Calendar!A:A,0)-1),0,IF(INDIRECT("Calendar!E"&MATCH($A130,Calendar!A:A,0)-2),1,2)) -> 0
A131: 2021-10-07 | B131: 210667 | C131: 132976 | D131: 210667 | E131: 132976 | F131: 648236.2154 | G131: 387235.4119 | H131: 195 | I131: 415515.845 | J131: 1437716.321 | K131: 1224454.4 | L131: =IF($A132="","",IF($H$3="YES",VLOOKUP(OFFSET(A132,N131,0),Calendar!$A$2:$C$10000,3,FALSE),1)) -> 1 | M131: =IF(A132="","",IF(VLOOKUP(A131,Calendar!A:E,5,FALSE)=0,"",CEILING(L131*CEILING(MAX(OFFSET(K131,N131,0),OFFSET(J131,N131,0)),roundto),roundto)+add_margin)) -> 1490000 | N131: =IF(INDIRECT("Calendar!E"&MATCH($A131,Calendar!A:A,0)-1),0,IF(INDIRECT("Calendar!E"&MATCH($A131,Calendar!A:A,0)-2),1,2)) -> 0
A132: 2021-10-06 | B132: 774907 | C132: 765284 | D132: 774907 | E132: 765284 | F132: 644659.5077 | G132: 393806.1695 | H132: 195 | I132: 422566.4757 | J132: 1447535.812 | K132: 556779.2 | L132: =IF($A133="","",IF($H$3="YES",VLOOKUP(OFFSET(A133,N132,0),Calendar!$A$2:$C$10000,3,FALSE),1)) -> 1 | M132: =IF(A133="","",IF(VLOOKUP(A132,Calendar!A:E,5,FALSE)=0,"",CEILING(L132*CEILING(MAX(OFFSET(K132,N132,0),OFFSET(J132,N132,0)),roundto),roundto)+add_margin)) -> 1500000 | N132: =IF(INDIRECT("Calendar!E"&MATCH($A132,Calendar!A:A,0)-1),0,IF(INDIRECT("Calendar!E"&MATCH($A132,Calendar!A:A,0)-2),1,2)) -> 0
A133: 2021-10-05 | B133: 388039 | C133: 21629 | D133: 388039 | E133: 21629 | F133: 652395.1237 | G133: 390217.351 | H133: 194 | I133: 418690.0244 | J133: 1447906.17 | K133: 556779.2 | L133: =IF($A134="","",IF($H$3="YES",VLOOKUP(OFFSET(A134,N133,0),Calendar!$A$2:$C$10000,3,FALSE),1)) -> 1 | M133: =IF(A134="","",IF(VLOOKUP(A133,Calendar!A:E,5,FALSE)=0,"",CEILING(L133*CEILING(MAX(OFFSET(K133,N133,0),OFFSET(J133,N133,0)),roundto),roundto)+add_margin)) -> 1500000 | N133: =IF(INDIRECT("Calendar!E"&MATCH($A133,Calendar!A:A,0)-1),0,IF(INDIRECT("Calendar!E"&MATCH($A133,Calendar!A:A,0)-2),1,2)) -> 0
A134: 2021-10-04 | B134: 234630 | C134: -156649 | D134: 234630 | F134: 651740.9796 | G134: 393180.6962 | H134: 196 | I134: 421858.0678 | J134: 1453271.308 | K134: 556779.2 | L134: =IF($A135="","",IF($H$3="YES",VLOOKUP(OFFSET(A135,N134,0),Calendar!$A$2:$C$10000,3,FALSE),1)) -> 1 | M134: =IF(A135="","",IF(VLOOKUP(A134,Calendar!A:E,5,FALSE)=0,"",CEILING(L134*CEILING(MAX(OFFSET(K134,N134,0),OFFSET(J134,N134,0)),roundto),roundto)+add_margin)) -> 1510000 | N134: =IF(INDIRECT("Calendar!E"&MATCH($A134,Calendar!A:A,0)-1),0,IF(INDIRECT("Calendar!E"&MATCH($A134,Calendar!A:A,0)-2),1,2)) -> 0
A135: 2021-10-01 | B135: -239525 | C135: 65098 | E135: 65098 | F135: 650266.0863 | G135: 393947.0758 | H135: 197 | I135: 422596.241 | J135: 1453198.944 | K135: 556779.2 | L135: =IF($A136="","",IF($H$3="YES",VLOOKUP(OFFSET(A136,N135,0),Calendar!$A$2:$C$10000,3,FALSE),1)) -> 1 | M135: =IF(A136="","",IF(VLOOKUP(A135,Calendar!A:E,5,FALSE)=0,"",CEILING(L135*CEILING(MAX(OFFSET(K135,N135,0),OFFSET(J135,N135,0)),roundto),roundto)+add_margin)) -> 1510000 | N135: =IF(INDIRECT("Calendar!E"&MATCH($A135,Calendar!A:A,0)-1),0,IF(INDIRECT("Calendar!E"&MATCH($A135,Calendar!A:A,0)-2),1,2)) -> 0
A136: 2021-09-30 | B136: -24234 | C136: 9461 | E136: 9461 | F136: 651545.2487 | G136: 390130.6978 | H136: 197 | I136: 418502.3231 | J136: 1446699.663 | K136: 556779.2 | L136: =IF($A137="","",IF($H$3="YES",VLOOKUP(OFFSET(A137,N136,0),Calendar!$A$2:$C$10000,3,FALSE),1)) -> 1 | M136: =IF(A137="","",IF(VLOOKUP(A136,Calendar!A:E,5,FALSE)=0,"",CEILING(L136*CEILING(MAX(OFFSET(K136,N136,0),OFFSET(J136,N136,0)),roundto),roundto)+add_margin)) -> 1500000 | N136: =IF(INDIRECT("Calendar!E"&MATCH($A136,Calendar!A:A,0)-1),0,IF(INDIRECT("Calendar!E"&MATCH($A136,Calendar!A:A,0)-2),1,2)) -> 0
A137: 2021-09-29 | B137: -248581 | C137: -163220 | F137: 649754.7576 | G137: 390061.1367 | H137: 198 | I137: 418357.8204 | J137: 1444634.616 | K137: 556779.2 | L137: =IF($A138="","",IF($H$3="YES",VLOOKUP(OFFSET(A138,N137,0),Calendar!$A$2:$C$10000,3,FALSE),1)) -> 1 | M137: =IF(A138="","",IF(VLOOKUP(A137,Calendar!A:E,5,FALSE)=0,"",CEILING(L137*CEILING(MAX(OFFSET(K137,N137,0),OFFSET(J137,N137,0)),roundto),roundto)+add_margin)) -> 1500000 | N137: =IF(INDIRECT("Calendar!E"&MATCH($A137,Calendar!A:A,0)-1),0,IF(INDIRECT("Calendar!E"&MATCH($A137,Calendar!A:A,0)-2),1,2)) -> 0
A138: 2021-09-28 | B138: -813705 | C138: -494548 | F138: 651524.4422 | G138: 390016.564 | H138: 199 | I138: 418335.5329 | J138: 1446361.955 | K138: 556779.2 | L138: =IF($A139="","",IF($H$3="YES",VLOOKUP(OFFSET(A139,N138,0),Calendar!$A$2:$C$10000,3,FALSE),1)) -> 1 | M138: =IF(A139="","",IF(VLOOKUP(A138,Calendar!A:E,5,FALSE)=0,"",CEILING(L138*CEILING(MAX(OFFSET(K138,N138,0),OFFSET(J138,N138,0)),roundto),roundto)+add_margin)) -> 1500000 | N138: =IF(INDIRECT("Calendar!E"&MATCH($A138,Calendar!A:A,0)-1),0,IF(INDIRECT("Calendar!E"&MATCH($A138,Calendar!A:A,0)-2),1,2)) -> 0
A139: 2021-09-27 | B139: -857441 | C139: -175671 | E139: =IF(C139>minIMSM,C139,"") ->  | F139: =IF($A139="","",IFERROR((AVERAGE(E140,INDIRECT("D" & ROW(A141) & ":D" & ROW(A141) + window_size-2))),0)) -> 651165.835 | G139: 389718.7508 | H139: 200 | I139: 417981.5385 | J139: =IF($A139="","",F139+alpha*I139) -> 1445330.758 | K139: =IF($A139="","",beta*MAX(E140,INDIRECT("B" & ROW(A141) & ":B" & ROW(A141) + window_size_max-2))) -> 556779.2 | L139: =IF($A140="","",IF($H$3="YES",VLOOKUP(OFFSET(A140,N139,0),Calendar!$A$2:$C$10000,3,FALSE),1)) -> 1 | M139: =IF(A140="","",IF(VLOOKUP(A139,Calendar!A:E,5,FALSE)=0,"",CEILING(L139*CEILING(MAX(OFFSET(K139,N139,0),OFFSET(J139,N139,0)),roundto),roundto)+add_margin)) -> 1500000 | N139: =IF(INDIRECT("Calendar!E"&MATCH($A139,Calendar!A:A,0)-1),0,IF(INDIRECT("Calendar!E"&MATCH($A139,Calendar!A:A,0)-2),1,2)) -> 0
A140: 2021-09-24 | B140: -215246 | C140: -50624 | F140: 651165.835 | G140: 389718.7508 | H140: 200 | I140: 417981.5385 | J140: 1445330.758 | K140: 556779.2 | L140: =IF($A141="","",IF($H$3="YES",VLOOKUP(OFFSET(A141,N140,0),Calendar!$A$2:$C$10000,3,FALSE),1)) -> 1 | M140: =IF(A141="","",IF(VLOOKUP(A140,Calendar!A:E,5,FALSE)=0,"",CEILING(L140*CEILING(MAX(OFFSET(K140,N140,0),OFFSET(J140,N140,0)),roundto),roundto)+add_margin)) -> 1500000 | N140: =IF(INDIRECT("Calendar!E"&MATCH($A140,Calendar!A:A,0)-1),0,IF(INDIRECT("Calendar!E"&MATCH($A140,Calendar!A:A,0)-2),1,2)) -> 0
A141: 2021-09-23 | B141: -222707 | C141: -234024 | F141: 651165.835 | G141: 389718.7508 | H141: 200 | I141: 417981.5385 | J141: 1445330.758 | K141: 556779.2 | L141: =IF($A142="","",IF($H$3="YES",VLOOKUP(OFFSET(A142,N141,0),Calendar!$A$2:$C$10000,3,FALSE),1)) -> 1 | M141: =IF(A142="","",IF(VLOOKUP(A141,Calendar!A:E,5,FALSE)=0,"",CEILING(L141*CEILING(MAX(OFFSET(K141,N141,0),OFFSET(J141,N141,0)),roundto),roundto)+add_margin)) -> 1500000 | N141: =IF(INDIRECT("Calendar!E"&MATCH($A141,Calendar!A:A,0)-1),0,IF(INDIRECT("Calendar!E"&MATCH($A141,Calendar!A:A,0)-2),1,2)) -> 0
A142: 2021-09-22 | B142: -841585 | C142: -616735 | F142: 648170.99 | G142: 390114.1662 | H142: 201 | I142: 418310.2582 | J142: 1442960.481 | K142: 781470.4 | L142: =IF($A143="","",IF($H$3="YES",VLOOKUP(OFFSET(A143,N142,0),Calendar!$A$2:$C$10000,3,FALSE),1)) -> 1 | M142: =IF(A143="","",IF(VLOOKUP(A142,Calendar!A:E,5,FALSE)=0,"",CEILING(L142*CEILING(MAX(OFFSET(K142,N142,0),OFFSET(J142,N142,0)),roundto),roundto)+add_margin)) -> 1500000 | N142: =IF(INDIRECT("Calendar!E"&MATCH($A142,Calendar!A:A,0)-1),0,IF(INDIRECT("Calendar!E"&MATCH($A142,Calendar!A:A,0)-2),1,2)) -> 0
A143: 2021-09-21 | B143: -800707 | C143: -580127 | F143: 646234.2475 | G143: 390111.249 | H143: 202 | I143: 418322.5728 | J143: 1441047.136 | K143: 781470.4 | L143: =IF($A144="","",IF($H$3="YES",VLOOKUP(OFFSET(A144,N143,0),Calendar!$A$2:$C$10000,3,FALSE),1)) -> 1 | M143: =IF(A144="","",IF(VLOOKUP(A143,Calendar!A:E,5,FALSE)=0,"",CEILING(L143*CEILING(MAX(OFFSET(K143,N143,0),OFFSET(J143,N143,0)),roundto),roundto)+add_margin)) -> 1500000 | N143: =IF(INDIRECT("Calendar!E"&MATCH($A143,Calendar!A:A,0)-1),0,IF(INDIRECT("Calendar!E"&MATCH($A143,Calendar!A:A,0)-2),1,2)) -> 0
A144: 2021-09-20 | B144: -452793 | C144: -8225 | F144: 644649.9606 | G144: 390018.3294 | H144: 203 | I144: 418113.8975 | J144: 1439066.366 | K144: 781470.4 | L144: =IF($A145="","",IF($H$3="YES",VLOOKUP(OFFSET(A145,N144,0),Calendar!$A$2:$C$10000,3,FALSE),1)) -> 1 | M144: =IF(A145="","",IF(VLOOKUP(A144,Calendar!A:E,5,FALSE)=0,"",CEILING(L144*CEILING(MAX(OFFSET(K144,N144,0),OFFSET(J144,N144,0)),roundto),roundto)+add_margin)) -> 1490000 | N144: =IF(INDIRECT("Calendar!E"&MATCH($A144,Calendar!A:A,0)-1),0,IF(INDIRECT("Calendar!E"&MATCH($A144,Calendar!A:A,0)-2),1,2)) -> 0
A145: 2021-09-17 | B145: -501367 | C145: -353042 | F145: 642966.7059 | G145: 389959.2318 | H145: 204 | I145: 418077.7177 | J145: 1437314.369 | K145: 781470.4 | L145: =IF($A146="","",IF($H$3="YES",VLOOKUP(OFFSET(A146,N145,0),Calendar!$A$2:$C$10000,3,FALSE),1)) -> 1 | M145: =IF(A146="","",IF(VLOOKUP(A145,Calendar!A:E,5,FALSE)=0,"",CEILING(L145*CEILING(MAX(OFFSET(K145,N145,0),OFFSET(J145,N145,0)),roundto),roundto)+add_margin)) -> 1490000 | N145: =IF(INDIRECT("Calendar!E"&MATCH($A145,Calendar!A:A,0)-1),0,IF(INDIRECT("Calendar!E"&MATCH($A145,Calendar!A:A,0)-2),1,2)) -> 0
A146: 2021-09-16 | B146: -747312 | C146: -323918 | F146: 641342.3707 | G146: 389892.2715 | H146: 205 | I146: 417992.2671 | J146: 1435527.678 | K146: 781470.4 | L146: =IF($A147="","",IF($H$3="YES",VLOOKUP(OFFSET(A147,N146,0),Calendar!$A$2:$C$10000,3,FALSE),1)) -> 1 | M146: =IF(A147="","",IF(VLOOKUP(A146,Calendar!A:E,5,FALSE)=0,"",CEILING(L146*CEILING(MAX(OFFSET(K146,N146,0),OFFSET(J146,N146,0)),roundto),roundto)+add_margin)) -> 1490000 | N146: =IF(INDIRECT("Calendar!E"&MATCH($A146,Calendar!A:A,0)-1),0,IF(INDIRECT("Calendar!E"&MATCH($A146,Calendar!A:A,0)-2),1,2)) -> 0
A147: 2021-09-15 | B147: -470684 | C147: -8284 | F147: 640374.1893 | G147: 389691.3599 | H147: 206 | I147: 417734.7274 | J147: 1434070.171 | K147: 866272 | L147: =IF($A148="","",IF($H$3="YES",VLOOKUP(OFFSET(A148,N147,0),Calendar!$A$2:$C$10000,3,FALSE),1)) -> 1 | M147: =IF(A148="","",IF(VLOOKUP(A147,Calendar!A:E,5,FALSE)=0,"",CEILING(L147*CEILING(MAX(OFFSET(K147,N147,0),OFFSET(J147,N147,0)),roundto),roundto)+add_margin)) -> 1490000 | N147: =IF(INDIRECT("Calendar!E"&MATCH($A147,Calendar!A:A,0)-1),0,IF(INDIRECT("Calendar!E"&MATCH($A147,Calendar!A:A,0)-2),1,2)) -> 0
A148: 2021-09-14 | B148: -729594 | C148: -632351 | F148: 638795.5604 | G148: 389625.9035 | H148: 207 | I148: 417595.2118 | J148: 1432226.463 | K148: 866272 | L148: =IF($A149="","",IF($H$3="YES",VLOOKUP(OFFSET(A149,N148,0),Calendar!$A$2:$C$10000,3,FALSE),1)) -> 1 | M148: =IF(A149="","",IF(VLOOKUP(A148,Calendar!A:E,5,FALSE)=0,"",CEILING(L148*CEILING(MAX(OFFSET(K148,N148,0),OFFSET(J148,N148,0)),roundto),roundto)+add_margin)) -> 1490000 | N148: =IF(INDIRECT("Calendar!E"&MATCH($A148,Calendar!A:A,0)-1),0,IF(INDIRECT("Calendar!E"&MATCH($A148,Calendar!A:A,0)-2),1,2)) -> 0
A149: 2021-09-13 | B149: -844047 | C149: -119433 | F149: 635777.9135 | G149: 390113.4804 | H149: 208 | I149: 418153.6632 | J149: 1430269.873 | K149: 1643174.4 | L149: =IF($A150="","",IF($H$3="YES",VLOOKUP(OFFSET(A150,N149,0),Calendar!$A$2:$C$10000,3,FALSE),1)) -> 1 | M149: =IF(A150="","",IF(VLOOKUP(A149,Calendar!A:E,5,FALSE)=0,"",CEILING(L149*CEILING(MAX(OFFSET(K149,N149,0),OFFSET(J149,N149,0)),roundto),roundto)+add_margin)) -> 1700000 | N149: =IF(INDIRECT("Calendar!E"&MATCH($A149,Calendar!A:A,0)-1),0,IF(INDIRECT("Calendar!E"&MATCH($A149,Calendar!A:A,0)-2),1,2)) -> 0
A150: 2021-09-10 | B150: -494151 | C150: -244280 | F150: 633328.7703 | G150: 390360.7857 | H150: 209 | I150: 418320.194 | J150: 1428137.139 | K150: 1643174.4 | L150: =IF($A151="","",IF($H$3="YES",VLOOKUP(OFFSET(A151,N150,0),Calendar!$A$2:$C$10000,3,FALSE),1)) -> 1 | M150: =IF(A151="","",IF(VLOOKUP(A150,Calendar!A:E,5,FALSE)=0,"",CEILING(L150*CEILING(MAX(OFFSET(K150,N150,0),OFFSET(J150,N150,0)),roundto),roundto)+add_margin)) -> 1700000 | N150: =IF(INDIRECT("Calendar!E"&MATCH($A150,Calendar!A:A,0)-1),0,IF(INDIRECT("Calendar!E"&MATCH($A150,Calendar!A:A,0)-2),1,2)) -> 0
A151: 2021-09-09 | B151: -777249 | C151: -478533 | F151: 631722.3952 | G151: 390330.4982 | H151: 210 | I151: 418234.9205 | J151: 1426368.744 | K151: 1643174.4 | L151: =IF($A152="","",IF($H$3="YES",VLOOKUP(OFFSET(A152,N151,0),Calendar!$A$2:$C$10000,3,FALSE),1)) -> 1 | M151: =IF(A152="","",IF(VLOOKUP(A151,Calendar!A:E,5,FALSE)=0,"",CEILING(L151*CEILING(MAX(OFFSET(K151,N151,0),OFFSET(J151,N151,0)),roundto),roundto)+add_margin)) -> 1700000 | N151: =IF(INDIRECT("Calendar!E"&MATCH($A151,Calendar!A:A,0)-1),0,IF(INDIRECT("Calendar!E"&MATCH($A151,Calendar!A:A,0)-2),1,2)) -> 0
A152: 2021-09-08 | B152: -667214 | C152: -109515 | F152: 629793.237 | G152: 390406.1947 | H152: 211 | I152: 418305.1429 | J152: 1424573.008 | K152: 1643174.4 | L152: =IF($A153="","",IF($H$3="YES",VLOOKUP(OFFSET(A153,N152,0),Calendar!$A$2:$C$10000,3,FALSE),1)) -> 1 | M152: =IF(A153="","",IF(VLOOKUP(A152,Calendar!A:E,5,FALSE)=0,"",CEILING(L152*CEILING(MAX(OFFSET(K152,N152,0),OFFSET(J152,N152,0)),roundto),roundto)+add_margin)) -> 1700000 | N152: =IF(INDIRECT("Calendar!E"&MATCH($A152,Calendar!A:A,0)-1),0,IF(INDIRECT("Calendar!E"&MATCH($A152,Calendar!A:A,0)-2),1,2)) -> 0
A153: 2021-09-07 | B153: -988381 | C153: -810991 | F153: 629688.5189 | G153: 390144.343 | H153: 212 | I153: 418028.6582 | J153: 1423942.969 | K153: 1643174.4 | L153: =IF($A154="","",IF($H$3="YES",VLOOKUP(OFFSET(A154,N153,0),Calendar!$A$2:$C$10000,3,FALSE),1)) -> 1 | M153: =IF(A154="","",IF(VLOOKUP(A153,Calendar!A:E,5,FALSE)=0,"",CEILING(L153*CEILING(MAX(OFFSET(K153,N153,0),OFFSET(J153,N153,0)),roundto),roundto)+add_margin)) -> 1700000 | N153: =IF(INDIRECT("Calendar!E"&MATCH($A153,Calendar!A:A,0)-1),0,IF(INDIRECT("Calendar!E"&MATCH($A153,Calendar!A:A,0)-2),1,2)) -> 0
A154: 2021-09-06 | B154: -1067812 | C154: -244914 | D154: =IF(B154>minIMSM,B154,"") ->  | F154: 625876.0981 | G154: 392820.6353 | H154: 214 | I154: 420816.762 | J154: 1425427.946 | K154: 1643174.4 | L154: =IF($A155="","",IF($H$3="YES",VLOOKUP(OFFSET(A155,N154,0),Calendar!$A$2:$C$10000,3,FALSE),1)) -> 1 | M154: =IF(A155="","",IF(VLOOKUP(A154,Calendar!A:E,5,FALSE)=0,"",CEILING(L154*CEILING(MAX(OFFSET(K154,N154,0),OFFSET(J154,N154,0)),roundto),roundto)+add_margin)) -> 1700000 | N154: =IF(INDIRECT("Calendar!E"&MATCH($A154,Calendar!A:A,0)-1),0,IF(INDIRECT("Calendar!E"&MATCH($A154,Calendar!A:A,0)-2),1,2)) -> 0
A155: 2021-09-03 | B155: -405047 | C155: 42484 | E155: 42484 | F155: 625908.8879 | G155: 390406.3433 | H155: 214 | I155: 418230.4047 | J155: 1420546.657 | K155: 1643174.4 | L155: =IF($A156="","",IF($H$3="YES",VLOOKUP(OFFSET(A156,N155,0),Calendar!$A$2:$C$10000,3,FALSE),1)) -> 1 | M155: =IF(A156="","",IF(VLOOKUP(A155,Calendar!A:E,5,FALSE)=0,"",CEILING(L155*CEILING(MAX(OFFSET(K155,N155,0),OFFSET(J155,N155,0)),roundto),roundto)+add_margin)) -> 1700000 | N155: =IF(INDIRECT("Calendar!E"&MATCH($A155,Calendar!A:A,0)-1),0,IF(INDIRECT("Calendar!E"&MATCH($A155,Calendar!A:A,0)-2),1,2)) -> 0
A156: 2021-09-02 | B156: -204723 | C156: -50316 | F156: 625895.0233 | G156: 388023.2384 | H156: 215 | I156: 415576.8677 | J156: 1415491.072 | K156: 1643174.4 | L156: =IF($A157="","",IF($H$3="YES",VLOOKUP(OFFSET(A157,N156,0),Calendar!$A$2:$C$10000,3,FALSE),1)) -> 1 | M156: =IF(A157="","",IF(VLOOKUP(A156,Calendar!A:E,5,FALSE)=0,"",CEILING(L156*CEILING(MAX(OFFSET(K156,N156,0),OFFSET(J156,N156,0)),roundto),roundto)+add_margin)) -> 1700000 | N156: =IF(INDIRECT("Calendar!E"&MATCH($A156,Calendar!A:A,0)-1),0,IF(INDIRECT("Calendar!E"&MATCH($A156,Calendar!A:A,0)-2),1,2)) -> 0
A157: 2021-09-01 | B157: 24438 | C157: 164435 | D157: 24438 | E157: 164435 | F157: 626671.1953 | G157: 386955.3249 | H157: 215 | I157: 414433.1213 | J157: 1414094.126 | K157: 1643174.4 | L157: =IF($A158="","",IF($H$3="YES",VLOOKUP(OFFSET(A158,N157,0),Calendar!$A$2:$C$10000,3,FALSE),1)) -> 1 | M157: =IF(A158="","",IF(VLOOKUP(A157,Calendar!A:E,5,FALSE)=0,"",CEILING(L157*CEILING(MAX(OFFSET(K157,N157,0),OFFSET(J157,N157,0)),roundto),roundto)+add_margin)) -> 1700000 | N157: =IF(INDIRECT("Calendar!E"&MATCH($A157,Calendar!A:A,0)-1),0,IF(INDIRECT("Calendar!E"&MATCH($A157,Calendar!A:A,0)-2),1,2)) -> 0
A158: 2021-08-31 | B158: -440352 | C158: -328512 | F158: 625076.2361 | G158: 386986.518 | H158: 216 | I158: 414450.7186 | J158: 1412532.601 | K158: 1643174.4 | L158: =IF($A159="","",IF($H$3="YES",VLOOKUP(OFFSET(A159,N158,0),Calendar!$A$2:$C$10000,3,FALSE),1)) -> 1 | M158: =IF(A159="","",IF(VLOOKUP(A158,Calendar!A:E,5,FALSE)=0,"",CEILING(L158*CEILING(MAX(OFFSET(K158,N158,0),OFFSET(J158,N158,0)),roundto),roundto)+add_margin)) -> 1700000 | N158: =IF(INDIRECT("Calendar!E"&MATCH($A158,Calendar!A:A,0)-1),0,IF(INDIRECT("Calendar!E"&MATCH($A158,Calendar!A:A,0)-2),1,2)) -> 0
A159: 2021-08-30 | B159: -976454 | C159: -403449 | F159: 622476.7064 | G159: 385785.0867 | H159: 218 | I159: 413021.7488 | J159: 1407218.029 | K159: 1643174.4 | L159: =IF($A160="","",IF($H$3="YES",VLOOKUP(OFFSET(A160,N159,0),Calendar!$A$2:$C$10000,3,FALSE),1)) -> 1 | M159: =IF(A160="","",IF(VLOOKUP(A159,Calendar!A:E,5,FALSE)=0,"",CEILING(L159*CEILING(MAX(OFFSET(K159,N159,0),OFFSET(J159,N159,0)),roundto),roundto)+add_margin)) -> 1700000 | N159: =IF(INDIRECT("Calendar!E"&MATCH($A159,Calendar!A:A,0)-1),0,IF(INDIRECT("Calendar!E"&MATCH($A159,Calendar!A:A,0)-2),1,2)) -> 0
A160: 2021-08-27 | B160: -196979 | C160: 371152 | E160: 371152 | F160: 620717.1468 | G160: 388620.6036 | H160: 218 | I160: 416057.4549 | J160: 1411226.311 | K160: 1643174.4 | L160: =IF($A161="","",IF($H$3="YES",VLOOKUP(OFFSET(A161,N160,0),Calendar!$A$2:$C$10000,3,FALSE),1)) -> 1 | M160: =IF(A161="","",IF(VLOOKUP(A160,Calendar!A:E,5,FALSE)=0,"",CEILING(L160*CEILING(MAX(OFFSET(K160,N160,0),OFFSET(J160,N160,0)),roundto),roundto)+add_margin)) -> 1700000 | N160: =IF(INDIRECT("Calendar!E"&MATCH($A160,Calendar!A:A,0)-1),0,IF(INDIRECT("Calendar!E"&MATCH($A160,Calendar!A:A,0)-2),1,2)) -> 0
A161: 2021-08-26 | B161: 347987 | C161: 215979 | D161: 347987 | E161: 215979 | F161: 621347.0688 | G161: 387434.3095 | H161: 218 | I161: 414787.4077 | J161: 1409443.143 | K161: 1643174.4 | L161: =IF($A162="","",IF($H$3="YES",VLOOKUP(OFFSET(A162,N161,0),Calendar!$A$2:$C$10000,3,FALSE),1)) -> 1 | M161: =IF(A162="","",IF(VLOOKUP(A161,Calendar!A:E,5,FALSE)=0,"",CEILING(L161*CEILING(MAX(OFFSET(K161,N161,0),OFFSET(J161,N161,0)),roundto),roundto)+add_margin)) -> 1700000 | N161: =IF(INDIRECT("Calendar!E"&MATCH($A161,Calendar!A:A,0)-1),0,IF(INDIRECT("Calendar!E"&MATCH($A161,Calendar!A:A,0)-2),1,2)) -> 0
A162: 2021-08-25 | B162: 124573 | C162: 190731 | D162: 124573 | E162: 190731 | F162: 622012.5 | G162: 386748.115 | H162: 218 | I162: 414052.7674 | J162: 1408712.758 | K162: 1643174.4 | L162: =IF($A163="","",IF($H$3="YES",VLOOKUP(OFFSET(A163,N162,0),Calendar!$A$2:$C$10000,3,FALSE),1)) -> 1 | M162: =IF(A163="","",IF(VLOOKUP(A162,Calendar!A:E,5,FALSE)=0,"",CEILING(L162*CEILING(MAX(OFFSET(K162,N162,0),OFFSET(J162,N162,0)),roundto),roundto)+add_margin)) -> 1700000 | N162: =IF(INDIRECT("Calendar!E"&MATCH($A162,Calendar!A:A,0)-1),0,IF(INDIRECT("Calendar!E"&MATCH($A162,Calendar!A:A,0)-2),1,2)) -> 0
A163: 2021-08-24 | B163: -142360 | C163: -181130 | F163: 621860.9452 | G163: 386519.0487 | H163: 219 | I163: 413833.8417 | J163: 1408145.244 | K163: 1643174.4 | L163: =IF($A164="","",IF($H$3="YES",VLOOKUP(OFFSET(A164,N163,0),Calendar!$A$2:$C$10000,3,FALSE),1)) -> 1 | M163: =IF(A164="","",IF(VLOOKUP(A163,Calendar!A:E,5,FALSE)=0,"",CEILING(L163*CEILING(MAX(OFFSET(K163,N163,0),OFFSET(J163,N163,0)),roundto),roundto)+add_margin)) -> 1700000 | N163: =IF(INDIRECT("Calendar!E"&MATCH($A163,Calendar!A:A,0)-1),0,IF(INDIRECT("Calendar!E"&MATCH($A163,Calendar!A:A,0)-2),1,2)) -> 0
A164: 2021-08-23 | B164: -485112 | C164: -159767 | F164: 622259.65 | G164: 386258.6893 | H164: 220 | I164: 413485.9069 | J164: 1407882.873 | K164: 1737654.4 | L164: =IF($A165="","",IF($H$3="YES",VLOOKUP(OFFSET(A165,N164,0),Calendar!$A$2:$C$10000,3,FALSE),1)) -> 1 | M164: =IF(A165="","",IF(VLOOKUP(A164,Calendar!A:E,5,FALSE)=0,"",CEILING(L164*CEILING(MAX(OFFSET(K164,N164,0),OFFSET(J164,N164,0)),roundto),roundto)+add_margin)) -> 1790000 | N164: =IF(INDIRECT("Calendar!E"&MATCH($A164,Calendar!A:A,0)-1),0,IF(INDIRECT("Calendar!E"&MATCH($A164,Calendar!A:A,0)-2),1,2)) -> 0
A165: 2021-08-20 | B165: -691785 | C165: -99808 | F165: 619922.4279 | G165: 386103.1086 | H165: 222 | I165: 413383.6899 | J165: 1405351.439 | K165: 1737654.4 | L165: =IF($A166="","",IF($H$3="YES",VLOOKUP(OFFSET(A166,N165,0),Calendar!$A$2:$C$10000,3,FALSE),1)) -> 1 | M165: =IF(A166="","",IF(VLOOKUP(A165,Calendar!A:E,5,FALSE)=0,"",CEILING(L165*CEILING(MAX(OFFSET(K165,N165,0),OFFSET(J165,N165,0)),roundto),roundto)+add_margin)) -> 1790000 | N165: =IF(INDIRECT("Calendar!E"&MATCH($A165,Calendar!A:A,0)-1),0,IF(INDIRECT("Calendar!E"&MATCH($A165,Calendar!A:A,0)-2),1,2)) -> 0
A166: 2021-08-19 | B166: -227154 | C166: 246891 | E166: 246891 | F166: 619620.1126 | G166: 386344.5003 | H166: 222 | I166: 413642.1375 | J166: 1405540.174 | K166: 1737654.4 | L166: =IF($A167="","",IF($H$3="YES",VLOOKUP(OFFSET(A167,N166,0),Calendar!$A$2:$C$10000,3,FALSE),1)) -> 1 | M166: =IF(A167="","",IF(VLOOKUP(A166,Calendar!A:E,5,FALSE)=0,"",CEILING(L166*CEILING(MAX(OFFSET(K166,N166,0),OFFSET(J166,N166,0)),roundto),roundto)+add_margin)) -> 1790000 | N166: =IF(INDIRECT("Calendar!E"&MATCH($A166,Calendar!A:A,0)-1),0,IF(INDIRECT("Calendar!E"&MATCH($A166,Calendar!A:A,0)-2),1,2)) -> 0
A167: 2021-08-18 | B167: -580427 | C167: -852064 | F167: 618838.0942 | G167: 386226.8304 | H167: 223 | I167: 413522.7858 | J167: 1404531.387 | K167: 1737654.4 | L167: =IF($A168="","",IF($H$3="YES",VLOOKUP(OFFSET(A168,N167,0),Calendar!$A$2:$C$10000,3,FALSE),1)) -> 1 | M167: =IF(A168="","",IF(VLOOKUP(A167,Calendar!A:E,5,FALSE)=0,"",CEILING(L167*CEILING(MAX(OFFSET(K167,N167,0),OFFSET(J167,N167,0)),roundto),roundto)+add_margin)) -> 1790000 | N167: =IF(INDIRECT("Calendar!E"&MATCH($A167,Calendar!A:A,0)-1),0,IF(INDIRECT("Calendar!E"&MATCH($A167,Calendar!A:A,0)-2),1,2)) -> 0
A168: 2021-08-17 | B168: -1257375 | C168: -400167 | F168: 618036.1422 | G168: 384901.9594 | H168: 225 | I168: 411961.5439 | J168: 1400763.076 | K168: 2149096 | L168: =IF($A169="","",IF($H$3="YES",VLOOKUP(OFFSET(A169,N168,0),Calendar!$A$2:$C$10000,3,FALSE),1)) -> 1 | M168: =IF(A169="","",IF(VLOOKUP(A168,Calendar!A:E,5,FALSE)=0,"",CEILING(L168*CEILING(MAX(OFFSET(K168,N168,0),OFFSET(J168,N168,0)),roundto),roundto)+add_margin)) -> 2200000 | N168: =IF(INDIRECT("Calendar!E"&MATCH($A168,Calendar!A:A,0)-1),0,IF(INDIRECT("Calendar!E"&MATCH($A168,Calendar!A:A,0)-2),1,2)) -> 0
A169: 2021-08-16 | B169: -11454 | C169: 357592 | E169: 357592 | F169: 621902.6875 | G169: 382647.7593 | H169: 224 | I169: 409571.373 | J169: 1400088.296 | K169: 2149096 | L169: =IF($A170="","",IF($H$3="YES",VLOOKUP(OFFSET(A170,N169,0),Calendar!$A$2:$C$10000,3,FALSE),1)) -> 1 | M169: =IF(A170="","",IF(VLOOKUP(A169,Calendar!A:E,5,FALSE)=0,"",CEILING(L169*CEILING(MAX(OFFSET(K169,N169,0),OFFSET(J169,N169,0)),roundto),roundto)+add_margin)) -> 2200000 | N169: =IF(INDIRECT("Calendar!E"&MATCH($A169,Calendar!A:A,0)-1),0,IF(INDIRECT("Calendar!E"&MATCH($A169,Calendar!A:A,0)-2),1,2)) -> 0
A170: 2021-08-13 | B170: 34976 | C170: -327035 | D170: 34976 | F170: 617372.6549 | G170: 385535.3604 | H170: 226 | I170: 412645.4066 | J170: 1401398.927 | K170: 2149096 | L170: =IF($A171="","",IF($H$3="YES",VLOOKUP(OFFSET(A171,N170,0),Calendar!$A$2:$C$10000,3,FALSE),1)) -> 1 | M170: =IF(A171="","",IF(VLOOKUP(A170,Calendar!A:E,5,FALSE)=0,"",CEILING(L170*CEILING(MAX(OFFSET(K170,N170,0),OFFSET(J170,N170,0)),roundto),roundto)+add_margin)) -> 2200000 | N170: =IF(INDIRECT("Calendar!E"&MATCH($A170,Calendar!A:A,0)-1),0,IF(INDIRECT("Calendar!E"&MATCH($A170,Calendar!A:A,0)-2),1,2)) -> 0
A171: 2021-08-12 | B171: -223907 | C171: 63737 | E171: 63737 | F171: 618214.6106 | G171: 383262.9306 | H171: 226 | I171: 410213.1843 | J171: 1397619.661 | K171: 2149096 | L171: =IF($A172="","",IF($H$3="YES",VLOOKUP(OFFSET(A172,N171,0),Calendar!$A$2:$C$10000,3,FALSE),1)) -> 1 | M171: =IF(A172="","",IF(VLOOKUP(A171,Calendar!A:E,5,FALSE)=0,"",CEILING(L171*CEILING(MAX(OFFSET(K171,N171,0),OFFSET(J171,N171,0)),roundto),roundto)+add_margin)) -> 2200000 | N171: =IF(INDIRECT("Calendar!E"&MATCH($A171,Calendar!A:A,0)-1),0,IF(INDIRECT("Calendar!E"&MATCH($A171,Calendar!A:A,0)-2),1,2)) -> 0
A172: 2021-08-11 | B172: 488419 | C172: 442895 | D172: 488419 | E172: 442895 | F172: 614696.6372 | G172: 390503.863 | H172: 226 | I172: 417963.284 | J172: 1408826.877 | K172: 2149096 | L172: =IF($A173="","",IF($H$3="YES",VLOOKUP(OFFSET(A173,N172,0),Calendar!$A$2:$C$10000,3,FALSE),1)) -> 1 | M172: =IF(A173="","",IF(VLOOKUP(A172,Calendar!A:E,5,FALSE)=0,"",CEILING(L172*CEILING(MAX(OFFSET(K172,N172,0),OFFSET(J172,N172,0)),roundto),roundto)+add_margin)) -> 2200000 | N172: =IF(INDIRECT("Calendar!E"&MATCH($A172,Calendar!A:A,0)-1),0,IF(INDIRECT("Calendar!E"&MATCH($A172,Calendar!A:A,0)-2),1,2)) -> 0
A173: 2021-08-10 | B173: 471324 | C173: 9046 | D173: 471324 | E173: 9046 | F173: 616174.9956 | G173: 387653.8867 | H173: 226 | I173: 414912.9034 | J173: 1404509.512 | K173: 2149096 | L173: =IF($A174="","",IF($H$3="YES",VLOOKUP(OFFSET(A174,N173,0),Calendar!$A$2:$C$10000,3,FALSE),1)) -> 1 | M173: =IF(A174="","",IF(VLOOKUP(A173,Calendar!A:E,5,FALSE)=0,"",CEILING(L173*CEILING(MAX(OFFSET(K173,N173,0),OFFSET(J173,N173,0)),roundto),roundto)+add_margin)) -> 2200000 | N173: =IF(INDIRECT("Calendar!E"&MATCH($A173,Calendar!A:A,0)-1),0,IF(INDIRECT("Calendar!E"&MATCH($A173,Calendar!A:A,0)-2),1,2)) -> 0
A174: 2021-08-09 | B174: 230442 | C174: 181029 | D174: 230442 | E174: 181029 | F174: 617038.9912 | G174: 389411.5376 | H174: 226 | I174: 416794.1486 | J174: 1408947.874 | K174: 2149096 | L174: =IF($A175="","",IF($H$3="YES",VLOOKUP(OFFSET(A175,N174,0),Calendar!$A$2:$C$10000,3,FALSE),1)) -> 1 | M174: =IF(A175="","",IF(VLOOKUP(A174,Calendar!A:E,5,FALSE)=0,"",CEILING(L174*CEILING(MAX(OFFSET(K174,N174,0),OFFSET(J174,N174,0)),roundto),roundto)+add_margin)) -> 2200000 | N174: =IF(INDIRECT("Calendar!E"&MATCH($A174,Calendar!A:A,0)-1),0,IF(INDIRECT("Calendar!E"&MATCH($A174,Calendar!A:A,0)-2),1,2)) -> 0
A175: 2021-08-06 | B175: 253646 | C175: 53828 | D175: 253646 | E175: 53828 | F175: 617476.1549 | G175: 388628.9839 | H175: 226 | I175: 415956.5673 | J175: 1407793.633 | K175: 2149096 | L175: =IF($A176="","",IF($H$3="YES",VLOOKUP(OFFSET(A176,N175,0),Calendar!$A$2:$C$10000,3,FALSE),1)) -> 1 | M175: =IF(A176="","",IF(VLOOKUP(A175,Calendar!A:E,5,FALSE)=0,"",CEILING(L175*CEILING(MAX(OFFSET(K175,N175,0),OFFSET(J175,N175,0)),roundto),roundto)+add_margin)) -> 2200000 | N175: =IF(INDIRECT("Calendar!E"&MATCH($A175,Calendar!A:A,0)-1),0,IF(INDIRECT("Calendar!E"&MATCH($A175,Calendar!A:A,0)-2),1,2)) -> 0
A176: 2021-08-05 | B176: 323624 | C176: 159708 | D176: 323624 | E176: 159708 | F176: 616799.7478 | G176: 388936.1968 | H176: 226 | I176: 416285.3828 | J176: 1407741.975 | K176: 2149096 | L176: =IF($A177="","",IF($H$3="YES",VLOOKUP(OFFSET(A177,N176,0),Calendar!$A$2:$C$10000,3,FALSE),1)) -> 1 | M176: =IF(A177="","",IF(VLOOKUP(A176,Calendar!A:E,5,FALSE)=0,"",CEILING(L176*CEILING(MAX(OFFSET(K176,N176,0),OFFSET(J176,N176,0)),roundto),roundto)+add_margin)) -> 2200000 | N176: =IF(INDIRECT("Calendar!E"&MATCH($A176,Calendar!A:A,0)-1),0,IF(INDIRECT("Calendar!E"&MATCH($A176,Calendar!A:A,0)-2),1,2)) -> 0
A177: 2021-08-04 | B177: 541420 | C177: 337875 | D177: 541420 | E177: 337875 | F177: 616709.4469 | G177: 389919.6772 | H177: 226 | I177: 417338.0195 | J177: 1409651.684 | K177: 2149096 | L177: =IF($A178="","",IF($H$3="YES",VLOOKUP(OFFSET(A178,N177,0),Calendar!$A$2:$C$10000,3,FALSE),1)) -> 1 | M177: =IF(A178="","",IF(VLOOKUP(A177,Calendar!A:E,5,FALSE)=0,"",CEILING(L177*CEILING(MAX(OFFSET(K177,N177,0),OFFSET(J177,N177,0)),roundto),roundto)+add_margin)) -> 2200000 | N177: =IF(INDIRECT("Calendar!E"&MATCH($A177,Calendar!A:A,0)-1),0,IF(INDIRECT("Calendar!E"&MATCH($A177,Calendar!A:A,0)-2),1,2)) -> 0
A178: 2021-08-03 | B178: 518681 | C178: 518938 | D178: 518681 | E178: 518938 | F178: 614163.6814 | G178: 390062.9934 | H178: 226 | I178: 417491.4134 | J178: 1407397.367 | K178: 2149096 | L178: =IF($A179="","",IF($H$3="YES",VLOOKUP(OFFSET(A179,N178,0),Calendar!$A$2:$C$10000,3,FALSE),1)) -> 1 | M178: =IF(A179="","",IF(VLOOKUP(A178,Calendar!A:E,5,FALSE)=0,"",CEILING(L178*CEILING(MAX(OFFSET(K178,N178,0),OFFSET(J178,N178,0)),roundto),roundto)+add_margin)) -> 2200000 | N178: =IF(INDIRECT("Calendar!E"&MATCH($A178,Calendar!A:A,0)-1),0,IF(INDIRECT("Calendar!E"&MATCH($A178,Calendar!A:A,0)-2),1,2)) -> 0
A179: 2021-08-02 | B179: 1026984 | C179: 461645 | D179: 1026984 | E179: 461645 | F179: 613613.7478 | G179: 391718.0655 | H179: 226 | I179: 419262.8667 | J179: 1410213.194 | K179: 2149096 | L179: =IF($A180="","",IF($H$3="YES",VLOOKUP(OFFSET(A180,N179,0),Calendar!$A$2:$C$10000,3,FALSE),1)) -> 1 | M179: =IF(A180="","",IF(VLOOKUP(A179,Calendar!A:E,5,FALSE)=0,"",CEILING(L179*CEILING(MAX(OFFSET(K179,N179,0),OFFSET(J179,N179,0)),roundto),roundto)+add_margin)) -> 2200000 | N179: =IF(INDIRECT("Calendar!E"&MATCH($A179,Calendar!A:A,0)-1),0,IF(INDIRECT("Calendar!E"&MATCH($A179,Calendar!A:A,0)-2),1,2)) -> 0
A180: 2021-07-30 | B180: 775885 | C180: 464850 | D180: 775885 | E180: 464850 | F180: 611131 | G180: 394443.4189 | H180: 226 | I180: 422179.8613 | J180: 1413272.737 | K180: 2149096 | L180: =IF($A181="","",IF($H$3="YES",VLOOKUP(OFFSET(A181,N180,0),Calendar!$A$2:$C$10000,3,FALSE),1)) -> 1 | M180: =IF(A181="","",IF(VLOOKUP(A180,Calendar!A:E,5,FALSE)=0,"",CEILING(L180*CEILING(MAX(OFFSET(K180,N180,0),OFFSET(J180,N180,0)),roundto),roundto)+add_margin)) -> 2200000 | N180: =IF(INDIRECT("Calendar!E"&MATCH($A180,Calendar!A:A,0)-1),0,IF(INDIRECT("Calendar!E"&MATCH($A180,Calendar!A:A,0)-2),1,2)) -> 0
A181: 2021-07-29 | B181: 827347 | C181: 307247 | D181: 827347 | E181: 307247 | F181: 609581.8496 | G181: 398075.8588 | H181: 226 | I181: 426067.7268 | J181: 1419110.531 | K181: 2149096 | L181: =IF($A182="","",IF($H$3="YES",VLOOKUP(OFFSET(A182,N181,0),Calendar!$A$2:$C$10000,3,FALSE),1)) -> 1 | M181: =IF(A182="","",IF(VLOOKUP(A181,Calendar!A:E,5,FALSE)=0,"",CEILING(L181*CEILING(MAX(OFFSET(K181,N181,0),OFFSET(J181,N181,0)),roundto),roundto)+add_margin)) -> 2200000 | N181: =IF(INDIRECT("Calendar!E"&MATCH($A181,Calendar!A:A,0)-1),0,IF(INDIRECT("Calendar!E"&MATCH($A181,Calendar!A:A,0)-2),1,2)) -> 0
A182: 2021-07-28 | B182: 546345 | C182: 173714 | D182: 546345 | E182: 173714 | F182: 608470.6903 | G182: 396390.9522 | H182: 226 | I182: 424264.3411 | J182: 1414572.938 | K182: 2149096 | L182: =IF($A183="","",IF($H$3="YES",VLOOKUP(OFFSET(A183,N182,0),Calendar!$A$2:$C$10000,3,FALSE),1)) -> 1 | M182: =IF(A183="","",IF(VLOOKUP(A182,Calendar!A:E,5,FALSE)=0,"",CEILING(L182*CEILING(MAX(OFFSET(K182,N182,0),OFFSET(J182,N182,0)),roundto),roundto)+add_margin)) -> 2200000 | N182: =IF(INDIRECT("Calendar!E"&MATCH($A182,Calendar!A:A,0)-1),0,IF(INDIRECT("Calendar!E"&MATCH($A182,Calendar!A:A,0)-2),1,2)) -> 0
A183: 2021-07-27 | B183: 920645 | C183: 591439 | D183: 920645 | E183: 591439 | F183: 605545.208 | G183: 402757.9542 | H183: 226 | I183: 431079.0575 | J183: 1424595.417 | K183: 2149096 | L183: =IF($A184="","",IF($H$3="YES",VLOOKUP(OFFSET(A184,N183,0),Calendar!$A$2:$C$10000,3,FALSE),1)) -> 1 | M183: =IF(A184="","",IF(VLOOKUP(A183,Calendar!A:E,5,FALSE)=0,"",CEILING(L183*CEILING(MAX(OFFSET(K183,N183,0),OFFSET(J183,N183,0)),roundto),roundto)+add_margin)) -> 2200000 | N183: =IF(INDIRECT("Calendar!E"&MATCH($A183,Calendar!A:A,0)-1),0,IF(INDIRECT("Calendar!E"&MATCH($A183,Calendar!A:A,0)-2),1,2)) -> 0
A184: 2021-07-26 | B184: 672534 | C184: 70044 | D184: 672534 | E184: 70044 | F184: 606847.5044 | G184: 400916.8386 | H184: 226 | I184: 429108.4785 | J184: 1422153.614 | K184: 2149096 | L184: =IF($A185="","",IF($H$3="YES",VLOOKUP(OFFSET(A185,N184,0),Calendar!$A$2:$C$10000,3,FALSE),1)) -> 1 | M184: =IF(A185="","",IF(VLOOKUP(A184,Calendar!A:E,5,FALSE)=0,"",CEILING(L184*CEILING(MAX(OFFSET(K184,N184,0),OFFSET(J184,N184,0)),roundto),roundto)+add_margin)) -> 2200000 | N184: =IF(INDIRECT("Calendar!E"&MATCH($A184,Calendar!A:A,0)-1),0,IF(INDIRECT("Calendar!E"&MATCH($A184,Calendar!A:A,0)-2),1,2)) -> 0
A185: 2021-07-23 | B185: 491604 | C185: 421560 | D185: 491604 | E185: 421560 | F185: 604751.5664 | G185: 405639.4776 | H185: 226 | I185: 434163.2036 | J185: 1429661.653 | K185: 2149096 | L185: =IF($A186="","",IF($H$3="YES",VLOOKUP(OFFSET(A186,N185,0),Calendar!$A$2:$C$10000,3,FALSE),1)) -> 1 | M185: =IF(A186="","",IF(VLOOKUP(A185,Calendar!A:E,5,FALSE)=0,"",CEILING(L185*CEILING(MAX(OFFSET(K185,N185,0),OFFSET(J185,N185,0)),roundto),roundto)+add_margin)) -> 2200000 | N185: =IF(INDIRECT("Calendar!E"&MATCH($A185,Calendar!A:A,0)-1),0,IF(INDIRECT("Calendar!E"&MATCH($A185,Calendar!A:A,0)-2),1,2)) -> 0
A186: 2021-07-22 | B186: 265730 | C186: 55893 | D186: 265730 | E186: 55893 | F186: 604545.0796 | G186: 405971.3874 | H186: 226 | I186: 434518.4526 | J186: 1430130.14 | K186: 2149096 | L186: =IF($A187="","",IF($H$3="YES",VLOOKUP(OFFSET(A187,N186,0),Calendar!$A$2:$C$10000,3,FALSE),1)) -> 1 | M186: =IF(A187="","",IF(VLOOKUP(A186,Calendar!A:E,5,FALSE)=0,"",CEILING(L186*CEILING(MAX(OFFSET(K186,N186,0),OFFSET(J186,N186,0)),roundto),roundto)+add_margin)) -> 2200000 | N186: =IF(INDIRECT("Calendar!E"&MATCH($A186,Calendar!A:A,0)-1),0,IF(INDIRECT("Calendar!E"&MATCH($A186,Calendar!A:A,0)-2),1,2)) -> 0
A187: 2021-07-21 | B187: 210365 | C187: 45093 | D187: 210365 | E187: 45093 | F187: 603281 | G187: 406580.2911 | H187: 226 | I187: 435170.1732 | J187: 1430104.329 | K187: 2149096 | L187: =IF($A188="","",IF($H$3="YES",VLOOKUP(OFFSET(A188,N187,0),Calendar!$A$2:$C$10000,3,FALSE),1)) -> 1 | M187: =IF(A188="","",IF(VLOOKUP(A187,Calendar!A:E,5,FALSE)=0,"",CEILING(L187*CEILING(MAX(OFFSET(K187,N187,0),OFFSET(J187,N187,0)),roundto),roundto)+add_margin)) -> 2200000 | N187: =IF(INDIRECT("Calendar!E"&MATCH($A187,Calendar!A:A,0)-1),0,IF(INDIRECT("Calendar!E"&MATCH($A187,Calendar!A:A,0)-2),1,2)) -> 0
A188: 2021-07-20 | B188: 418253 | C188: 164411 | D188: 418253 | E188: 164411 | F188: 604144.9513 | G188: 406699.6324 | H188: 226 | I188: 435297.9064 | J188: 1431210.973 | K188: 2197801.6 | L188: =IF($A189="","",IF($H$3="YES",VLOOKUP(OFFSET(A189,N188,0),Calendar!$A$2:$C$10000,3,FALSE),1)) -> 1 | M188: =IF(A189="","",IF(VLOOKUP(A188,Calendar!A:E,5,FALSE)=0,"",CEILING(L188*CEILING(MAX(OFFSET(K188,N188,0),OFFSET(J188,N188,0)),roundto),roundto)+add_margin)) -> 2250000 | N188: =IF(INDIRECT("Calendar!E"&MATCH($A188,Calendar!A:A,0)-1),0,IF(INDIRECT("Calendar!E"&MATCH($A188,Calendar!A:A,0)-2),1,2)) -> 0
A189: 2021-07-19 | B189: 662949 | C189: 343262 | D189: 662949 | E189: 343262 | F189: 603131.0398 | G189: 408360.2174 | H189: 226 | I189: 437075.2602 | J189: 1433574.034 | K189: 2572342.4 | L189: =IF($A190="","",IF($H$3="YES",VLOOKUP(OFFSET(A190,N189,0),Calendar!$A$2:$C$10000,3,FALSE),1)) -> 1 | M189: =IF(A190="","",IF(VLOOKUP(A189,Calendar!A:E,5,FALSE)=0,"",CEILING(L189*CEILING(MAX(OFFSET(K189,N189,0),OFFSET(J189,N189,0)),roundto),roundto)+add_margin)) -> 2630000 | N189: =IF(INDIRECT("Calendar!E"&MATCH($A189,Calendar!A:A,0)-1),0,IF(INDIRECT("Calendar!E"&MATCH($A189,Calendar!A:A,0)-2),1,2)) -> 0
A190: 2021-07-16 | B190: 754547 | C190: 384051 | D190: 754547 | E190: 384051 | F190: 602325.1681 | G190: 410940.3217 | H190: 226 | I190: 439836.7921 | J190: 1438015.073 | K190: 2572342.4 | L190: =IF($A191="","",IF($H$3="YES",VLOOKUP(OFFSET(A191,N190,0),Calendar!$A$2:$C$10000,3,FALSE),1)) -> 1 | M190: =IF(A191="","",IF(VLOOKUP(A190,Calendar!A:E,5,FALSE)=0,"",CEILING(L190*CEILING(MAX(OFFSET(K190,N190,0),OFFSET(J190,N190,0)),roundto),roundto)+add_margin)) -> 2630000 | N190: =IF(INDIRECT("Calendar!E"&MATCH($A190,Calendar!A:A,0)-1),0,IF(INDIRECT("Calendar!E"&MATCH($A190,Calendar!A:A,0)-2),1,2)) -> 0
A191: 2021-07-15 | B191: 513387 | C191: 320346 | D191: 513387 | E191: 320346 | F191: 601495.708 | G191: 412487.7798 | H191: 226 | I191: 441493.0642 | J191: 1440332.53 | K191: 2572342.4 | L191: =IF($A192="","",IF($H$3="YES",VLOOKUP(OFFSET(A192,N191,0),Calendar!$A$2:$C$10000,3,FALSE),1)) -> 1 | M191: =IF(A192="","",IF(VLOOKUP(A191,Calendar!A:E,5,FALSE)=0,"",CEILING(L191*CEILING(MAX(OFFSET(K191,N191,0),OFFSET(J191,N191,0)),roundto),roundto)+add_margin)) -> 2630000 | N191: =IF(INDIRECT("Calendar!E"&MATCH($A191,Calendar!A:A,0)-1),0,IF(INDIRECT("Calendar!E"&MATCH($A191,Calendar!A:A,0)-2),1,2)) -> 0
A192: 2021-07-14 | B192: 673807 | C192: 428044 | D192: 673807 | E192: 428044 | F192: 600735.8274 | G192: 413488.3984 | H192: 226 | I192: 442564.0442 | J192: 1441607.511 | K192: 2572342.4 | L192: =IF($A193="","",IF($H$3="YES",VLOOKUP(OFFSET(A193,N192,0),Calendar!$A$2:$C$10000,3,FALSE),1)) -> 1 | M192: =IF(A193="","",IF(VLOOKUP(A192,Calendar!A:E,5,FALSE)=0,"",CEILING(L192*CEILING(MAX(OFFSET(K192,N192,0),OFFSET(J192,N192,0)),roundto),roundto)+add_margin)) -> 2630000 | N192: =IF(INDIRECT("Calendar!E"&MATCH($A192,Calendar!A:A,0)-1),0,IF(INDIRECT("Calendar!E"&MATCH($A192,Calendar!A:A,0)-2),1,2)) -> 0
A193: 2021-07-13 | B193: 1024299 | C193: 935816 | D193: 1024299 | E193: 935816 | F193: 597111.9336 | G193: 412304.8332 | H193: 226 | I193: 441297.2532 | J193: 1435576.715 | K193: 2572342.4 | L193: =IF($A194="","",IF($H$3="YES",VLOOKUP(OFFSET(A194,N193,0),Calendar!$A$2:$C$10000,3,FALSE),1)) -> 1 | M193: =IF(A194="","",IF(VLOOKUP(A193,Calendar!A:E,5,FALSE)=0,"",CEILING(L193*CEILING(MAX(OFFSET(K193,N193,0),OFFSET(J193,N193,0)),roundto),roundto)+add_margin)) -> 2630000 | N193: =IF(INDIRECT("Calendar!E"&MATCH($A193,Calendar!A:A,0)-1),0,IF(INDIRECT("Calendar!E"&MATCH($A193,Calendar!A:A,0)-2),1,2)) -> 0
A194: 2021-07-12 | B194: 1086034 | C194: 364152 | D194: 1086034 | E194: 364152 | F194: 596477.7788 | G194: 416190.6103 | H194: 226 | I194: 445456.2701 | J194: 1442844.692 | K194: 2572342.4 | L194: =IF($A195="","",IF($H$3="YES",VLOOKUP(OFFSET(A195,N194,0),Calendar!$A$2:$C$10000,3,FALSE),1)) -> 1 | M194: =IF(A195="","",IF(VLOOKUP(A194,Calendar!A:E,5,FALSE)=0,"",CEILING(L194*CEILING(MAX(OFFSET(K194,N194,0),OFFSET(J194,N194,0)),roundto),roundto)+add_margin)) -> 2630000 | N194: =IF(INDIRECT("Calendar!E"&MATCH($A194,Calendar!A:A,0)-1),0,IF(INDIRECT("Calendar!E"&MATCH($A194,Calendar!A:A,0)-2),1,2)) -> 0
A195: 2021-07-09 | B195: 489950 | C195: 157980 | D195: 489950 | E195: 157980 | F195: 596405.8451 | G195: 417287.8966 | H195: 226 | I195: 446630.7153 | J195: 1445004.204 | K195: 2572342.4 | L195: =IF($A196="","",IF($H$3="YES",VLOOKUP(OFFSET(A196,N195,0),Calendar!$A$2:$C$10000,3,FALSE),1)) -> 1 | M195: =IF(A196="","",IF(VLOOKUP(A195,Calendar!A:E,5,FALSE)=0,"",CEILING(L195*CEILING(MAX(OFFSET(K195,N195,0),OFFSET(J195,N195,0)),roundto),roundto)+add_margin)) -> 2630000 | N195: =IF(INDIRECT("Calendar!E"&MATCH($A195,Calendar!A:A,0)-1),0,IF(INDIRECT("Calendar!E"&MATCH($A195,Calendar!A:A,0)-2),1,2)) -> 0
A196: 2021-07-08 | B196: 224279 | C196: 101051 | D196: 224279 | E196: 101051 | F196: 595173.4735 | G196: 414751.0818 | H196: 226 | I196: 443915.5169 | J196: 1438612.956 | K196: 2572342.4 | L196: =IF($A197="","",IF($H$3="YES",VLOOKUP(OFFSET(A197,N196,0),Calendar!$A$2:$C$10000,3,FALSE),1)) -> 1 | M196: =IF(A197="","",IF(VLOOKUP(A196,Calendar!A:E,5,FALSE)=0,"",CEILING(L196*CEILING(MAX(OFFSET(K196,N196,0),OFFSET(J196,N196,0)),roundto),roundto)+add_margin)) -> 2630000 | N196: =IF(INDIRECT("Calendar!E"&MATCH($A196,Calendar!A:A,0)-1),0,IF(INDIRECT("Calendar!E"&MATCH($A196,Calendar!A:A,0)-2),1,2)) -> 0
A197: 2021-07-07 | B197: 963462 | C197: 609343 | D197: 963462 | E197: 609343 | F197: 591995.8761 | G197: 410971.039 | H197: 226 | I197: 439869.6694 | J197: 1427748.248 | K197: 2572342.4 | L197: =IF($A198="","",IF($H$3="YES",VLOOKUP(OFFSET(A198,N197,0),Calendar!$A$2:$C$10000,3,FALSE),1)) -> 1 | M197: =IF(A198="","",IF(VLOOKUP(A197,Calendar!A:E,5,FALSE)=0,"",CEILING(L197*CEILING(MAX(OFFSET(K197,N197,0),OFFSET(J197,N197,0)),roundto),roundto)+add_margin)) -> 2630000 | N197: =IF(INDIRECT("Calendar!E"&MATCH($A197,Calendar!A:A,0)-1),0,IF(INDIRECT("Calendar!E"&MATCH($A197,Calendar!A:A,0)-2),1,2)) -> 0
A198: 2021-07-06 | B198: 1343185 | C198: 870921 | D198: 1343185 | E198: 870921 | F198: 586606.2655 | G198: 408474.4684 | H198: 226 | I198: 437197.5451 | J198: 1417281.601 | K198: 2572342.4 | L198: =IF($A199="","",IF($H$3="YES",VLOOKUP(OFFSET(A199,N198,0),Calendar!$A$2:$C$10000,3,FALSE),1)) -> 1 | M198: =IF(A199="","",IF(VLOOKUP(A198,Calendar!A:E,5,FALSE)=0,"",CEILING(L198*CEILING(MAX(OFFSET(K198,N198,0),OFFSET(J198,N198,0)),roundto),roundto)+add_margin)) -> 2630000 | N198: =IF(INDIRECT("Calendar!E"&MATCH($A198,Calendar!A:A,0)-1),0,IF(INDIRECT("Calendar!E"&MATCH($A198,Calendar!A:A,0)-2),1,2)) -> 0
A199: 2021-07-05 | B199: 1183134 | C199: 443927 | D199: 1183134 | E199: 443927 | F199: 583616.6018 | G199: 413341.7934 | H199: 226 | I199: 442407.1303 | J199: 1424190.149 | K199: 3092462.4 | L199: =IF($A200="","",IF($H$3="YES",VLOOKUP(OFFSET(A200,N199,0),Calendar!$A$2:$C$10000,3,FALSE),1)) -> 1 | M199: =IF(A200="","",IF(VLOOKUP(A199,Calendar!A:E,5,FALSE)=0,"",CEILING(L199*CEILING(MAX(OFFSET(K199,N199,0),OFFSET(J199,N199,0)),roundto),roundto)+add_margin)) -> 3150000 | N199: =IF(INDIRECT("Calendar!E"&MATCH($A199,Calendar!A:A,0)-1),0,IF(INDIRECT("Calendar!E"&MATCH($A199,Calendar!A:A,0)-2),1,2)) -> 0
A200: 2021-07-02 | B200: 498189 | C200: 170228 | D200: 498189 | E200: 170228 | F200: 581536.0664 | G200: 416491.67 | H200: 226 | I200: 445778.4997 | J200: 1428515.216 | K200: 3092462.4 | L200: =IF($A201="","",IF($H$3="YES",VLOOKUP(OFFSET(A201,N200,0),Calendar!$A$2:$C$10000,3,FALSE),1)) -> 1 | M200: =IF(A201="","",IF(VLOOKUP(A200,Calendar!A:E,5,FALSE)=0,"",CEILING(L200*CEILING(MAX(OFFSET(K200,N200,0),OFFSET(J200,N200,0)),roundto),roundto)+add_margin)) -> 3150000 | N200: =IF(INDIRECT("Calendar!E"&MATCH($A200,Calendar!A:A,0)-1),0,IF(INDIRECT("Calendar!E"&MATCH($A200,Calendar!A:A,0)-2),1,2)) -> 0
A201: 2021-07-01 | B201: 426838 | C201: 120387 | D201: 426838 | E201: 120387 | F201: 581752.0265 | G201: 415902.1385 | H201: 226 | I201: 445147.5135 | J201: 1427532.302 | K201: 3092462.4 | L201: =IF($A202="","",IF($H$3="YES",VLOOKUP(OFFSET(A202,N201,0),Calendar!$A$2:$C$10000,3,FALSE),1)) -> 1 | M201: =IF(A202="","",IF(VLOOKUP(A201,Calendar!A:E,5,FALSE)=0,"",CEILING(L201*CEILING(MAX(OFFSET(K201,N201,0),OFFSET(J201,N201,0)),roundto),roundto)+add_margin)) -> 3150000 | N201: =IF(INDIRECT("Calendar!E"&MATCH($A201,Calendar!A:A,0)-1),0,IF(INDIRECT("Calendar!E"&MATCH($A201,Calendar!A:A,0)-2),1,2)) -> 0
A202: 2021-06-30 | B202: 698006 | C202: 694978 | D202: 698006 | E202: 694978 | F202: 577985.1593 | G202: 414692.6021 | H202: 226 | I202: 443852.925 | J202: 1421305.717 | K202: 3092462.4 | L202: =IF($A203="","",IF($H$3="YES",VLOOKUP(OFFSET(A203,N202,0),Calendar!$A$2:$C$10000,3,FALSE),1)) -> 1 | M202: =IF(A203="","",IF(VLOOKUP(A202,Calendar!A:E,5,FALSE)=0,"",CEILING(L202*CEILING(MAX(OFFSET(K202,N202,0),OFFSET(J202,N202,0)),roundto),roundto)+add_margin)) -> 3150000 | N202: =IF(INDIRECT("Calendar!E"&MATCH($A202,Calendar!A:A,0)-1),0,IF(INDIRECT("Calendar!E"&MATCH($A202,Calendar!A:A,0)-2),1,2)) -> 0
A203: 2021-06-29 | B203: 1129731 | C203: 666572 | D203: 1129731 | E203: =IF(C203>minIMSM,C203,"") -> 666572 | F203: =IF($A203="","",IFERROR((AVERAGE(E204,INDIRECT("D" & ROW(A205) & ":D" & ROW(A205) + window_size-2))),0)) -> 573677.8628 | G203: 412559.0117 | H203: 226 | I203: 441569.305 | J203: =IF($A203="","",F203+alpha*I203) -> 1412659.542 | K203: =IF($A203="","",beta*MAX(E204,INDIRECT("B" & ROW(A205) & ":B" & ROW(A205) + window_size_max-2))) -> 3092462.4 | L203: =IF($A204="","",IF($H$3="YES",VLOOKUP(OFFSET(A204,N203,0),Calendar!$A$2:$C$10000,3,FALSE),1)) -> 1 | M203: =IF(A204="","",IF(VLOOKUP(A203,Calendar!A:E,5,FALSE)=0,"",CEILING(L203*CEILING(MAX(OFFSET(K203,N203,0),OFFSET(J203,N203,0)),roundto),roundto)+add_margin)) -> 3150000 | N203: =IF(INDIRECT("Calendar!E"&MATCH($A203,Calendar!A:A,0)-1),0,IF(INDIRECT("Calendar!E"&MATCH($A203,Calendar!A:A,0)-2),1,2)) -> 0
A204: 2021-06-28 | B204: 1186026 | C204: 565970 | D204: 1186026 | E204: 565970 | F204: 570895.3496 | G204: 413700.7331 | H204: 226 | I204: 442791.3099 | J204: 1412198.838 | K204: 3092462.4 | L204: =IF($A205="","",IF($H$3="YES",VLOOKUP(OFFSET(A205,N204,0),Calendar!$A$2:$C$10000,3,FALSE),1)) -> 1 | M204: =IF(A205="","",IF(VLOOKUP(A204,Calendar!A:E,5,FALSE)=0,"",CEILING(L204*CEILING(MAX(OFFSET(K204,N204,0),OFFSET(J204,N204,0)),roundto),roundto)+add_margin)) -> 3150000 | N204: =IF(INDIRECT("Calendar!E"&MATCH($A204,Calendar!A:A,0)-1),0,IF(INDIRECT("Calendar!E"&MATCH($A204,Calendar!A:A,0)-2),1,2)) -> 0
A205: 2021-06-25 | B205: 971335 | C205: 755741 | D205: 971335 | E205: 755741 | F205: 567138.9646 | G205: 417759.2225 | H205: 226 | I205: 447135.1839 | J205: 1416695.814 | K205: 3092462.4 | L205: =IF($A206="","",IF($H$3="YES",VLOOKUP(OFFSET(A206,N205,0),Calendar!$A$2:$C$10000,3,FALSE),1)) -> 1 | M205: =IF(A206="","",IF(VLOOKUP(A205,Calendar!A:E,5,FALSE)=0,"",CEILING(L205*CEILING(MAX(OFFSET(K205,N205,0),OFFSET(J205,N205,0)),roundto),roundto)+add_margin)) -> 3150000 | N205: =IF(INDIRECT("Calendar!E"&MATCH($A205,Calendar!A:A,0)-1),0,IF(INDIRECT("Calendar!E"&MATCH($A205,Calendar!A:A,0)-2),1,2)) -> 0
A206: 2021-06-24 | B206: 543916 | C206: 221462 | D206: 543916 | E206: 221462 | F206: 568522.8186 | G206: 416791.3786 | H206: 226 | I206: 446099.2831 | J206: 1416111.457 | K206: 3092462.4 | L206: =IF($A207="","",IF($H$3="YES",VLOOKUP(OFFSET(A207,N206,0),Calendar!$A$2:$C$10000,3,FALSE),1)) -> 1 | M206: =IF(A207="","",IF(VLOOKUP(A206,Calendar!A:E,5,FALSE)=0,"",CEILING(L206*CEILING(MAX(OFFSET(K206,N206,0),OFFSET(J206,N206,0)),roundto),roundto)+add_margin)) -> 3150000 | N206: =IF(INDIRECT("Calendar!E"&MATCH($A206,Calendar!A:A,0)-1),0,IF(INDIRECT("Calendar!E"&MATCH($A206,Calendar!A:A,0)-2),1,2)) -> 0
... 304 more rows

Sheet Parameter
A1: Number of Datapoints | B1: Security Addon
A2: 0 | B2: 0 | D2: Window Size Statistic | E2: 250
A3: 1 | B3: 0 | D3: Window Size Maximum | E3: 30
A4: 2 | B4: 1.646453192 | D4: EWMA Factor | E4: 0.99
A5: 3 | B5: 1.515964294 | D5: alpha | E5: 1.9
A6: 4 | B6: 1.443167374 | D6: beta | E6: 1.6
A7: 5 | B7: 1.394246774 | D7: minIMSM in EUR | E7: 0
A8: 6 | B8: 1.359192892 | D8: roundto | E8: 10000
A9: 7 | B9: 1.332964932 | D9: Additional Margin in EUR | E9: 50000
A10: 8 | B10: 1.310597544
A11: 9 | B11: 1.292426084
A12: 10 | B12: 1.27705215
A13: 11 | B13: 1.264419457
A14: 12 | B14: 1.253459254
A15: 13 | B15: 1.243358109
A16: 14 | B16: 1.234947863
A17: 15 | B17: 1.226157543
A18: 16 | B18: 1.219659221
A19: 17 | B19: 1.213080457
A20: 18 | B20: 1.20749661
A21: 19 | B21: 1.202012485
A22: 20 | B22: 1.197029804
A23: 21 | B23: 1.192173406
A24: 22 | B24: 1.188140008
A25: 23 | B25: 1.18407171
A26: 24 | B26: 1.1800214
A27: 25 | B27: 1.17652192
A28: 26 | B28: 1.173119982
A29: 27 | B29: 1.169535978
A30: 28 | B30: 1.16730325
A31: 29 | B31: 1.16416477
A32: 30 | B32: 1.161422076
A33: 31 | B33: 1.159151541
A34: 32 | B34: 1.156164552
A35: 33 | B35: 1.153909269
A36: 34 | B36: 1.152081506
A37: 35 | B37: 1.149936078
A38: 36 | B38: 1.148178473
A39: 37 | B39: 1.145984481
A40: 38 | B40: 1.144232634
A41: 39 | B41: 1.142550115
A42: 40 | B42: 1.140381755
A43: 41 | B43: 1.138932948
A44: 42 | B44: 1.137323189
A45: 43 | B45: 1.136134974
A46: 44 | B46: 1.134463909
A47: 45 | B47: 1.133215074
A48: 46 | B48: 1.131756861
A49: 47 | B49: 1.130307484
A50: 48 | B50: 1.128906158
A51: 49 | B51: 1.127649298
A52: 50 | B52: 1.12640884
A53: 51 | B53: 1.125386398
A54: 52 | B54: 1.124343032
A55: 53 | B55: 1.123094251
A56: 54 | B56: 1.121933411
A57: 55 | B57: 1.120840122
A58: 56 | B58: 1.120174045
A59: 57 | B59: 1.11905813
A60: 58 | B60: 1.117897335
A61: 59 | B61: 1.117025692
A62: 60 | B62: 1.116399872
A63: 61 | B63: 1.115277009
A64: 62 | B64: 1.114278224
A65: 63 | B65: 1.113367078
A66: 64 | B66: 1.112461063
A67: 65 | B67: 1.111701726
A68: 66 | B68: 1.111298376
A69: 67 | B69: 1.110261213
A70: 68 | B70: 1.109716978
A71: 69 | B71: 1.108906923
A72: 70 | B72: 1.107989669
A73: 71 | B73: 1.107557447
A74: 72 | B74: 1.106707429
A75: 73 | B75: 1.106180878
A76: 74 | B76: 1.105297908
A77: 75 | B77: 1.104797033
A78: 76 | B78: 1.104398777
A79: 77 | B79: 1.103875682
A80: 78 | B80: 1.103152124
A81: 79 | B81: 1.102164867
A82: 80 | B82: 1.101915517
A83: 81 | B83: 1.101442752
A84: 82 | B84: 1.100746263
A85: 83 | B85: 1.100381599
A86: 84 | B86: 1.099932617
A87: 85 | B87: 1.099431192
A88: 86 | B88: 1.098990387
A89: 87 | B89: 1.098312874
A90: 88 | B90: 1.097774925
A91: 89 | B91: 1.097347237
A92: 90 | B92: 1.096786018
A93: 91 | B93: 1.096363538
A94: 92 | B94: 1.095816387
A95: 93 | B95: 1.095574372
A96: 94 | B96: 1.094910627
A97: 95 | B97: 1.094169373
A98: 96 | B98: 1.094010116
A99: 97 | B99: 1.093656565
A100: 98 | B100: 1.093218449
A101: 99 | B101: 1.092988967
A102: 100 | B102: 1.092344007
A103: 101 | B103: 1.092125249
A104: 102 | B104: 1.091962403
A105: 103 | B105: 1.091401331
A106: 104 | B106: 1.09106148
A107: 105 | B107: 1.090662343
A108: 106 | B108: 1.090517309
A109: 107 | B109: 1.089966874
A110: 108 | B110: 1.089572751
A111: 109 | B111: 1.089322678
A112: 110 | B112: 1.08891309
A113: 111 | B113: 1.088820834
A114: 112 | B114: 1.08837003
A115: 113 | B115: 1.08792234
A116: 114 | B116: 1.087736885
A117: 115 | B117: 1.087490052
A118: 116 | B118: 1.087257512
A119: 117 | B119: 1.086835198
A120: 118 | B120: 1.08640167
A121: 119 | B121: 1.086475765
A122: 120 | B122: 1.086129878
A123: 121 | B123: 1.085839042
A124: 122 | B124: 1.085376289
A125: 123 | B125: 1.085076985
A126: 124 | B126: 1.084844767
A127: 125 | B127: 1.084798844
A128: 126 | B128: 1.084302369
A129: 127 | B129: 1.084055707
A130: 128 | B130: 1.083857398
A131: 129 | B131: 1.083424791
A132: 130 | B132: 1.083437832
A133: 131 | B133: 1.082939711
A134: 132 | B134: 1.082885456
A135: 133 | B135: 1.082675067
A136: 134 | B136: 1.082346582
A137: 135 | B137: 1.082172302
A138: 136 | B138: 1.082031482
A139: 137 | B139: 1.081808674
A140: 138 | B140: 1.081677053
A141: 139 | B141: 1.081292807
A142: 140 | B142: 1.081055471
A143: 141 | B143: 1.080891304
A144: 142 | B144: 1.080688234
A145: 143 | B145: 1.08053619
A146: 144 | B146: 1.080261387
A147: 145 | B147: 1.080137952
A148: 146 | B148: 1.079993529
A149: 147 | B149: 1.079667078
A150: 148 | B150: 1.07944325
A151: 149 | B151: 1.079225752
A152: 150 | B152: 1.079087189
A153: 151 | B153: 1.079024375
A154: 152 | B154: 1.078881046
A155: 153 | B155: 1.078665125
A156: 154 | B156: 1.078420245
A157: 155 | B157: 1.07810761
A158: 156 | B158: 1.078298085
A159: 157 | B159: 1.078027971
A160: 158 | B160: 1.077604829
A161: 159 | B161: 1.077607536
A162: 160 | B162: 1.077456396
A163: 161 | B163: 1.077404123
A164: 162 | B164: 1.077011054
A165: 163 | B165: 1.076995277
A166: 164 | B166: 1.076901285
A167: 165 | B167: 1.07677353
A168: 166 | B168: 1.076501754
A169: 167 | B169: 1.07620542
A170: 168 | B170: 1.076281379
A171: 169 | B171: 1.076099727
A172: 170 | B172: 1.075890158
A173: 171 | B173: 1.075756636
A174: 172 | B174: 1.075786598
A175: 173 | B175: 1.075516533
A176: 174 | B176: 1.075558822
A177: 175 | B177: 1.075476649
A178: 176 | B178: 1.075136045
A179: 177 | B179: 1.075058171
A180: 178 | B180: 1.07507848
A181: 179 | B181: 1.074618834
A182: 180 | B182: 1.074441295
A183: 181 | B183: 1.074639307
A184: 182 | B184: 1.074270758
A185: 183 | B185: 1.074295996
A186: 184 | B186: 1.074341677
A187: 185 | B187: 1.074040246
A188: 186 | B188: 1.073899308
A189: 187 | B189: 1.07361353
A190: 188 | B190: 1.073729818
A191: 189 | B191: 1.073667928
A192: 190 | B192: 1.073389075
A193: 191 | B193: 1.073414448
A194: 192 | B194: 1.073224524
A195: 193 | B195: 1.073224442
A196: 194 | B196: 1.07296619
A197: 195 | B197: 1.073031629
A198: 196 | B198: 1.072936876
A199: 197 | B199: 1.072723386
A200: 198 | B200: 1.072544227
... 52 more rows

Sheet Calendar
A1: ECC Calendar | B1: index | C1: Holiday Adjustment Scaling Factor | D1: Flag Weekday | E1: ECC Business Day | F1: Rows Until Next Business Day | G1: Days Until Business Day After Next BD
A2: 2020-01-01 | B2: =ROW(A2)-1 -> 1 | C2: =1+0.3*MAX(G2-4,0) -> 1 | E2: 0 | F2: =IF($E2=1,MATCH(1,INDIRECT("$E$"&ROW($A2)+1&":$E$2598"),0),0) -> 0 | G2: =IF($E2=1,INDIRECT("$A$"&ROW($A2)+MATCH(1,INDIRECT("$E$"&ROW($A2)+1+$F2&":$E$2598"),0)+$F2)-$A2,0) -> 0
A3: 2020-01-02 | B3: =ROW(A3)-1 -> 2 | C3: =1+0.3*MAX(G3-4,0) -> 1 | D3: =IF(ABS(WEEKDAY($A3)-4)<=1,1,0) -> 1 | E3: 1 | F3: =IF($E3=1,MATCH(1,INDIRECT("$E$"&ROW($A3)+1&":$E$2598"),0),0) -> 1 | G3: 4
A4: 2020-01-03 | B4: 3 | C4: 1 | D4: 0 | E4: 1 | F4: 1 | G4: 4
A5: 2020-01-06 | B5: 4 | C5: 1 | D5: 0 | E5: 1 | F5: 1 | G5: 2
A6: 2020-01-07 | B6: 5 | C6: 1 | D6: 1 | E6: 1 | F6: 1 | G6: 2
A7: 2020-01-08 | B7: 6 | C7: 1 | D7: 1 | E7: 1 | F7: 1 | G7: 2
A8: 2020-01-09 | B8: 7 | C8: 1 | D8: 1 | E8: 1 | F8: 1 | G8: 4
A9: 2020-01-10 | B9: 8 | C9: 1 | D9: 0 | E9: 1 | F9: 1 | G9: 4
A10: 2020-01-13 | B10: 9 | C10: 1 | D10: 0 | E10: 1 | F10: 1 | G10: 2
A11: 2020-01-14 | B11: 10 | C11: 1 | D11: 1 | E11: 1 | F11: 1 | G11: 2
A12: 2020-01-15 | B12: 11 | C12: 1 | D12: 1 | E12: 1 | F12: 1 | G12: 2
A13: 2020-01-16 | B13: 12 | C13: 1 | D13: 1 | E13: 1 | F13: 1 | G13: 4
A14: 2020-01-17 | B14: 13 | C14: 1 | D14: 0 | E14: 1 | F14: 1 | G14: 4
A15: 2020-01-20 | B15: 14 | C15: 1 | D15: 0 | E15: 1 | F15: 1 | G15: 2
A16: 2020-01-21 | B16: 15 | C16: 1 | D16: 1 | E16: 1 | F16: 1 | G16: 2
A17: 2020-01-22 | B17: 16 | C17: 1 | D17: 1 | E17: 1 | F17: 1 | G17: 2
A18: 2020-01-23 | B18: 17 | C18: 1 | D18: 1 | E18: 1 | F18: 1 | G18: 4
A19: 2020-01-24 | B19: 18 | C19: 1 | D19: 0 | E19: 1 | F19: 1 | G19: 4
A20: 2020-01-27 | B20: 19 | C20: 1 | D20: 0 | E20: 1 | F20: 1 | G20: 2
A21: 2020-01-28 | B21: 20 | C21: 1 | D21: 1 | E21: 1 | F21: 1 | G21: 2
A22: 2020-01-29 | B22: 21 | C22: 1 | D22: 1 | E22: 1 | F22: 1 | G22: 2
A23: 2020-01-30 | B23: 22 | C23: 1 | D23: 1 | E23: 1 | F23: 1 | G23: 4
A24: 2020-01-31 | B24: 23 | C24: 1 | D24: 0 | E24: 1 | F24: 1 | G24: 4
A25: 2020-02-03 | B25: 24 | C25: 1 | D25: 0 | E25: 1 | F25: 1 | G25: 2
A26: 2020-02-04 | B26: 25 | C26: 1 | D26: 1 | E26: 1 | F26: 1 | G26: 2
A27: 2020-02-05 | B27: 26 | C27: 1 | D27: 1 | E27: 1 | F27: 1 | G27: 2
A28: 2020-02-06 | B28: 27 | C28: 1 | D28: 1 | E28: 1 | F28: 1 | G28: 4
A29: 2020-02-07 | B29: 28 | C29: 1 | D29: 0 | E29: 1 | F29: 1 | G29: 4
A30: 2020-02-10 | B30: 29 | C30: 1 | D30: 0 | E30: 1 | F30: 1 | G30: 2
A31: 2020-02-11 | B31: 30 | C31: 1 | D31: 1 | E31: 1 | F31: 1 | G31: 2
A32: 2020-02-12 | B32: 31 | C32: 1 | D32: 1 | E32: 1 | F32: 1 | G32: 2
A33: 2020-02-13 | B33: 32 | C33: 1 | D33: 1 | E33: 1 | F33: 1 | G33: 4
A34: 2020-02-14 | B34: 33 | C34: 1 | D34: 0 | E34: 1 | F34: 1 | G34: 4
A35: 2020-02-17 | B35: 34 | C35: 1 | D35: 0 | E35: 1 | F35: 1 | G35: 2
A36: 2020-02-18 | B36: 35 | C36: 1 | D36: 1 | E36: 1 | F36: 1 | G36: 2
A37: 2020-02-19 | B37: 36 | C37: 1 | D37: 1 | E37: 1 | F37: 1 | G37: 2
A38: 2020-02-20 | B38: 37 | C38: 1 | D38: 1 | E38: 1 | F38: 1 | G38: 4
A39: 2020-02-21 | B39: 38 | C39: 1 | D39: 0 | E39: 1 | F39: 1 | G39: 4
A40: 2020-02-24 | B40: 39 | C40: 1 | D40: 0 | E40: 1 | F40: 1 | G40: 2
A41: 2020-02-25 | B41: 40 | C41: 1 | D41: 1 | E41: 1 | F41: 1 | G41: 2
A42: 2020-02-26 | B42: 41 | C42: 1 | D42: 1 | E42: 1 | F42: 1 | G42: 2
A43: 2020-02-27 | B43: 42 | C43: 1 | D43: 1 | E43: 1 | F43: 1 | G43: 4
A44: 2020-02-28 | B44: 43 | C44: 1 | D44: 0 | E44: 1 | F44: 1 | G44: 4
A45: 2020-03-02 | B45: 44 | C45: 1 | D45: 0 | E45: 1 | F45: 1 | G45: 2
A46: 2020-03-03 | B46: 45 | C46: 1 | D46: 1 | E46: 1 | F46: 1 | G46: 2
A47: 2020-03-04 | B47: 46 | C47: 1 | D47: 1 | E47: 1 | F47: 1 | G47: 2
A48: 2020-03-05 | B48: 47 | C48: 1 | D48: 1 | E48: 1 | F48: 1 | G48: 4
A49: 2020-03-06 | B49: 48 | C49: 1 | D49: 0 | E49: 1 | F49: 1 | G49: 4
A50: 2020-03-09 | B50: 49 | C50: 1 | D50: 0 | E50: 1 | F50: 1 | G50: 2
A51: 2020-03-10 | B51: 50 | C51: 1 | D51: 1 | E51: 1 | F51: 1 | G51: 2
A52: 2020-03-11 | B52: 51 | C52: 1 | D52: 1 | E52: 1 | F52: 1 | G52: 2
A53: 2020-03-12 | B53: 52 | C53: 1 | D53: 1 | E53: 1 | F53: 1 | G53: 4
A54: 2020-03-13 | B54: 53 | C54: 1 | D54: 0 | E54: 1 | F54: 1 | G54: 4
A55: 2020-03-16 | B55: 54 | C55: 1 | D55: 0 | E55: 1 | F55: 1 | G55: 2
A56: 2020-03-17 | B56: 55 | C56: 1 | D56: 1 | E56: 1 | F56: 1 | G56: 2
A57: 2020-03-18 | B57: 56 | C57: 1 | D57: 1 | E57: 1 | F57: 1 | G57: 2
A58: 2020-03-19 | B58: 57 | C58: 1 | D58: 1 | E58: 1 | F58: 1 | G58: 4
A59: 2020-03-20 | B59: 58 | C59: 1 | D59: 0 | E59: 1 | F59: 1 | G59: 4
A60: 2020-03-23 | B60: 59 | C60: 1 | D60: 0 | E60: 1 | F60: 1 | G60: 2
A61: 2020-03-24 | B61: 60 | C61: 1 | D61: 1 | E61: 1 | F61: 1 | G61: 2
A62: 2020-03-25 | B62: 61 | C62: 1 | D62: 1 | E62: 1 | F62: 1 | G62: 2
A63: 2020-03-26 | B63: 62 | C63: 1 | D63: 1 | E63: 1 | F63: 1 | G63: 4
A64: 2020-03-27 | B64: 63 | C64: 1 | D64: 0 | E64: 1 | F64: 1 | G64: 4
A65: 2020-03-30 | B65: 64 | C65: 1 | D65: 0 | E65: 1 | F65: 1 | G65: 2
A66: 2020-03-31 | B66: 65 | C66: 1 | D66: 1 | E66: 1 | F66: 1 | G66: =IF($E66=1,INDIRECT("$A$"&ROW($A66)+MATCH(1,INDIRECT("$E$"&ROW($A66)+1+$F66&":$E$2598"),0)+$F66)-$A66,0) -> 2
A67: 2020-04-01 | B67: =ROW(A67)-1 -> 66 | C67: =1+0.3*MAX(G67-4,0) -> 1 | D67: =IF(ABS(WEEKDAY($A67)-4)<=1,1,0) -> 1 | E67: 1 | F67: =IF($E67=1,MATCH(1,INDIRECT("$E$"&ROW($A67)+1&":$E$2598"),0),0) -> 1 | G67: 2
A68: 2020-04-02 | B68: 67 | C68: 1 | D68: 1 | E68: 1 | F68: 1 | G68: 4
A69: 2020-04-03 | B69: 68 | C69: 1 | D69: 0 | E69: 1 | F69: 1 | G69: 4
A70: 2020-04-06 | B70: 69 | C70: 1 | D70: 0 | E70: 1 | F70: 1 | G70: 2
A71: 2020-04-07 | B71: 70 | C71: 1 | D71: 1 | E71: 1 | F71: 1 | G71: 2
A72: 2020-04-08 | B72: 71 | C72: 1.6 | D72: 1 | E72: 1 | F72: 1 | G72: 6
A73: 2020-04-09 | B73: 72 | C73: 1.6 | D73: 1 | E73: 1 | F73: 3 | G73: 6
A74: 2020-04-10 | B74: 73 | C74: 1 | D74: 0 | E74: 0 | F74: 0 | G74: 0
A75: 2020-04-13 | B75: 74 | C75: 1 | D75: 0 | E75: 0 | F75: 0 | G75: 0
A76: 2020-04-14 | B76: 75 | C76: 1 | D76: 1 | E76: 1 | F76: 1 | G76: 2
A77: 2020-04-15 | B77: 76 | C77: 1 | D77: 1 | E77: 1 | F77: 1 | G77: 2
A78: 2020-04-16 | B78: 77 | C78: 1 | D78: 1 | E78: 1 | F78: 1 | G78: 4
A79: 2020-04-17 | B79: 78 | C79: 1 | D79: 0 | E79: 1 | F79: 1 | G79: 4
A80: 2020-04-20 | B80: 79 | C80: 1 | D80: 0 | E80: 1 | F80: 1 | G80: 2
A81: 2020-04-21 | B81: 80 | C81: 1 | D81: 1 | E81: 1 | F81: 1 | G81: 2
A82: 2020-04-22 | B82: 81 | C82: 1 | D82: 1 | E82: 1 | F82: 1 | G82: 2
A83: 2020-04-23 | B83: 82 | C83: 1 | D83: 1 | E83: 1 | F83: 1 | G83: 4
A84: 2020-04-24 | B84: 83 | C84: 1 | D84: 0 | E84: 1 | F84: 1 | G84: 4
A85: 2020-04-27 | B85: 84 | C85: 1 | D85: 0 | E85: 1 | F85: 1 | G85: 2
A86: 2020-04-28 | B86: 85 | C86: 1 | D86: 1 | E86: 1 | F86: 1 | G86: 2
A87: 2020-04-29 | B87: 86 | C87: 1.3 | D87: 1 | E87: 1 | F87: 1 | G87: 5
A88: 2020-04-30 | B88: 87 | C88: 1.3 | D88: 1 | E88: 1 | F88: 2 | G88: 5
A89: 2020-05-01 | B89: 88 | C89: 1 | D89: 0 | E89: 0 | F89: 0 | G89: 0
A90: 2020-05-04 | B90: 89 | C90: 1 | D90: 0 | E90: 1 | F90: 1 | G90: 2
A91: 2020-05-05 | B91: 90 | C91: 1 | D91: 1 | E91: 1 | F91: 1 | G91: 2
A92: 2020-05-06 | B92: 91 | C92: 1 | D92: 1 | E92: 1 | F92: 1 | G92: 2
A93: 2020-05-07 | B93: 92 | C93: 1 | D93: 1 | E93: 1 | F93: 1 | G93: 4
A94: 2020-05-08 | B94: 93 | C94: 1 | D94: 0 | E94: 1 | F94: 1 | G94: 4
A95: 2020-05-11 | B95: 94 | C95: 1 | D95: 0 | E95: 1 | F95: 1 | G95: 2
A96: 2020-05-12 | B96: 95 | C96: 1 | D96: 1 | E96: 1 | F96: 1 | G96: 2
A97: 2020-05-13 | B97: 96 | C97: 1 | D97: 1 | E97: 1 | F97: 1 | G97: 2
A98: 2020-05-14 | B98: 97 | C98: 1 | D98: 1 | E98: 1 | F98: 1 | G98: 4
A99: 2020-05-15 | B99: 98 | C99: 1 | D99: 0 | E99: 1 | F99: 1 | G99: 4
A100: 2020-05-18 | B100: 99 | C100: 1 | D100: 0 | E100: 1 | F100: 1 | G100: 2
A101: 2020-05-19 | B101: 100 | C101: 1 | D101: 1 | E101: 1 | F101: 1 | G101: 2
A102: 2020-05-20 | B102: 101 | C102: 1 | D102: 1 | E102: 1 | F102: 1 | G102: 2
A103: 2020-05-21 | B103: 102 | C103: 1 | D103: 1 | E103: 1 | F103: 1 | G103: 4
A104: 2020-05-22 | B104: 103 | C104: 1 | D104: 0 | E104: 1 | F104: 1 | G104: 4
A105: 2020-05-25 | B105: 104 | C105: 1 | D105: 0 | E105: 1 | F105: 1 | G105: 2
A106: 2020-05-26 | B106: 105 | C106: 1 | D106: 1 | E106: 1 | F106: 1 | G106: 2
A107: 2020-05-27 | B107: 106 | C107: 1 | D107: 1 | E107: 1 | F107: 1 | G107: 2
A108: 2020-05-28 | B108: 107 | C108: 1 | D108: 1 | E108: 1 | F108: 1 | G108: 4
A109: 2020-05-29 | B109: 108 | C109: 1 | D109: 0 | E109: 1 | F109: 1 | G109: 4
A110: 2020-06-01 | B110: 109 | C110: 1 | D110: 0 | E110: 1 | F110: 1 | G110: 2
A111: 2020-06-02 | B111: 110 | C111: 1 | D111: 1 | E111: 1 | F111: 1 | G111: 2
A112: 2020-06-03 | B112: 111 | C112: 1 | D112: 1 | E112: 1 | F112: 1 | G112: 2
A113: 2020-06-04 | B113: 112 | C113: 1 | D113: 1 | E113: 1 | F113: 1 | G113: 4
A114: 2020-06-05 | B114: 113 | C114: 1 | D114: 0 | E114: 1 | F114: 1 | G114: 4
A115: 2020-06-08 | B115: 114 | C115: 1 | D115: 0 | E115: 1 | F115: 1 | G115: 2
A116: 2020-06-09 | B116: 115 | C116: 1 | D116: 1 | E116: 1 | F116: 1 | G116: 2
A117: 2020-06-10 | B117: 116 | C117: 1 | D117: 1 | E117: 1 | F117: 1 | G117: 2
A118: 2020-06-11 | B118: 117 | C118: 1 | D118: 1 | E118: 1 | F118: 1 | G118: 4
A119: 2020-06-12 | B119: 118 | C119: 1 | D119: 0 | E119: 1 | F119: 1 | G119: 4
A120: 2020-06-15 | B120: 119 | C120: 1 | D120: 0 | E120: 1 | F120: 1 | G120: 2
A121: 2020-06-16 | B121: 120 | C121: 1 | D121: 1 | E121: 1 | F121: 1 | G121: 2
A122: 2020-06-17 | B122: 121 | C122: 1 | D122: 1 | E122: 1 | F122: 1 | G122: 2
A123: 2020-06-18 | B123: 122 | C123: 1 | D123: 1 | E123: 1 | F123: 1 | G123: 4
A124: 2020-06-19 | B124: 123 | C124: 1 | D124: 0 | E124: 1 | F124: 1 | G124: 4
A125: 2020-06-22 | B125: 124 | C125: 1 | D125: 0 | E125: 1 | F125: 1 | G125: 2
A126: 2020-06-23 | B126: 125 | C126: 1 | D126: 1 | E126: 1 | F126: 1 | G126: 2
A127: 2020-06-24 | B127: 126 | C127: 1 | D127: 1 | E127: 1 | F127: 1 | G127: 2
A128: 2020-06-25 | B128: 127 | C128: 1 | D128: 1 | E128: 1 | F128: 1 | G128: 4
A129: 2020-06-26 | B129: 128 | C129: 1 | D129: 0 | E129: 1 | F129: 1 | G129: 4
A130: 2020-06-29 | B130: 129 | C130: 1 | D130: 0 | E130: 1 | F130: 1 | G130: =IF($E130=1,INDIRECT("$A$"&ROW($A130)+MATCH(1,INDIRECT("$E$"&ROW($A130)+1+$F130&":$E$2598"),0)+$F130)-$A130,0) -> 2
A131: 2020-06-30 | B131: =ROW(A131)-1 -> 130 | C131: =1+0.3*MAX(G131-4,0) -> 1 | D131: =IF(ABS(WEEKDAY($A131)-4)<=1,1,0) -> 1 | E131: 1 | F131: =IF($E131=1,MATCH(1,INDIRECT("$E$"&ROW($A131)+1&":$E$2598"),0),0) -> 1 | G131: 2
A132: 2020-07-01 | B132: 131 | C132: 1 | D132: 1 | E132: 1 | F132: 1 | G132: 2
A133: 2020-07-02 | B133: 132 | C133: 1 | D133: 1 | E133: 1 | F133: 1 | G133: 4
A134: 2020-07-03 | B134: 133 | C134: 1 | D134: 0 | E134: 1 | F134: 1 | G134: 4
A135: 2020-07-06 | B135: 134 | C135: 1 | D135: 0 | E135: 1 | F135: 1 | G135: 2
A136: 2020-07-07 | B136: 135 | C136: 1 | D136: 1 | E136: 1 | F136: 1 | G136: 2
A137: 2020-07-08 | B137: 136 | C137: 1 | D137: 1 | E137: 1 | F137: 1 | G137: 2
A138: 2020-07-09 | B138: 137 | C138: 1 | D138: 1 | E138: 1 | F138: 1 | G138: 4
A139: 2020-07-10 | B139: 138 | C139: 1 | D139: 0 | E139: 1 | F139: 1 | G139: 4
A140: 2020-07-13 | B140: 139 | C140: 1 | D140: 0 | E140: 1 | F140: 1 | G140: 2
A141: 2020-07-14 | B141: 140 | C141: 1 | D141: 1 | E141: 1 | F141: 1 | G141: 2
A142: 2020-07-15 | B142: 141 | C142: 1 | D142: 1 | E142: 1 | F142: 1 | G142: 2
A143: 2020-07-16 | B143: 142 | C143: 1 | D143: 1 | E143: 1 | F143: 1 | G143: 4
A144: 2020-07-17 | B144: 143 | C144: 1 | D144: 0 | E144: 1 | F144: 1 | G144: 4
A145: 2020-07-20 | B145: 144 | C145: 1 | D145: 0 | E145: 1 | F145: 1 | G145: 2
A146: 2020-07-21 | B146: 145 | C146: 1 | D146: 1 | E146: 1 | F146: 1 | G146: 2
A147: 2020-07-22 | B147: 146 | C147: 1 | D147: 1 | E147: 1 | F147: 1 | G147: 2
A148: 2020-07-23 | B148: 147 | C148: 1 | D148: 1 | E148: 1 | F148: 1 | G148: 4
A149: 2020-07-24 | B149: 148 | C149: 1 | D149: 0 | E149: 1 | F149: 1 | G149: 4
A150: 2020-07-27 | B150: 149 | C150: 1 | D150: 0 | E150: 1 | F150: 1 | G150: 2
A151: 2020-07-28 | B151: 150 | C151: 1 | D151: 1 | E151: 1 | F151: 1 | G151: 2
A152: 2020-07-29 | B152: 151 | C152: 1 | D152: 1 | E152: 1 | F152: 1 | G152: 2
A153: 2020-07-30 | B153: 152 | C153: 1 | D153: 1 | E153: 1 | F153: 1 | G153: 4
A154: 2020-07-31 | B154: 153 | C154: 1 | D154: 0 | E154: 1 | F154: 1 | G154: 4
A155: 2020-08-03 | B155: 154 | C155: 1 | D155: 0 | E155: 1 | F155: 1 | G155: 2
A156: 2020-08-04 | B156: 155 | C156: 1 | D156: 1 | E156: 1 | F156: 1 | G156: 2
A157: 2020-08-05 | B157: 156 | C157: 1 | D157: 1 | E157: 1 | F157: 1 | G157: 2
A158: 2020-08-06 | B158: 157 | C158: 1 | D158: 1 | E158: 1 | F158: 1 | G158: 4
A159: 2020-08-07 | B159: 158 | C159: 1 | D159: 0 | E159: 1 | F159: 1 | G159: 4
A160: 2020-08-10 | B160: 159 | C160: 1 | D160: 0 | E160: 1 | F160: 1 | G160: 2
A161: 2020-08-11 | B161: 160 | C161: 1 | D161: 1 | E161: 1 | F161: 1 | G161: 2
A162: 2020-08-12 | B162: 161 | C162: 1 | D162: 1 | E162: 1 | F162: 1 | G162: 2
A163: 2020-08-13 | B163: 162 | C163: 1 | D163: 1 | E163: 1 | F163: 1 | G163: 4
A164: 2020-08-14 | B164: 163 | C164: 1 | D164: 0 | E164: 1 | F164: 1 | G164: 4
A165: 2020-08-17 | B165: 164 | C165: 1 | D165: 0 | E165: 1 | F165: 1 | G165: 2
A166: 2020-08-18 | B166: 165 | C166: 1 | D166: 1 | E166: 1 | F166: 1 | G166: 2
A167: 2020-08-19 | B167: 166 | C167: 1 | D167: 1 | E167: 1 | F167: 1 | G167: 2
A168: 2020-08-20 | B168: 167 | C168: 1 | D168: 1 | E168: 1 | F168: 1 | G168: 4
A169: 2020-08-21 | B169: 168 | C169: 1 | D169: 0 | E169: 1 | F169: 1 | G169: 4
A170: 2020-08-24 | B170: 169 | C170: 1 | D170: 0 | E170: 1 | F170: 1 | G170: 2
A171: 2020-08-25 | B171: 170 | C171: 1 | D171: 1 | E171: 1 | F171: 1 | G171: 2
A172: 2020-08-26 | B172: 171 | C172: 1 | D172: 1 | E172: 1 | F172: 1 | G172: 2
A173: 2020-08-27 | B173: 172 | C173: 1 | D173: 1 | E173: 1 | F173: 1 | G173: 4
A174: 2020-08-28 | B174: 173 | C174: 1 | D174: 0 | E174: 1 | F174: 1 | G174: 4
A175: 2020-08-31 | B175: 174 | C175: 1 | D175: 0 | E175: 1 | F175: 1 | G175: 2
A176: 2020-09-01 | B176: 175 | C176: 1 | D176: 1 | E176: 1 | F176: 1 | G176: 2
A177: 2020-09-02 | B177: 176 | C177: 1 | D177: 1 | E177: 1 | F177: 1 | G177: 2
A178: 2020-09-03 | B178: 177 | C178: 1 | D178: 1 | E178: 1 | F178: 1 | G178: 4
A179: 2020-09-04 | B179: 178 | C179: 1 | D179: 0 | E179: 1 | F179: 1 | G179: 4
A180: 2020-09-07 | B180: 179 | C180: 1 | D180: 0 | E180: 1 | F180: 1 | G180: 2
A181: 2020-09-08 | B181: 180 | C181: 1 | D181: 1 | E181: 1 | F181: 1 | G181: 2
A182: 2020-09-09 | B182: 181 | C182: 1 | D182: 1 | E182: 1 | F182: 1 | G182: 2
A183: 2020-09-10 | B183: 182 | C183: 1 | D183: 1 | E183: 1 | F183: 1 | G183: 4
A184: 2020-09-11 | B184: 183 | C184: 1 | D184: 0 | E184: 1 | F184: 1 | G184: 4
A185: 2020-09-14 | B185: 184 | C185: 1 | D185: 0 | E185: 1 | F185: 1 | G185: 2
A186: 2020-09-15 | B186: 185 | C186: 1 | D186: 1 | E186: 1 | F186: 1 | G186: 2
A187: 2020-09-16 | B187: 186 | C187: 1 | D187: 1 | E187: 1 | F187: 1 | G187: 2
A188: 2020-09-17 | B188: 187 | C188: 1 | D188: 1 | E188: 1 | F188: 1 | G188: 4
A189: 2020-09-18 | B189: 188 | C189: 1 | D189: 0 | E189: 1 | F189: 1 | G189: 4
A190: 2020-09-21 | B190: 189 | C190: 1 | D190: 0 | E190: 1 | F190: 1 | G190: 2
A191: 2020-09-22 | B191: 190 | C191: 1 | D191: 1 | E191: 1 | F191: 1 | G191: 2
A192: 2020-09-23 | B192: 191 | C192: 1 | D192: 1 | E192: 1 | F192: 1 | G192: 2
A193: 2020-09-24 | B193: 192 | C193: 1 | D193: 1 | E193: 1 | F193: 1 | G193: 4
A194: 2020-09-25 | B194: 193 | C194: 1 | D194: 0 | E194: 1 | F194: 1 | G194: =IF($E194=1,INDIRECT("$A$"&ROW($A194)+MATCH(1,INDIRECT("$E$"&ROW($A194)+1+$F194&":$E$2598"),0)+$F194)-$A194,0) -> 4
A195: 2020-09-28 | B195: =ROW(A195)-1 -> 194 | C195: =1+0.3*MAX(G195-4,0) -> 1 | D195: =IF(ABS(WEEKDAY($A195)-4)<=1,1,0) -> 0 | E195: 1 | F195: =IF($E195=1,MATCH(1,INDIRECT("$E$"&ROW($A195)+1&":$E$2598"),0),0) -> 1 | G195: 2
A196: 2020-09-29 | B196: 195 | C196: 1 | D196: 1 | E196: 1 | F196: 1 | G196: 2
A197: 2020-09-30 | B197: 196 | C197: 1 | D197: 1 | E197: 1 | F197: 1 | G197: 2
A198: 2020-10-01 | B198: 197 | C198: 1 | D198: 1 | E198: 1 | F198: 1 | G198: 4
A199: 2020-10-02 | B199: 198 | C199: 1 | D199: 0 | E199: 1 | F199: 1 | G199: 4
A200: 2020-10-05 | B200: 199 | C200: 1 | D200: 0 | E200: 1 | F200: 1 | G200: 2
... 1106 more rows

Sheet Disclaimer
D5: Disclaimer
D6: last update: 2023-08-16
D8: This tool is only a service for recalculating the Initial Margin Spot Market. Although the tool was constructed with greatest diligence, errors, rounding errors and therefore deviations from the productive process cannot be excluded. In cases of doubt, the calculated value of the IMSM programm shall prevail. The disclaimer at http://www.ecc.de/ecc-en/extras/disclaimer shall apply to the use of this tool as well.
